Workbook

Sheet Notes
A1: AdaptiveEMA.xlsm; Traders Tip spreadsheet created for the April 2019 Issue
A2: Coded beginning 2019-February-1 by Ronald McAllister (rpmac_xltt@sprynet.com)
A4: This Workbook demonstrates an EXCEL version of the ideas presented
A5: by Vitali Apirine in an article titled "Adaptive Exponential Moving Average"
A6: which originally appeared in the April 2019 issue of
A7: "Technical Analysis of Stocks and Commodities" magazine.
A9: General Construction Notes
B10: The set of clutter controls pretty much coveres the cross over combinations Mr. Apirine used in this article.
B11: And clutter pretty much covers the situation if you have too many of the averages or cross over markers turned on
B12: at any given time.
B13: BIG NOTE: To make sense of any given set of crossover markers, you should make sure you have the corresponding
B14: pair of averages displayed on the chart.
A19: Development Notes:
C20: This workbook contains and uses VBA macros and may use VBA Class structures.
C21: Input Data
C22: The data in this workbook is sorted date descending (most recent date at the top). All formulas and
C23: VBA routines are built accordingly.
B27: My sincere apologies to our Macintosh based readers: Neither MSXML nor WinHttpRequest are supported in your environment. So as it stands this version of the spreadsheet will not work for you.
B28: See "Why this approach does not work for Macintosh" below.
B29: I am investigating cURL as a non-Querytable based approach for the Macintosh environment.
A31: The new Yahoo Finance history download interface has changed rather radically. The biggest hurdle being a pseudo-security requirement of adding a
B32: crumb character string to any URL requesting any type of history download. That crumb must match up (by way of some sort of hash algorithm) with
B33: the Yahoo Finance cookie that must also be sent with any request to the new Yahoo History down load interface.
B35: A crumb value is returned, buried in the HTML for any of what I call the "entry level" Yahoo Finance web pages (no crumb security requirement for entry level pages).
B36: A crumb may come with other Yahoo Finance pages. A crumb may even accompany some of the secured pages as well. I have not checked.
B38: Entry level pages are the top level pages of the various Yahoo Finance dialogs and include: Quote Lookup, Stock Summary Quote, and any of the pages
B39: with links in the horizontal row with the "Summary" link on the quote summary page such as Options, Historical Data, and the rest.
B41: To date I have found no way to get at this crumb value using any native EXCEL capabilities.
B43: So this crumb requirement effectively shuts out any solution that attempts to exclusively use built-in facilities of EXCEL, which is to say a purely Querytables solution.
B45: The approach built for this Traders Tip spreadsheet uses a combination of MSXML and EXCEL Querytable calls to Load the InputPriceData worksheet.
B47: First I call MSXML to get the HTML text for the Yahoo Summary Quote page using the requested symbol. From this HTML text I extract the full company name,
B48: the market it trades, the market status and time stamp, and finally the associated crumb string. There is a bunch of other useful bits buried in this HTML
B49: text that do not necessarily appear on the web page your browser presents. Perhaps some day I will go after and build a worksheet with these other bits.
B51: Next I add the freshly extracted crumb string to the URLs I use in three separate Querytable calls to retrieve Price history, Split history, and Dividend history respectively.
B53: From there VBA code proceeds as in the past to fill in the cell formulas and formatting that make the "prettied up" InputPriceData sheet.
A55: Why this approach works for Windows:
B56: First, MSXML shares the permanent Internet Explorer web cache where cookies are maintained. Both IE and MSXML automatically
B57: update this cache when a "set cookie" header accompanies a web response. And they both automatically search this shared cache for
B58: cookies and add any "appropriate" cookies to the headers of any web requests they send out.
B59: This cookie handling automation means that even if the response to our MSXML call for the Summary web page includes a new version of
B60: the Yahoo Finance cookie, the imbedded Crumb value will always match the cookie newly installed in the cache!
B62: Second, in the Windows environment the EXCEL Querytable mechanism leans heavily on bits from Internet Explorer. This means that cookie
B63: handling is also automated from the shared cache for Querytable calls. We can count on any appropriate cookies being added to any Querytable call.
B64: We only need to do our part by adding the corresponding Crumb value to complete the security for the Querytable to access Yahoo History downloads.
A66: Why this approach does not work for Macintosh:
B67: For what it is worth, the Macintosh version of the MS Office suite of products do in fact maintain a special, shared amongst themselves only, cookie cache.
B68: They automate cookie handling into and from this cache JUST for the Office products and any Querytable activity they might originate.
B70: This cache is not tied to, nor shared with, any browser that might be installed on the MAC. And I have not found anything with HTTP capabilities similar to
B71: MSXML that can work with that Office product cookie cache.
B73: When working in the MAC EXCEL environment, without that MSXML like capability against the office shared cache, l have no mechanism
B74: to obtain a crumb value that would be a valid match to the Yahoo Finance cookie that will be automatically attached to a Querytable call.
B75: This missing facility pretty much eliminates the use of Mac environment Querytables to access the new Yahoo Finance history download interface.
A77: One very low probability potential "Gottcha" for any Querytables approach.
B78: Yahoo Finance cookies typically have an assigned expiration that is a year out (to the second) from the time they are issued.
B79: Further, these cookies are unique. Yours will not match mine.
B81: If for testing purposes, instead of MSXML, you use a fresh instance of Winhttp (Fresh instance = empty cache = no cookie to automatically send)
B82: every time you call an entry level page, the Yahoo server says "What? Entry level page? With no inbound cookie? Get them a cookie!!"
B83: and will send you a new, unique cookie and will imbed the matching crumb value in the response HTML text for each of these "no cookie attached" calls.
B85: The Gottcha: Lets say that the Yahoo Finance cookie presently in the IE cache has an expiration date and time that just happens
B86: to fall between our MSXML call to the summary page to fetch our crumb and our first (or second, or third) Querytable call.
B87: The Querytable call after the cookie expiration may fail with a cookie and crumb validation error.
B89: Querytable error reporting is atrocious. So we will not get any sort of helpful message here. Just a very generalized message like "failed to connect".
B91: The workaround is to simply go to the InputPriceData tab and click the download button.
B92: This second time through the retrieval process should not fail on a mismatch.
B93: After all, you now have a year before the new cookie that just got put into the cache expires!
A95: Calculation and Chart Worksheet Usage Comments:
C96: In General, Items in Bolded BLUE are items you may freely change to play what-if games.
C97: Be sure to have a backup copy of the spreadsheet before you alter anything else.
A99: Features carried forward from the June 2016 version of my T-Tips Template
A100: Added a pair of buttons near cell F12 that will allow the user to step the charting window forward or backward one bar for each click.
A101: I find this to be a good way to test my understanding of the author's ideas as I step through the evolution of the price behavior and the indicators.
B103: First: In the "Help! I would like to plot data" area.
B104: Added button to resolve #NA problems by locating the bar in the input data with a slightly more recent date than what the user actually requested.
B105: I find this particularly useful when I have a general idea of where I want to be date wise. Now I can pick a set of dates "out of the air".
B106: If either (or both) of my date specifications fall between dates that are available in the price history,
B107: this button will resolve them to the dates of the nearest, slightly more recent input bars.
B108: I can then refine my data interval search as necessary from there.
B109: Really great when working with Weekly or Monthly studies!
C110: 2016Jun11 - added logic to the "I would like to chart.." button to detect #N/A values and terminate
C111: gracefully with a message instead of blowing up in the charting logic.
B113: Second: In the "Price Chart Windowing Controls" area. (A11 and A12)
B114: When retrieving data for a new symbol or when changing from daily to weekly or monthly data, there was the possibility that the
B115: residual settings in A11 and A12 would fall outside of the number bars available on the input data tab after the new data retrieval.
B116: In certain combinations, this could create a serious error in the chart sizing logic and crash the spreadsheet.
B117: I have taken this opportunity to update the validity checking logic used in the chart sizing macros
B118: to adjust these values as necessary so that they fall within the boundaries of the newly retrieved input data.
A119: Features carried forward from the October 2015 Traders Tips Template
B120: Improved automation: changes to any of the following will automatically initiate calculations appropriate to reflect a change.
C121: Changing either of cells A11 (pan) or A12 (zoom) will automatically initiate the same chart sizing macros that the manual
C122: "Set Chart" button uses.

Sheet InputPriceData
A1: Russell 2000 (^RUT) -Chicago Options (Daily)
IJ2: 241.79
A3: Request Online Yahoo History for: | F3: Market State == > | G3: At close: | H3: 16:30:00 | I3: EST
A4: Symbol | B4: ^RUT | D4: Valid | I4: =OFFSET(I4,-2,0,1,1) -> 0
A5: From | B5: 1950-01-01 | D5: Data | AF5: Trailing 12 Div return (Cur Close)
A6: To | B6: =NOW() -> 2019-02-20T01:09:20.490 | D6: Types | E6: =VLOOKUP(B7,D7:E10,2,FALSE) -> d
A7: Data Type | B7: Daily | D7: Daily | E7: d
B8: MRQSBDg.del | D8: Weekly | E8: w
A9: Available Data | D9: Monthly | E9: m
A10: Bar Count: | B10: 7922 | AF10: =OFFSET(AC15,1,0,1,1)/OFFSET(N15,1,0,1,1) -> 0
A11: From: | B11: =IF(B10<=0,"",OFFSET(B15,B10,IF(HistReqDataType="v",1,0),1,1)) -> 1987-09-10 | W11: Trailing 12 Month Dividend Returns
A12: To: | B12: =IF(B10<=0,"",IF(HistReqDataType="v",OFFSET(B15,2,1,1,1),OFFSET(B15,1,0,1,1))) -> 2019-02-14 | W12: Raw Close price on Dividend date | X12: Div Year and Month | Y12: Looking for year ago Div Year and Month | Z12: Year ago Div Date we found | AA12: row offset to year ago div Date | AB12: Same month flag | AC12: Trailing 12 Div Total | AD12: Trailing 12 Div return
Q13: Split History | S13: 0 | T13: Running | U13: Dividend History
B14: Raw Data Values | H14: Adjusted | I14: Price Adjust | J14: Vol Adjust | K14: Adjusted Values | P14: Last | Q14: Effective | R14: Shares | T14: Vol Adjust | V14: 0
A15: RelRow | B15: Date | C15: Open | D15: High | E15: Low | F15: Close | G15: Volume | H15: Close | I15: Factor | J15: Factor | K15: Open | L15: High | M15: Low | N15: Close | O15: Volume | P15: Trade | Q15: 43511 | R15: New | S15: Old | T15: 1 | U15: Date | V15: $ / Share
A16: 1 | B16: 2019-02-14 | C16: 1540.987793 | D16: 1551.385864 | E16: 1534.590088 | F16: 1545.105225 | G16: 0 | H16: 1545.105225 | I16: =IF(F16=0,1,H16/F16) -> 1 | J16: =INDEX(OFFSET($T$15,0,0,$S$13+1,1),MATCH(B16,OFFSET($Q$15,0,0,$S$13+1,1),-1)) -> 1 | K16: =ROUND($I16*C16,2) -> 1540.99 | L16: =ROUND($I16*D16,2) -> 1551.39 | M16: 1534.59 | N16: 1545.11 | O16: =G16*J16 -> 0
A17: 2 | B17: 2019-02-13 | C17: 1538.290039 | D17: 1545.73999 | E17: 1536.25 | F17: 1542.939941 | G17: 36707700 | H17: 1542.939941 | I17: =IF(F17=0,1,H17/F17) -> 1 | J17: =INDEX(OFFSET($T$15,0,0,$S$13+1,1),MATCH(B17,OFFSET($Q$15,0,0,$S$13+1,1),-1)) -> 1 | K17: =ROUND($I17*C17,2) -> 1538.29 | L17: =ROUND($I17*D17,2) -> 1545.74 | M17: =ROUND($I17*E17,2) -> 1536.25 | N17: =ROUND($I17*F17,2) -> 1542.94 | O17: =G17*J17 -> 36707700
A18: 3 | B18: 2019-02-12 | C18: 1520.140015 | D18: 1538.890015 | E18: 1520.140015 | F18: 1538.22998 | G18: 38277700 | H18: 1538.22998 | I18: 1 | J18: 1 | K18: 1520.14 | L18: 1538.89 | M18: 1520.14 | N18: 1538.23 | O18: 38277700
A19: 4 | B19: 2019-02-11 | C19: 1506.819946 | D19: 1519.209961 | E19: 1505.670044 | F19: 1518.97998 | G19: 33619700 | H19: 1518.97998 | I19: 1 | J19: 1 | K19: 1506.82 | L19: 1519.21 | M19: 1505.67 | N19: 1518.98 | O19: 33619700
A20: 5 | B20: 2019-02-08 | C20: 1504.170044 | D20: 1506.599976 | E20: 1495.119995 | F20: 1506.390015 | G20: 36223300 | H20: 1506.390015 | I20: 1 | J20: 1 | K20: 1504.17 | L20: 1506.6 | M20: 1495.12 | N20: 1506.39 | O20: 36223300
A21: 6 | B21: 2019-02-07 | C21: 1516.699951 | D21: 1516.699951 | E21: 1494.369995 | F21: 1505.630005 | G21: 40994900 | H21: 1505.630005 | I21: 1 | J21: 1 | K21: 1516.7 | L21: 1516.7 | M21: 1494.37 | N21: 1505.63 | O21: 40994900
A22: 7 | B22: 2019-02-06 | C22: 1520.170044 | D22: 1520.890015 | E22: 1511.180054 | F22: 1518.02002 | G22: 34726900 | H22: 1518.02002 | I22: 1 | J22: 1 | K22: 1520.17 | L22: 1520.89 | M22: 1511.18 | N22: 1518.02 | O22: 34726900
A23: 8 | B23: 2019-02-05 | C23: 1517.920044 | D23: 1524.209961 | E23: 1512.719971 | F23: 1520.22998 | G23: 35604300 | H23: 1520.22998 | I23: 1 | J23: 1 | K23: 1517.92 | L23: 1524.21 | M23: 1512.72 | N23: 1520.23 | O23: 35604300
A24: 9 | B24: 2019-02-04 | C24: 1501.969971 | D24: 1517.550049 | E24: 1500.130005 | F24: 1517.540039 | G24: 33598400 | H24: 1517.540039 | I24: 1 | J24: 1 | K24: 1501.97 | L24: 1517.55 | M24: 1500.13 | N24: 1517.54 | O24: 33598400
A25: 10 | B25: 2019-02-01 | C25: 1499.530029 | D25: 1504.51001 | E25: 1495.469971 | F25: 1502.050049 | G25: 37592700 | H25: 1502.050049 | I25: 1 | J25: 1 | K25: 1499.53 | L25: 1504.51 | M25: 1495.47 | N25: 1502.05 | O25: 37592700
A26: 11 | B26: 2019-01-31 | C26: 1486.640015 | D26: 1500.73999 | E26: 1484.819946 | F26: 1499.420044 | G26: 49176500 | H26: 1499.420044 | I26: 1 | J26: 1 | K26: 1486.64 | L26: 1500.74 | M26: 1484.82 | N26: 1499.42 | O26: 49176500
A27: 12 | B27: 2019-01-30 | C27: 1473.380005 | D27: 1490.51001 | E27: 1467.569946 | F27: 1486.939941 | G27: 38578100 | H27: 1486.939941 | I27: 1 | J27: 1 | K27: 1473.38 | L27: 1490.51 | M27: 1467.57 | N27: 1486.94 | O27: 38578100
A28: 13 | B28: 2019-01-29 | C28: 1473.540039 | D28: 1477.01001 | E28: 1469.310059 | F28: 1471.449951 | G28: 35042000 | H28: 1471.449951 | I28: 1 | J28: 1 | K28: 1473.54 | L28: 1477.01 | M28: 1469.31 | N28: 1471.45 | O28: 35042000
A29: 14 | B29: 2019-01-28 | C29: 1480.280029 | D29: 1480.280029 | E29: 1464.77002 | F29: 1473.540039 | G29: 36128100 | H29: 1473.540039 | I29: 1 | J29: 1 | K29: 1480.28 | L29: 1480.28 | M29: 1464.77 | N29: 1473.54 | O29: 36128100
A30: 15 | B30: 2019-01-25 | C30: 1466.790039 | D30: 1484.599976 | E30: 1466.790039 | F30: 1482.849976 | G30: 38140800 | H30: 1482.849976 | I30: 1 | J30: 1 | K30: 1466.79 | L30: 1484.6 | M30: 1466.79 | N30: 1482.85 | O30: 38140800
A31: 16 | B31: 2019-01-24 | C31: 1454.22998 | D31: 1465.339966 | E31: 1453.72998 | F31: 1464.410034 | G31: 34332500 | H31: 1464.410034 | I31: 1 | J31: 1 | K31: 1454.23 | L31: 1465.34 | M31: 1453.73 | N31: 1464.41 | O31: 34332500
A32: 17 | B32: 2019-01-23 | C32: 1457.72998 | D32: 1468.47998 | E32: 1444.969971 | F32: 1454.26001 | G32: 33356100 | H32: 1454.26001 | I32: 1 | J32: 1 | K32: 1457.73 | L32: 1468.48 | M32: 1444.97 | N32: 1454.26 | O32: 33356100
A33: 18 | B33: 2019-01-22 | C33: 1479.819946 | D33: 1479.819946 | E33: 1451.01001 | F33: 1457.449951 | G33: 38980300 | H33: 1457.449951 | I33: 1 | J33: 1 | K33: 1479.82 | L33: 1479.82 | M33: 1451.01 | N33: 1457.45 | O33: 38980300
A34: 19 | B34: 2019-01-18 | C34: 1466.689941 | D34: 1487.209961 | E34: 1466.689941 | F34: 1482.5 | G34: 39867300 | H34: 1482.5 | I34: 1 | J34: 1 | K34: 1466.69 | L34: 1487.21 | M34: 1466.69 | N34: 1482.5 | O34: 39867300
A35: 20 | B35: 2019-01-17 | C35: 1453.829956 | D35: 1470.839966 | E35: 1448.550049 | F35: 1467.25 | G35: 37722700 | H35: 1467.25 | I35: 1 | J35: 1 | K35: 1453.83 | L35: 1470.84 | M35: 1448.55 | N35: 1467.25 | O35: 37722700
A36: 21 | B36: 2019-01-16 | C36: 1445.910034 | D36: 1460.310059 | E36: 1445.910034 | F36: 1454.699951 | G36: 38637700 | H36: 1454.699951 | I36: 1 | J36: 1 | K36: 1445.91 | L36: 1460.31 | M36: 1445.91 | N36: 1454.7 | O36: 38637700
A37: 22 | B37: 2019-01-15 | C37: 1432.849976 | D37: 1445.219971 | E37: 1432.130005 | F37: 1445.219971 | G37: 35723300 | H37: 1445.219971 | I37: 1 | J37: 1 | K37: 1432.85 | L37: 1445.22 | M37: 1432.13 | N37: 1445.22 | O37: 35723300
A38: 23 | B38: 2019-01-14 | C38: 1446.5 | D38: 1446.5 | E38: 1431.310059 | F38: 1432.810059 | G38: 36644500 | H38: 1432.810059 | I38: 1 | J38: 1 | K38: 1446.5 | L38: 1446.5 | M38: 1431.31 | N38: 1432.81 | O38: 36644500
A39: 24 | B39: 2019-01-11 | C39: 1444.439941 | D39: 1448.280029 | E39: 1437.449951 | F39: 1447.380005 | G39: 34344900 | H39: 1447.380005 | I39: 1 | J39: 1 | K39: 1444.44 | L39: 1448.28 | M39: 1437.45 | N39: 1447.38 | O39: 34344900
A40: 25 | B40: 2019-01-10 | C40: 1436.97998 | D40: 1445.780029 | E40: 1424.540039 | F40: 1445.430054 | G40: 37045000 | H40: 1445.430054 | I40: 1 | J40: 1 | K40: 1436.98 | L40: 1445.78 | M40: 1424.54 | N40: 1445.43 | O40: 37045000
A41: 26 | B41: 2019-01-09 | C41: 1427 | D41: 1442.420044 | E41: 1427 | F41: 1438.810059 | G41: 40524800 | H41: 1438.810059 | I41: 1 | J41: 1 | K41: 1427 | L41: 1442.42 | M41: 1427 | N41: 1438.81 | O41: 40524800
A42: 27 | B42: 2019-01-08 | C42: 1405.869995 | D42: 1426.550049 | E42: 1404.01001 | F42: 1426.550049 | G42: 40810300 | H42: 1426.550049 | I42: 1 | J42: 1 | K42: 1405.87 | L42: 1426.55 | M42: 1404.01 | N42: 1426.55 | O42: 40810300
A43: 28 | B43: 2019-01-07 | C43: 1380.839966 | D43: 1411.900024 | E43: 1380.839966 | F43: 1405.369995 | G43: 41047100 | H43: 1405.369995 | I43: 1 | J43: 1 | K43: 1380.84 | L43: 1411.9 | M43: 1380.84 | N43: 1405.37 | O43: 41047100
A44: 29 | B44: 2019-01-04 | C44: 1333.099976 | D44: 1383.160034 | E44: 1333.099976 | F44: 1380.75 | G44: 42134100 | H44: 1380.75 | I44: 1 | J44: 1 | K44: 1333.1 | L44: 1383.16 | M44: 1333.1 | N44: 1380.75 | O44: 42134100
A45: 30 | B45: 2019-01-03 | C45: 1355.02002 | D45: 1355.02002 | E45: 1328 | F45: 1330.829956 | G45: 38228600 | H45: 1330.829956 | I45: 1 | J45: 1 | K45: 1355.02 | L45: 1355.02 | M45: 1328 | N45: 1330.83 | O45: 38228600
A46: 31 | B46: 2019-01-02 | C46: 1346.109985 | D46: 1357.77002 | E46: 1325.180054 | F46: 1355.910034 | G46: 37331600 | H46: 1355.910034 | I46: 1 | J46: 1 | K46: 1346.11 | L46: 1357.77 | M46: 1325.18 | N46: 1355.91 | O46: 37331600
A47: 32 | B47: 2018-12-31 | C47: 1338.52002 | D47: 1348.560059 | E47: 1329.170044 | F47: 1348.560059 | G47: 34428700 | H47: 1348.560059 | I47: 1 | J47: 1 | K47: 1338.52 | L47: 1348.56 | M47: 1329.17 | N47: 1348.56 | O47: 34428700
A48: 33 | B48: 2018-12-28 | C48: 1332.060059 | D48: 1356.22998 | E48: 1326.439941 | F48: 1337.920044 | G48: 37026200 | H48: 1337.920044 | I48: 1 | J48: 1 | K48: 1332.06 | L48: 1356.23 | M48: 1326.44 | N48: 1337.92 | O48: 37026200
A49: 34 | B49: 2018-12-27 | C49: 1329.790039 | D49: 1331.97998 | E49: 1289.319946 | F49: 1331.819946 | G49: 40966100 | H49: 1331.819946 | I49: 1 | J49: 1 | K49: 1329.79 | L49: 1331.98 | M49: 1289.32 | N49: 1331.82 | O49: 40966100
A50: 35 | B50: 2018-12-26 | C50: 1268.189941 | D50: 1330.420044 | E50: 1268.189941 | F50: 1329.810059 | G50: 42229900 | H50: 1329.810059 | I50: 1 | J50: 1 | K50: 1268.19 | L50: 1330.42 | M50: 1268.19 | N50: 1329.81 | O50: 42229900
A51: 36 | B51: 2018-12-24 | C51: 1290.540039 | D51: 1290.920044 | E51: 1266.920044 | F51: 1266.920044 | G51: 26139300 | H51: 1266.920044 | I51: 1 | J51: 1 | K51: 1290.54 | L51: 1290.92 | M51: 1266.92 | N51: 1266.92 | O51: 26139300
A52: 37 | B52: 2018-12-21 | C52: 1325.869995 | D52: 1334.76001 | E52: 1289.48999 | F52: 1292.089966 | G52: 76090100 | H52: 1292.089966 | I52: 1 | J52: 1 | K52: 1325.87 | L52: 1334.76 | M52: 1289.49 | N52: 1292.09 | O52: 76090100
A53: 38 | B53: 2018-12-20 | C53: 1348.650024 | D53: 1350.890015 | E53: 1313.02002 | F53: 1326 | G53: 55857800 | H53: 1326 | I53: 1 | J53: 1 | K53: 1348.65 | L53: 1350.89 | M53: 1313.02 | N53: 1326 | O53: 55857800
A54: 39 | B54: 2018-12-19 | C54: 1377.209961 | D54: 1392.920044 | E54: 1344.150024 | F54: 1349.22998 | G54: 51279400 | H54: 1349.22998 | I54: 1 | J54: 1 | K54: 1377.21 | L54: 1392.92 | M54: 1344.15 | N54: 1349.23 | O54: 51279400
A55: 40 | B55: 2018-12-18 | C55: 1379.48999 | D55: 1399.430054 | E55: 1373.719971 | F55: 1377.180054 | G55: 44708800 | H55: 1377.180054 | I55: 1 | J55: 1 | K55: 1379.49 | L55: 1399.43 | M55: 1373.72 | N55: 1377.18 | O55: 44708800
A56: 41 | B56: 2018-12-17 | C56: 1410.77002 | D56: 1417.099976 | E56: 1372.72998 | F56: 1378.140015 | G56: 46163500 | H56: 1378.140015 | I56: 1 | J56: 1 | K56: 1410.77 | L56: 1417.1 | M56: 1372.73 | N56: 1378.14 | O56: 46163500
A57: 42 | B57: 2018-12-14 | C57: 1431.819946 | D57: 1435.390015 | E57: 1407.109985 | F57: 1410.810059 | G57: 40350200 | H57: 1410.810059 | I57: 1 | J57: 1 | K57: 1431.82 | L57: 1435.39 | M57: 1407.11 | N57: 1410.81 | O57: 40350200
A58: 43 | B58: 2018-12-13 | C58: 1455.680054 | D58: 1460.550049 | E58: 1431.680054 | F58: 1432.699951 | G58: 39277200 | H58: 1432.699951 | I58: 1 | J58: 1 | K58: 1455.68 | L58: 1460.55 | M58: 1431.68 | N58: 1432.7 | O58: 39277200
A59: 44 | B59: 2018-12-12 | C59: 1440.699951 | D59: 1471.959961 | E59: 1440.699951 | F59: 1455.319946 | G59: 39558900 | H59: 1455.319946 | I59: 1 | J59: 1 | K59: 1440.7 | L59: 1471.96 | M59: 1440.7 | N59: 1455.32 | O59: 39558900
A60: 45 | B60: 2018-12-11 | C60: 1444.290039 | D60: 1465.76001 | E60: 1431.880005 | F60: 1440.130005 | G60: 39058700 | H60: 1440.130005 | I60: 1 | J60: 1 | K60: 1444.29 | L60: 1465.76 | M60: 1431.88 | N60: 1440.13 | O60: 39058700
A61: 46 | B61: 2018-12-10 | C61: 1448.01001 | D61: 1449.930054 | E61: 1422.97998 | F61: 1443.099976 | G61: 41510300 | H61: 1443.099976 | I61: 1 | J61: 1 | K61: 1448.01 | L61: 1449.93 | M61: 1422.98 | N61: 1443.1 | O61: 41510300
A62: 47 | B62: 2018-12-07 | C62: 1477.51001 | D62: 1485.630005 | E62: 1440.849976 | F62: 1448.089966 | G62: 42166900 | H62: 1448.089966 | I62: 1 | J62: 1 | K62: 1477.51 | L62: 1485.63 | M62: 1440.85 | N62: 1448.09 | O62: 42166900
A63: 48 | B63: 2018-12-06 | C63: 1479.160034 | D63: 1479.160034 | E63: 1442.829956 | F63: 1477.410034 | G63: 51414700 | H63: 1477.410034 | I63: 1 | J63: 1 | K63: 1479.16 | L63: 1479.16 | M63: 1442.83 | N63: 1477.41 | O63: 51414700
A64: 49 | B64: 2018-12-04 | C64: 1548.109985 | D64: 1548.109985 | E64: 1479.910034 | F64: 1480.75 | G64: 44638400 | H64: 1480.75 | I64: 1 | J64: 1 | K64: 1548.11 | L64: 1548.11 | M64: 1479.91 | N64: 1480.75 | O64: 44638400
A65: 50 | B65: 2018-12-03 | C65: 1536.329956 | D65: 1553.339966 | E65: 1529.530029 | F65: 1548.959961 | G65: 41860600 | H65: 1548.959961 | I65: 1 | J65: 1 | K65: 1536.33 | L65: 1553.34 | M65: 1529.53 | N65: 1548.96 | O65: 41860600
A66: 51 | B66: 2018-11-30 | C66: 1524.869995 | D66: 1535.130005 | E66: 1519.98999 | F66: 1533.27002 | G66: 46585800 | H66: 1533.27002 | I66: 1 | J66: 1 | K66: 1524.87 | L66: 1535.13 | M66: 1519.99 | N66: 1533.27 | O66: 46585800
A67: 52 | B67: 2018-11-29 | C67: 1529.699951 | D67: 1534.619995 | E67: 1514.569946 | F67: 1525.390015 | G67: 35607700 | H67: 1525.390015 | I67: 1 | J67: 1 | K67: 1529.7 | L67: 1534.62 | M67: 1514.57 | N67: 1525.39 | O67: 35607700
A68: 53 | B68: 2018-11-28 | C68: 1493.670044 | D68: 1530.709961 | E68: 1486.339966 | F68: 1530.380005 | G68: 39516700 | H68: 1530.380005 | I68: 1 | J68: 1 | K68: 1493.67 | L68: 1530.71 | M68: 1486.34 | N68: 1530.38 | O68: 39516700
A69: 54 | B69: 2018-11-27 | C69: 1505.449951 | D69: 1505.449951 | E69: 1491.27002 | F69: 1492.859985 | G69: 34852200 | H69: 1492.859985 | I69: 1 | J69: 1 | K69: 1505.45 | L69: 1505.45 | M69: 1491.27 | N69: 1492.86 | O69: 34852200
A70: 55 | B70: 2018-11-26 | C70: 1489.099976 | D70: 1510.290039 | E70: 1489.099976 | F70: 1505.959961 | G70: 34439500 | H70: 1505.959961 | I70: 1 | J70: 1 | K70: 1489.1 | L70: 1510.29 | M70: 1489.1 | N70: 1505.96 | O70: 34439500
A71: 56 | B71: 2018-11-23 | C71: 1485.72998 | D71: 1498.650024 | E71: 1476.810059 | F71: 1488.680054 | G71: 16516500 | H71: 1488.680054 | I71: 1 | J71: 1 | K71: 1485.73 | L71: 1498.65 | M71: 1476.81 | N71: 1488.68 | O71: 16516500
A72: 57 | B72: 2018-11-21 | C72: 1469.449951 | D72: 1499.369995 | E72: 1469.449951 | F72: 1488.280029 | G72: 32335500 | H72: 1488.280029 | I72: 1 | J72: 1 | K72: 1469.45 | L72: 1499.37 | M72: 1469.45 | N72: 1488.28 | O72: 32335500
A73: 58 | B73: 2018-11-20 | C73: 1496.140015 | D73: 1496.140015 | E73: 1465.25 | F73: 1469.01001 | G73: 43579000 | H73: 1469.01001 | I73: 1 | J73: 1 | K73: 1496.14 | L73: 1496.14 | M73: 1465.25 | N73: 1469.01 | O73: 43579000
A74: 59 | B74: 2018-11-19 | C74: 1527.329956 | D74: 1527.329956 | E74: 1492.949951 | F74: 1496.540039 | G74: 37729000 | H74: 1496.540039 | I74: 1 | J74: 1 | K74: 1527.33 | L74: 1527.33 | M74: 1492.95 | N74: 1496.54 | O74: 37729000
A75: 60 | B75: 2018-11-16 | C75: 1523.75 | D75: 1530 | E75: 1510.410034 | F75: 1527.530029 | G75: 39751800 | H75: 1527.530029 | I75: 1 | J75: 1 | K75: 1523.75 | L75: 1530 | M75: 1510.41 | N75: 1527.53 | O75: 39751800
A76: 61 | B76: 2018-11-15 | C76: 1502.329956 | D76: 1524.290039 | E76: 1491.660034 | F76: 1524.119995 | G76: 41791400 | H76: 1524.119995 | I76: 1 | J76: 1 | K76: 1502.33 | L76: 1524.29 | M76: 1491.66 | N76: 1524.12 | O76: 41791400
A77: 62 | B77: 2018-11-14 | C77: 1516.079956 | D77: 1530.619995 | E77: 1494.920044 | F77: 1502.51001 | G77: 44023700 | H77: 1502.51001 | I77: 1 | J77: 1 | K77: 1516.08 | L77: 1530.62 | M77: 1494.92 | N77: 1502.51 | O77: 44023700
A78: 63 | B78: 2018-11-13 | C78: 1519.98999 | D78: 1536.709961 | E78: 1513.300049 | F78: 1514.800049 | G78: 40914400 | H78: 1514.800049 | I78: 1 | J78: 1 | K78: 1519.99 | L78: 1536.71 | M78: 1513.3 | N78: 1514.8 | O78: 40914400
A79: 64 | B79: 2018-11-12 | C79: 1549.01001 | D79: 1549.01001 | E79: 1518.040039 | F79: 1518.790039 | G79: 36709300 | H79: 1518.790039 | I79: 1 | J79: 1 | K79: 1549.01 | L79: 1549.01 | M79: 1518.04 | N79: 1518.79 | O79: 36709300
A80: 65 | B80: 2018-11-09 | C80: 1577.040039 | D80: 1577.040039 | E80: 1539.920044 | F80: 1549.48999 | G80: 40190900 | H80: 1549.48999 | I80: 1 | J80: 1 | K80: 1577.04 | L80: 1577.04 | M80: 1539.92 | N80: 1549.49 | O80: 40190900
A81: 66 | B81: 2018-11-08 | C81: 1581.619995 | D81: 1586.170044 | E81: 1573.150024 | F81: 1578.209961 | G81: 36304900 | H81: 1578.209961 | I81: =IF(F81=0,1,H81/F81) -> 1 | J81: =INDEX(OFFSET($T$15,0,0,$S$13+1,1),MATCH(B81,OFFSET($Q$15,0,0,$S$13+1,1),-1)) -> 1 | K81: =ROUND($I81*C81,2) -> 1581.62 | L81: =ROUND($I81*D81,2) -> 1586.17 | M81: =ROUND($I81*E81,2) -> 1573.15 | N81: =ROUND($I81*F81,2) -> 1578.21 | O81: =G81*J81 -> 36304900
A82: 67 | B82: 2018-11-07 | C82: 1556.27002 | D82: 1582.160034 | E82: 1556.27002 | F82: 1582.160034 | G82: 39147500 | H82: 1582.160034 | I82: 1 | J82: 1 | K82: 1556.27 | L82: 1582.16 | M82: 1556.27 | N82: 1582.16 | O82: 39147500
A83: 68 | B83: 2018-11-06 | C83: 1547.099976 | D83: 1558.859985 | E83: 1544.650024 | F83: 1556.099976 | G83: 35108600 | H83: 1556.099976 | I83: 1 | J83: 1 | K83: 1547.1 | L83: 1558.86 | M83: 1544.65 | N83: 1556.1 | O83: 35108600
A84: 69 | B84: 2018-11-05 | C84: 1548.339966 | D84: 1554.77002 | E84: 1534.76001 | F84: 1547.51001 | G84: 36233200 | H84: 1547.51001 | I84: 1 | J84: 1 | K84: 1548.34 | L84: 1554.77 | M84: 1534.76 | N84: 1547.51 | O84: 36233200
A85: 70 | B85: 2018-11-02 | C85: 1546.130005 | D85: 1557.180054 | E85: 1535.959961 | F85: 1547.97998 | G85: 42379300 | H85: 1547.97998 | I85: 1 | J85: 1 | K85: 1546.13 | L85: 1557.18 | M85: 1535.96 | N85: 1547.98 | O85: 42379300
A86: 71 | B86: 2018-11-01 | C86: 1512.680054 | D86: 1547.140015 | E86: 1512.680054 | F86: 1544.97998 | G86: 47084200 | H86: 1544.97998 | I86: 1 | J86: 1 | K86: 1512.68 | L86: 1547.14 | M86: 1512.68 | N86: 1544.98 | O86: 47084200
A87: 72 | B87: 2018-10-31 | C87: 1508.819946 | D87: 1526.329956 | E87: 1508.819946 | F87: 1511.410034 | G87: 51124200 | H87: 1511.410034 | I87: 1 | J87: 1 | K87: 1508.82 | L87: 1526.33 | M87: 1508.82 | N87: 1511.41 | O87: 51124200
A88: 73 | B88: 2018-10-30 | C88: 1476.969971 | D88: 1507.160034 | E88: 1474.800049 | F88: 1506.640015 | G88: 51063800 | H88: 1506.640015 | I88: 1 | J88: 1 | K88: 1476.97 | L88: 1507.16 | M88: 1474.8 | N88: 1506.64 | O88: 51063800
A89: 74 | B89: 2018-10-29 | C89: 1485.199951 | D89: 1513.280029 | E89: 1461.650024 | F89: 1477.310059 | G89: 46737000 | H89: 1477.310059 | I89: 1 | J89: 1 | K89: 1485.2 | L89: 1513.28 | M89: 1461.65 | N89: 1477.31 | O89: 46737000
A90: 75 | B90: 2018-10-26 | C90: 1500.150024 | D90: 1501.300049 | E90: 1459.160034 | F90: 1483.819946 | G90: 48031500 | H90: 1483.819946 | I90: 1 | J90: 1 | K90: 1500.15 | L90: 1501.3 | M90: 1459.16 | N90: 1483.82 | O90: 48031500
A91: 76 | B91: 2018-10-25 | C91: 1470.530029 | D91: 1506.780029 | E91: 1470.530029 | F91: 1500.400024 | G91: 46347700 | H91: 1500.400024 | I91: 1 | J91: 1 | K91: 1470.53 | L91: 1506.78 | M91: 1470.53 | N91: 1500.4 | O91: 46347700
A92: 77 | B92: 2018-10-24 | C92: 1526.560059 | D92: 1527.709961 | E92: 1468.459961 | F92: 1468.699951 | G92: 47093100 | H92: 1468.699951 | I92: 1 | J92: 1 | K92: 1526.56 | L92: 1527.71 | M92: 1468.46 | N92: 1468.7 | O92: 47093100
A93: 78 | B93: 2018-10-23 | C93: 1536.930054 | D93: 1537.160034 | E93: 1501.040039 | F93: 1526.589966 | G93: 43485800 | H93: 1526.589966 | I93: 1 | J93: 1 | K93: 1536.93 | L93: 1537.16 | M93: 1501.04 | N93: 1526.59 | O93: 43485800
A94: 79 | B94: 2018-10-22 | C94: 1542.420044 | D94: 1551.359985 | E94: 1535.780029 | F94: 1539.5 | G94: 33071400 | H94: 1539.5 | I94: 1 | J94: 1 | K94: 1542.42 | L94: 1551.36 | M94: 1535.78 | N94: 1539.5 | O94: 33071400
A95: 80 | B95: 2018-10-19 | C95: 1560.640015 | D95: 1569.810059 | E95: 1538.73999 | F95: 1542.040039 | G95: 35664900 | H95: 1542.040039 | I95: 1 | J95: 1 | K95: 1560.64 | L95: 1569.81 | M95: 1538.74 | N95: 1542.04 | O95: 35664900
A96: 81 | B96: 2018-10-18 | C96: 1588.73999 | D96: 1588.73999 | E96: 1555.569946 | F96: 1560.75 | G96: 36164400 | H96: 1560.75 | I96: 1 | J96: 1 | K96: 1588.74 | L96: 1588.74 | M96: 1555.57 | N96: 1560.75 | O96: 36164400
A97: 82 | B97: 2018-10-17 | C97: 1596.380005 | D97: 1596.380005 | E97: 1571.51001 | F97: 1589.599976 | G97: 33217100 | H97: 1589.599976 | I97: 1 | J97: 1 | K97: 1596.38 | L97: 1596.38 | M97: 1571.51 | N97: 1589.6 | O97: 33217100
A98: 83 | B98: 2018-10-16 | C98: 1554.48999 | D98: 1598.01001 | E98: 1554.109985 | F98: 1596.839966 | G98: 34283400 | H98: 1596.839966 | I98: 1 | J98: 1 | K98: 1554.49 | L98: 1598.01 | M98: 1554.11 | N98: 1596.84 | O98: 34283400
A99: 84 | B99: 2018-10-15 | C99: 1546.680054 | D99: 1562.300049 | E99: 1537.550049 | F99: 1553.089966 | G99: 33001400 | H99: 1553.089966 | I99: 1 | J99: 1 | K99: 1546.68 | L99: 1562.3 | M99: 1537.55 | N99: 1553.09 | O99: 33001400
A100: 85 | B100: 2018-10-12 | C100: 1546.849976 | D100: 1567.640015 | E100: 1530.97998 | F100: 1546.680054 | G100: 39660400 | H100: 1546.680054 | I100: 1 | J100: 1 | K100: 1546.85 | L100: 1567.64 | M100: 1530.98 | N100: 1546.68 | O100: 39660400
A101: 86 | B101: 2018-10-11 | C101: 1575.099976 | D101: 1580.890015 | E101: 1545.380005 | F101: 1545.380005 | G101: 48906300 | H101: 1545.380005 | I101: 1 | J101: 1 | K101: 1575.1 | L101: 1580.89 | M101: 1545.38 | N101: 1545.38 | O101: 48906300
A102: 87 | B102: 2018-10-10 | C102: 1621.410034 | D102: 1621.410034 | E102: 1575.25 | F102: 1575.410034 | G102: 45012500 | H102: 1575.410034 | I102: 1 | J102: 1 | K102: 1621.41 | L102: 1621.41 | M102: 1575.25 | N102: 1575.41 | O102: 45012500
A103: 88 | B103: 2018-10-09 | C103: 1628.060059 | D103: 1635.98999 | E103: 1621.25 | F103: 1621.869995 | G103: 35205000 | H103: 1621.869995 | I103: 1 | J103: 1 | K103: 1628.06 | L103: 1635.99 | M103: 1621.25 | N103: 1621.87 | O103: 35205000
A104: 89 | B104: 2018-10-08 | C104: 1631.199951 | D104: 1633.859985 | E104: 1616.660034 | F104: 1629.52002 | G104: 33303200 | H104: 1629.52002 | I104: 1 | J104: 1 | K104: 1631.2 | L104: 1633.86 | M104: 1616.66 | N104: 1629.52 | O104: 33303200
A105: 90 | B105: 2018-10-05 | C105: 1647.25 | D105: 1651.530029 | E105: 1618.140015 | F105: 1632.109985 | G105: 33289800 | H105: 1632.109985 | I105: 1 | J105: 1 | K105: 1647.25 | L105: 1651.53 | M105: 1618.14 | N105: 1632.11 | O105: 33289800
A106: 91 | B106: 2018-10-04 | C106: 1671 | D106: 1671 | E106: 1643.660034 | F106: 1646.910034 | G106: 34968600 | H106: 1646.910034 | I106: 1 | J106: 1 | K106: 1671 | L106: 1671 | M106: 1643.66 | N106: 1646.91 | O106: 34968600
A107: 92 | B107: 2018-10-03 | C107: 1656.310059 | D107: 1677.170044 | E107: 1656.310059 | F107: 1671.290039 | G107: 35987100 | H107: 1671.290039 | I107: 1 | J107: 1 | K107: 1656.31 | L107: 1677.17 | M107: 1656.31 | N107: 1671.29 | O107: 35987100
A108: 93 | B108: 2018-10-02 | C108: 1672.97998 | D108: 1674.869995 | E108: 1653.339966 | F108: 1656.040039 | G108: 34018800 | H108: 1656.040039 | I108: 1 | J108: 1 | K108: 1672.98 | L108: 1674.87 | M108: 1653.34 | N108: 1656.04 | O108: 34018800
A109: 94 | B109: 2018-10-01 | C109: 1697.829956 | D109: 1703.810059 | E109: 1669.819946 | F109: 1672.98999 | G109: 33641900 | H109: 1672.98999 | I109: 1 | J109: 1 | K109: 1697.83 | L109: 1703.81 | M109: 1669.82 | N109: 1672.99 | O109: 33641900
A110: 95 | B110: 2018-09-28 | C110: 1689.839966 | D110: 1699.780029 | E110: 1686.98999 | F110: 1696.569946 | G110: 34323000 | H110: 1696.569946 | I110: 1 | J110: 1 | K110: 1689.84 | L110: 1699.78 | M110: 1686.99 | N110: 1696.57 | O110: 34323000
A111: 96 | B111: 2018-09-27 | C111: 1691.72998 | D111: 1697.170044 | E111: 1689.73999 | F111: 1690.530029 | G111: 30608500 | H111: 1690.530029 | I111: 1 | J111: 1 | K111: 1691.73 | L111: 1697.17 | M111: 1689.74 | N111: 1690.53 | O111: 30608500
A112: 97 | B112: 2018-09-26 | C112: 1709.069946 | D112: 1710.839966 | E112: 1690.920044 | F112: 1691.609985 | G112: 33886200 | H112: 1691.609985 | I112: 1 | J112: 1 | K112: 1709.07 | L112: 1710.84 | M112: 1690.92 | N112: 1691.61 | O112: 33886200
A113: 98 | B113: 2018-09-25 | C113: 1705.48999 | D113: 1712.079956 | E113: 1705.48999 | F113: 1708.810059 | G113: 32854800 | H113: 1708.810059 | I113: 1 | J113: 1 | K113: 1705.49 | L113: 1712.08 | M113: 1705.49 | N113: 1708.81 | O113: 32854800
A114: 99 | B114: 2018-09-24 | C114: 1711.670044 | D114: 1711.73999 | E114: 1697.76001 | F114: 1705.319946 | G114: 33722100 | H114: 1705.319946 | I114: 1 | J114: 1 | K114: 1711.67 | L114: 1711.74 | M114: 1697.76 | N114: 1705.32 | O114: 33722100
A115: 100 | B115: 2018-09-21 | C115: 1720.150024 | D115: 1724.380005 | E115: 1710.969971 | F115: 1712.319946 | G115: 56076100 | H115: 1712.319946 | I115: 1 | J115: 1 | K115: 1720.15 | L115: 1724.38 | M115: 1710.97 | N115: 1712.32 | O115: 56076100
A116: 101 | B116: 2018-09-20 | C116: 1704.709961 | D116: 1720.209961 | E116: 1704.709961 | F116: 1720.180054 | G116: 33377300 | H116: 1720.180054 | I116: 1 | J116: 1 | K116: 1704.71 | L116: 1720.21 | M116: 1704.71 | N116: 1720.18 | O116: 33377300
A117: 102 | B117: 2018-09-19 | C117: 1710.880005 | D117: 1717.089966 | E117: 1700.51001 | F117: 1702.930054 | G117: 32800200 | H117: 1702.930054 | I117: 1 | J117: 1 | K117: 1710.88 | L117: 1717.09 | M117: 1700.51 | N117: 1702.93 | O117: 32800200
A118: 103 | B118: 2018-09-18 | C118: 1704.219971 | D118: 1714.920044 | E118: 1704.219971 | F118: 1710.969971 | G118: 30746100 | H118: 1710.969971 | I118: 1 | J118: 1 | K118: 1704.22 | L118: 1714.92 | M118: 1704.22 | N118: 1710.97 | O118: 30746100
A119: 104 | B119: 2018-09-17 | C119: 1721.660034 | D119: 1722.280029 | E119: 1702.709961 | F119: 1703.550049 | G119: 29477600 | H119: 1703.550049 | I119: 1 | J119: 1 | K119: 1721.66 | L119: 1722.28 | M119: 1702.71 | N119: 1703.55 | O119: 29477600
A120: 105 | B120: 2018-09-14 | C120: 1714.48999 | D120: 1726 | E120: 1712.810059 | F120: 1721.719971 | G120: 31498000 | H120: 1721.719971 | I120: 1 | J120: 1 | K120: 1714.49 | L120: 1726 | M120: 1712.81 | N120: 1721.72 | O120: 31498000
A121: 106 | B121: 2018-09-13 | C121: 1716.949951 | D121: 1722.619995 | E121: 1711.939941 | F121: 1714.319946 | G121: 32549300 | H121: 1714.319946 | I121: 1 | J121: 1 | K121: 1716.95 | L121: 1722.62 | M121: 1711.94 | N121: 1714.32 | O121: 32549300
A122: 107 | B122: 2018-09-12 | C122: 1718.25 | D122: 1718.949951 | E122: 1704.069946 | F122: 1715.699951 | G122: 32649300 | H122: 1715.699951 | I122: 1 | J122: 1 | K122: 1718.25 | L122: 1718.95 | M122: 1704.07 | N122: 1715.7 | O122: 32649300
A123: 108 | B123: 2018-09-11 | C123: 1717.140015 | D123: 1723.459961 | E123: 1710.310059 | F123: 1718.400024 | G123: 28996600 | H123: 1718.400024 | I123: 1 | J123: 1 | K123: 1717.14 | L123: 1723.46 | M123: 1710.31 | N123: 1718.4 | O123: 28996600
A124: 109 | B124: 2018-09-10 | C124: 1714.890015 | D124: 1723.810059 | E124: 1714.48999 | F124: 1717.469971 | G124: 27314000 | H124: 1717.469971 | I124: 1 | J124: 1 | K124: 1714.89 | L124: 1723.81 | M124: 1714.49 | N124: 1717.47 | O124: 27314000
A125: 110 | B125: 2018-09-07 | C125: 1713.829956 | D125: 1722.619995 | E125: 1706.640015 | F125: 1713.180054 | G125: 29462700 | H125: 1713.180054 | I125: 1 | J125: 1 | K125: 1713.83 | L125: 1722.62 | M125: 1706.64 | N125: 1713.18 | O125: 29462700
A126: 111 | B126: 2018-09-06 | C126: 1728.25 | D126: 1731.420044 | E126: 1713.810059 | F126: 1714.469971 | G126: 31395900 | H126: 1714.469971 | I126: 1 | J126: 1 | K126: 1728.25 | L126: 1731.42 | M126: 1713.81 | N126: 1714.47 | O126: 31395900
A127: 112 | B127: 2018-09-05 | C127: 1732.72998 | D127: 1732.72998 | E127: 1713.689941 | F127: 1727.650024 | G127: 32412500 | H127: 1727.650024 | I127: 1 | J127: 1 | K127: 1732.73 | L127: 1732.73 | M127: 1713.69 | N127: 1727.65 | O127: 32412500
A128: 113 | B128: 2018-09-04 | C128: 1740.800049 | D128: 1740.800049 | E128: 1722.199951 | F128: 1733.380005 | G128: 30770600 | H128: 1733.380005 | I128: 1 | J128: 1 | K128: 1740.8 | L128: 1740.8 | M128: 1722.2 | N128: 1733.38 | O128: 30770600
A129: 114 | B129: 2018-08-31 | C129: 1731.48999 | D129: 1742.089966 | E129: 1728.410034 | F129: 1740.75 | G129: 28802600 | H129: 1740.75 | I129: 1 | J129: 1 | K129: 1731.49 | L129: 1742.09 | M129: 1728.41 | N129: 1740.75 | O129: 28802600
A130: 115 | B130: 2018-08-30 | C130: 1734.349976 | D130: 1740.660034 | E130: 1728.849976 | F130: 1732.349976 | G130: 28021800 | H130: 1732.349976 | I130: 1 | J130: 1 | K130: 1734.35 | L130: 1740.66 | M130: 1728.85 | N130: 1732.35 | O130: 28021800
A131: 116 | B131: 2018-08-29 | C131: 1729.050049 | D131: 1737.02002 | E131: 1724.72998 | F131: 1734.75 | G131: 27918600 | H131: 1734.75 | I131: 1 | J131: 1 | K131: 1729.05 | L131: 1737.02 | M131: 1724.73 | N131: 1734.75 | O131: 27918600
A132: 117 | B132: 2018-08-28 | C132: 1729.069946 | D132: 1733.449951 | E132: 1722.359985 | F132: 1728.420044 | G132: 26831900 | H132: 1728.420044 | I132: 1 | J132: 1 | K132: 1729.07 | L132: 1733.45 | M132: 1722.36 | N132: 1728.42 | O132: 26831900
A133: 118 | B133: 2018-08-27 | C133: 1727.329956 | D133: 1737.630005 | E133: 1727.329956 | F133: 1728.410034 | G133: 28540800 | H133: 1728.410034 | I133: 1 | J133: 1 | K133: 1727.33 | L133: 1737.63 | M133: 1727.33 | N133: 1728.41 | O133: 28540800
A134: 119 | B134: 2018-08-24 | C134: 1718.359985 | D134: 1726.969971 | E134: 1718.359985 | F134: 1725.670044 | G134: 25961900 | H134: 1725.670044 | I134: 1 | J134: 1 | K134: 1718.36 | L134: 1726.97 | M134: 1718.36 | N134: 1725.67 | O134: 25961900
A135: 120 | B135: 2018-08-23 | C135: 1722.300049 | D135: 1723.410034 | E135: 1712.920044 | F135: 1717.050049 | G135: 27139100 | H135: 1717.050049 | I135: 1 | J135: 1 | K135: 1722.3 | L135: 1723.41 | M135: 1712.92 | N135: 1717.05 | O135: 27139100
A136: 121 | B136: 2018-08-22 | C136: 1717.75 | D136: 1723.01001 | E136: 1715.800049 | F136: 1722.540039 | G136: 26895600 | H136: 1722.540039 | I136: 1 | J136: 1 | K136: 1717.75 | L136: 1723.01 | M136: 1715.8 | N136: 1722.54 | O136: 26895600
A137: 122 | B137: 2018-08-21 | C137: 1698.910034 | D137: 1722.290039 | E137: 1698.910034 | F137: 1718.050049 | G137: 31471400 | H137: 1718.050049 | I137: 1 | J137: 1 | K137: 1698.91 | L137: 1722.29 | M137: 1698.91 | N137: 1718.05 | O137: 31471400
A138: 123 | B138: 2018-08-20 | C138: 1693.790039 | D138: 1701.130005 | E138: 1690.180054 | F138: 1698.689941 | G138: 27480200 | H138: 1698.689941 | I138: 1 | J138: 1 | K138: 1693.79 | L138: 1701.13 | M138: 1690.18 | N138: 1698.69 | O138: 27480200
A139: 124 | B139: 2018-08-17 | C139: 1685.449951 | D139: 1693.709961 | E139: 1679.969971 | F139: 1692.949951 | G139: 30241000 | H139: 1692.949951 | I139: 1 | J139: 1 | K139: 1685.45 | L139: 1693.71 | M139: 1679.97 | N139: 1692.95 | O139: 30241000
A140: 125 | B140: 2018-08-16 | C140: 1691.599976 | D140: 1691.599976 | E140: 1663.530029 | F140: 1685.75 | G140: 32198800 | H140: 1685.75 | I140: 1 | J140: 1 | K140: 1691.6 | L140: 1691.6 | M140: 1663.53 | N140: 1685.75 | O140: 32198800
A141: 126 | B141: 2018-08-15 | C141: 1691.599976 | D141: 1691.599976 | E141: 1663.530029 | F141: 1670.670044 | G141: 36450700 | H141: 1670.670044 | I141: 1 | J141: 1 | K141: 1691.6 | L141: 1691.6 | M141: 1663.53 | N141: 1670.67 | O141: 36450700
A142: 127 | B142: 2018-08-14 | C142: 1676.189941 | D142: 1694.959961 | E142: 1676.189941 | F142: 1692.579956 | G142: 29769700 | H142: 1692.579956 | I142: 1 | J142: 1 | K142: 1676.19 | L142: 1694.96 | M142: 1676.19 | N142: 1692.58 | O142: 29769700
A143: 128 | B143: 2018-08-13 | C143: 1686.810059 | D143: 1689.099976 | E143: 1670.619995 | F143: 1675.319946 | G143: 31584500 | H143: 1675.319946 | I143: 1 | J143: 1 | K143: 1686.81 | L143: 1689.1 | M143: 1670.62 | N143: 1675.32 | O143: 31584500
A144: 129 | B144: 2018-08-10 | C144: 1689.319946 | D144: 1695.790039 | E144: 1680.77002 | F144: 1686.800049 | G144: 32560400 | H144: 1686.800049 | I144: 1 | J144: 1 | K144: 1689.32 | L144: 1695.79 | M144: 1680.77 | N144: 1686.8 | O144: 32560400
A145: 130 | B145: 2018-08-09 | C145: 1687.050049 | D145: 1696.75 | E145: 1686.430054 | F145: 1690.890015 | G145: 30470500 | H145: 1690.890015 | I145: =IF(F145=0,1,H145/F145) -> 1 | J145: =INDEX(OFFSET($T$15,0,0,$S$13+1,1),MATCH(B145,OFFSET($Q$15,0,0,$S$13+1,1),-1)) -> 1 | K145: =ROUND($I145*C145,2) -> 1687.05 | L145: =ROUND($I145*D145,2) -> 1696.75 | M145: =ROUND($I145*E145,2) -> 1686.43 | N145: =ROUND($I145*F145,2) -> 1690.89 | O145: =G145*J145 -> 30470500
A146: 131 | B146: 2018-08-08 | C146: 1688.680054 | D146: 1689.339966 | E146: 1677.670044 | F146: 1686.880005 | G146: 29722000 | H146: 1686.880005 | I146: 1 | J146: 1 | K146: 1688.68 | L146: 1689.34 | M146: 1677.67 | N146: 1686.88 | O146: 29722000
A147: 132 | B147: 2018-08-07 | C147: 1684.859985 | D147: 1694.359985 | E147: 1684.859985 | F147: 1688.300049 | G147: 31627700 | H147: 1688.300049 | I147: 1 | J147: 1 | K147: 1684.86 | L147: 1694.36 | M147: 1684.86 | N147: 1688.3 | O147: 31627700
A148: 133 | B148: 2018-08-06 | C148: 1673.25 | D148: 1684.800049 | E148: 1671.98999 | F148: 1684.310059 | G148: 28745400 | H148: 1684.310059 | I148: 1 | J148: 1 | K148: 1673.25 | L148: 1684.8 | M148: 1671.99 | N148: 1684.31 | O148: 28745400
A149: 134 | B149: 2018-08-03 | C149: 1682.079956 | D149: 1687.300049 | E149: 1668.349976 | F149: 1673.369995 | G149: 30303900 | H149: 1673.369995 | I149: 1 | J149: 1 | K149: 1682.08 | L149: 1687.3 | M149: 1668.35 | N149: 1673.37 | O149: 30303900
A150: 135 | B150: 2018-08-02 | C150: 1668.98999 | D150: 1682.300049 | E150: 1662.329956 | F150: 1682.099976 | G150: 34673800 | H150: 1682.099976 | I150: 1 | J150: 1 | K150: 1668.99 | L150: 1682.3 | M150: 1662.33 | N150: 1682.1 | O150: 34673800
A151: 136 | B151: 2018-08-01 | C151: 1670.869995 | D151: 1673.22998 | E151: 1657.540039 | F151: 1669.26001 | G151: 34969900 | H151: 1669.26001 | I151: 1 | J151: 1 | K151: 1670.87 | L151: 1673.23 | M151: 1657.54 | N151: 1669.26 | O151: 34969900
A152: 137 | B152: 2018-07-31 | C152: 1653.569946 | D152: 1675.650024 | E152: 1653.569946 | F152: 1670.800049 | G152: 38921000 | H152: 1670.800049 | I152: 1 | J152: 1 | K152: 1653.57 | L152: 1675.65 | M152: 1653.57 | N152: 1670.8 | O152: 38921000
A153: 138 | B153: 2018-07-30 | C153: 1663.390015 | D153: 1669.5 | E153: 1652.72998 | F153: 1653.130005 | G153: 32457700 | H153: 1653.130005 | I153: 1 | J153: 1 | K153: 1663.39 | L153: 1669.5 | M153: 1652.73 | N153: 1653.13 | O153: 32457700
A154: 139 | B154: 2018-07-27 | C154: 1695.25 | D154: 1697.300049 | E154: 1660.430054 | F154: 1663.339966 | G154: 34157100 | H154: 1663.339966 | I154: 1 | J154: 1 | K154: 1695.25 | L154: 1697.3 | M154: 1660.43 | N154: 1663.34 | O154: 34157100
A155: 140 | B155: 2018-07-26 | C155: 1685.23999 | D155: 1702.930054 | E155: 1684.75 | F155: 1695.359985 | G155: 36533300 | H155: 1695.359985 | I155: 1 | J155: 1 | K155: 1685.24 | L155: 1702.93 | M155: 1684.75 | N155: 1695.36 | O155: 36533300
A156: 141 | B156: 2018-07-25 | C156: 1680.339966 | D156: 1685.420044 | E156: 1675.050049 | F156: 1685.199951 | G156: 35530100 | H156: 1685.199951 | I156: 1 | J156: 1 | K156: 1680.34 | L156: 1685.42 | M156: 1675.05 | N156: 1685.2 | O156: 35530100
A157: 142 | B157: 2018-07-24 | C157: 1700.099976 | D157: 1706.829956 | E157: 1675.01001 | F157: 1680.199951 | G157: 34175300 | H157: 1680.199951 | I157: 1 | J157: 1 | K157: 1700.1 | L157: 1706.83 | M157: 1675.01 | N157: 1680.2 | O157: 34175300
A158: 143 | B158: 2018-07-23 | C158: 1696.420044 | D158: 1701.969971 | E158: 1690.530029 | F158: 1698.410034 | G158: 29074300 | H158: 1698.410034 | I158: 1 | J158: 1 | K158: 1696.42 | L158: 1701.97 | M158: 1690.53 | N158: 1698.41 | O158: 29074300
A159: 144 | B159: 2018-07-20 | C159: 1701.150024 | D159: 1703.430054 | E159: 1696.040039 | F159: 1696.810059 | G159: 32302100 | H159: 1696.810059 | I159: 1 | J159: 1 | K159: 1701.15 | L159: 1703.43 | M159: 1696.04 | N159: 1696.81 | O159: 32302100
A160: 145 | B160: 2018-07-19 | C160: 1691.199951 | D160: 1702.890015 | E160: 1686.26001 | F160: 1701.310059 | G160: 32667000 | H160: 1701.310059 | I160: 1 | J160: 1 | K160: 1691.2 | L160: 1702.89 | M160: 1686.26 | N160: 1701.31 | O160: 32667000
A161: 146 | B161: 2018-07-18 | C161: 1687.140015 | D161: 1692.02002 | E161: 1679.22998 | F161: 1691.869995 | G161: 30897800 | H161: 1691.869995 | I161: 1 | J161: 1 | K161: 1687.14 | L161: 1692.02 | M161: 1679.23 | N161: 1691.87 | O161: 30897800
A162: 147 | B162: 2018-07-17 | C162: 1678 | D162: 1690.040039 | E162: 1676.099976 | F162: 1687.26001 | G162: 30507300 | H162: 1687.26001 | I162: 1 | J162: 1 | K162: 1678 | L162: 1690.04 | M162: 1676.1 | N162: 1687.26 | O162: 30507300
A163: 148 | B163: 2018-07-16 | C163: 1687.060059 | D163: 1688.400024 | E163: 1672.420044 | F163: 1678.540039 | G163: 28122300 | H163: 1678.540039 | I163: 1 | J163: 1 | K163: 1687.06 | L163: 1688.4 | M163: 1672.42 | N163: 1678.54 | O163: 28122300
A164: 149 | B164: 2018-07-13 | C164: 1690.290039 | D164: 1697.400024 | E164: 1686.880005 | F164: 1687.079956 | G164: 26140000 | H164: 1687.079956 | I164: 1 | J164: 1 | K164: 1690.29 | L164: 1697.4 | M164: 1686.88 | N164: 1687.08 | O164: 26140000
A165: 150 | B165: 2018-07-12 | C165: 1685.170044 | D165: 1692.430054 | E165: 1679.26001 | F165: 1690.280029 | G165: 28216900 | H165: 1690.280029 | I165: 1 | J165: 1 | K165: 1685.17 | L165: 1692.43 | M165: 1679.26 | N165: 1690.28 | O165: 28216900
A166: 151 | B166: 2018-07-11 | C166: 1694.060059 | D166: 1696.02002 | E166: 1683.099976 | F166: 1683.660034 | G166: 29647400 | H166: 1683.660034 | I166: 1 | J166: 1 | K166: 1694.06 | L166: 1696.02 | M166: 1683.1 | N166: 1683.66 | O166: 29647400
A167: 152 | B167: 2018-07-10 | C167: 1704.829956 | D167: 1708.560059 | E167: 1689.349976 | F167: 1695.619995 | G167: 30638500 | H167: 1695.619995 | I167: 1 | J167: 1 | K167: 1704.83 | L167: 1708.56 | M167: 1689.35 | N167: 1695.62 | O167: 30638500
A168: 153 | B168: 2018-07-09 | C168: 1694.660034 | D168: 1704.839966 | E168: 1694.660034 | F168: 1704.599976 | G168: 30500400 | H168: 1704.599976 | I168: 1 | J168: 1 | K168: 1694.66 | L168: 1704.84 | M168: 1694.66 | N168: 1704.6 | O168: 30500400
A169: 154 | B169: 2018-07-06 | C169: 1679.449951 | D169: 1695.180054 | E169: 1678.569946 | F169: 1694.050049 | G169: 25547800 | H169: 1694.050049 | I169: 1 | J169: 1 | K169: 1679.45 | L169: 1695.18 | M169: 1678.57 | N169: 1694.05 | O169: 25547800
A170: 155 | B170: 2018-07-05 | C170: 1660.650024 | D170: 1679.660034 | E170: 1660.650024 | F170: 1679.47998 | G170: 29534200 | H170: 1679.47998 | I170: 1 | J170: 1 | K170: 1660.65 | L170: 1679.66 | M170: 1660.65 | N170: 1679.48 | O170: 29534200
A171: 156 | B171: 2018-07-03 | C171: 1655.400024 | D171: 1667.52002 | E171: 1655.400024 | F171: 1660.420044 | G171: 19114700 | H171: 1660.420044 | I171: 1 | J171: 1 | K171: 1655.4 | L171: 1667.52 | M171: 1655.4 | N171: 1660.42 | O171: 19114700
A172: 157 | B172: 2018-07-02 | C172: 1641.72998 | D172: 1655.089966 | E172: 1631.060059 | F172: 1655.089966 | G172: 30736500 | H172: 1655.089966 | I172: 1 | J172: 1 | K172: 1641.73 | L172: 1655.09 | M172: 1631.06 | N172: 1655.09 | O172: 30736500
A173: 158 | B173: 2018-06-29 | C173: 1645.900024 | D173: 1656.050049 | E173: 1642.969971 | F173: 1643.069946 | G173: 35656200 | H173: 1643.069946 | I173: 1 | J173: 1 | K173: 1645.9 | L173: 1656.05 | M173: 1642.97 | N173: 1643.07 | O173: 35656200
A174: 159 | B174: 2018-06-28 | C174: 1640.369995 | D174: 1647.939941 | E174: 1630.060059 | F174: 1645.02002 | G174: 34281400 | H174: 1645.02002 | I174: 1 | J174: 1 | K174: 1640.37 | L174: 1647.94 | M174: 1630.06 | N174: 1645.02 | O174: 34281400
A175: 160 | B175: 2018-06-27 | C175: 1668.939941 | D175: 1671.469971 | E175: 1640.420044 | F175: 1640.449951 | G175: 37760900 | H175: 1640.449951 | I175: 1 | J175: 1 | K175: 1668.94 | L175: 1671.47 | M175: 1640.42 | N175: 1640.45 | O175: 37760900
A176: 161 | B176: 2018-06-26 | C176: 1657.709961 | D176: 1672.160034 | E176: 1656.119995 | F176: 1668.530029 | G176: 35550900 | H176: 1668.530029 | I176: 1 | J176: 1 | K176: 1657.71 | L176: 1672.16 | M176: 1656.12 | N176: 1668.53 | O176: 35550900
A177: 162 | B177: 2018-06-25 | C177: 1684.76001 | D177: 1684.76001 | E177: 1649.810059 | F177: 1657.51001 | G177: 36550800 | H177: 1657.51001 | I177: 1 | J177: 1 | K177: 1684.76 | L177: 1684.76 | M177: 1649.81 | N177: 1657.51 | O177: 36550800
A178: 163 | B178: 2018-06-22 | C178: 1690.280029 | D178: 1696.369995 | E178: 1680.910034 | F178: 1685.579956 | G178: 54505500 | H178: 1685.579956 | I178: 1 | J178: 1 | K178: 1690.28 | L178: 1696.37 | M178: 1680.91 | N178: 1685.58 | O178: 54505500
A179: 164 | B179: 2018-06-21 | C179: 1706.98999 | D179: 1708.02002 | E179: 1685.589966 | F179: 1688.949951 | G179: 33000600 | H179: 1688.949951 | I179: 1 | J179: 1 | K179: 1706.99 | L179: 1708.02 | M179: 1685.59 | N179: 1688.95 | O179: 33000600
A180: 165 | B180: 2018-06-20 | C180: 1694.040039 | D180: 1708.099976 | E180: 1694.040039 | F180: 1706.98999 | G180: 33276000 | H180: 1706.98999 | I180: 1 | J180: 1 | K180: 1694.04 | L180: 1708.1 | M180: 1694.04 | N180: 1706.99 | O180: 33276000
A181: 166 | B181: 2018-06-19 | C181: 1692.01001 | D181: 1694 | E181: 1672.660034 | F181: 1693.449951 | G181: 36614700 | H181: 1693.449951 | I181: 1 | J181: 1 | K181: 1692.01 | L181: 1694 | M181: 1672.66 | N181: 1693.45 | O181: 36614700
A182: 167 | B182: 2018-06-18 | C182: 1683.51001 | D182: 1692.459961 | E182: 1674.410034 | F182: 1692.459961 | G182: 32871500 | H182: 1692.459961 | I182: 1 | J182: 1 | K182: 1683.51 | L182: 1692.46 | M182: 1674.41 | N182: 1692.46 | O182: 32871500
A183: 168 | B183: 2018-06-15 | C183: 1684.23999 | D183: 1684.630005 | E183: 1672.98999 | F183: 1683.910034 | G183: 54287900 | H183: 1683.910034 | I183: 1 | J183: 1 | K183: 1684.24 | L183: 1684.63 | M183: 1672.99 | N183: 1683.91 | O183: 54287900
A184: 169 | B184: 2018-06-14 | C184: 1677.030029 | D184: 1684.72998 | E184: 1674.530029 | F184: 1684.719971 | G184: 35268900 | H184: 1684.719971 | I184: 1 | J184: 1 | K184: 1677.03 | L184: 1684.73 | M184: 1674.53 | N184: 1684.72 | O184: 35268900
A185: 170 | B185: 2018-06-13 | C185: 1682.719971 | D185: 1684.839966 | E185: 1673.920044 | F185: 1676.540039 | G185: 37792300 | H185: 1676.540039 | I185: 1 | J185: 1 | K185: 1682.72 | L185: 1684.84 | M185: 1673.92 | N185: 1676.54 | O185: 37792300
A186: 171 | B186: 2018-06-12 | C186: 1674.939941 | D186: 1686.369995 | E186: 1674.939941 | F186: 1682.300049 | G186: 34010100 | H186: 1682.300049 | I186: 1 | J186: 1 | K186: 1674.94 | L186: 1686.37 | M186: 1674.94 | N186: 1682.3 | O186: 34010100
A187: 172 | B187: 2018-06-11 | C187: 1672.5 | D187: 1677.680054 | E187: 1671.26001 | F187: 1674.680054 | G187: 32323300 | H187: 1674.680054 | I187: 1 | J187: 1 | K187: 1672.5 | L187: 1677.68 | M187: 1671.26 | N187: 1674.68 | O187: 32323300
A188: 173 | B188: 2018-06-08 | C188: 1667.609985 | D188: 1674.069946 | E188: 1665.72998 | F188: 1672.48999 | G188: 31232100 | H188: 1672.48999 | I188: 1 | J188: 1 | K188: 1667.61 | L188: 1674.07 | M188: 1665.73 | N188: 1672.49 | O188: 31232100
A189: 174 | B189: 2018-06-07 | C189: 1676.52002 | D189: 1679.98999 | E189: 1660.890015 | F189: 1667.77002 | G189: 37113300 | H189: 1667.77002 | I189: 1 | J189: 1 | K189: 1676.52 | L189: 1679.99 | M189: 1660.89 | N189: 1667.77 | O189: 37113300
A190: 175 | B190: 2018-06-06 | C190: 1665.199951 | D190: 1676.180054 | E190: 1664.449951 | F190: 1675.949951 | G190: 36516400 | H190: 1675.949951 | I190: 1 | J190: 1 | K190: 1665.2 | L190: 1676.18 | M190: 1664.45 | N190: 1675.95 | O190: 36516400
A191: 176 | B191: 2018-06-05 | C191: 1653.689941 | D191: 1664.689941 | E191: 1652.76001 | F191: 1664.630005 | G191: 35177900 | H191: 1664.630005 | I191: 1 | J191: 1 | K191: 1653.69 | L191: 1664.69 | M191: 1652.76 | N191: 1664.63 | O191: 35177900
A192: 177 | B192: 2018-06-04 | C192: 1649.199951 | D192: 1655.709961 | E192: 1641.219971 | F192: 1653.369995 | G192: 33765100 | H192: 1653.369995 | I192: 1 | J192: 1 | K192: 1649.2 | L192: 1655.71 | M192: 1641.22 | N192: 1653.37 | O192: 33765100
A193: 178 | B193: 2018-06-01 | C193: 1635.400024 | D193: 1650.5 | E193: 1635.400024 | F193: 1647.97998 | G193: 36841300 | H193: 1647.97998 | I193: 1 | J193: 1 | K193: 1635.4 | L193: 1650.5 | M193: 1635.4 | N193: 1647.98 | O193: 36841300
A194: 179 | B194: 2018-05-31 | C194: 1647.969971 | D194: 1649.72998 | E194: 1632.25 | F194: 1633.609985 | G194: 42353700 | H194: 1633.609985 | I194: 1 | J194: 1 | K194: 1647.97 | L194: 1649.73 | M194: 1632.25 | N194: 1633.61 | O194: 42353700
A195: 180 | B195: 2018-05-30 | C195: 1624.030029 | D195: 1651.109985 | E195: 1624.030029 | F195: 1647.98999 | G195: 35610500 | H195: 1647.98999 | I195: 1 | J195: 1 | K195: 1624.03 | L195: 1651.11 | M195: 1624.03 | N195: 1647.99 | O195: 35610500
A196: 181 | B196: 2018-05-29 | C196: 1625.569946 | D196: 1628.47998 | E196: 1611.319946 | F196: 1623.650024 | G196: 37368900 | H196: 1623.650024 | I196: 1 | J196: 1 | K196: 1625.57 | L196: 1628.48 | M196: 1611.32 | N196: 1623.65 | O196: 37368900
A197: 182 | B197: 2018-05-25 | C197: 1627.930054 | D197: 1628.72998 | E197: 1623.329956 | F197: 1626.930054 | G197: 29952600 | H197: 1626.930054 | I197: 1 | J197: 1 | K197: 1627.93 | L197: 1628.73 | M197: 1623.33 | N197: 1626.93 | O197: 29952600
A198: 183 | B198: 2018-05-24 | C198: 1627.219971 | D198: 1630.310059 | E198: 1616.589966 | F198: 1628.219971 | G198: 32560300 | H198: 1628.219971 | I198: 1 | J198: 1 | K198: 1627.22 | L198: 1630.31 | M198: 1616.59 | N198: 1628.22 | O198: 32560300
A199: 184 | B199: 2018-05-23 | C199: 1624.920044 | D199: 1629.400024 | E199: 1618.560059 | F199: 1627.609985 | G199: 33262900 | H199: 1627.609985 | I199: 1 | J199: 1 | K199: 1624.92 | L199: 1629.4 | M199: 1618.56 | N199: 1627.61 | O199: 33262900
A200: 185 | B200: 2018-05-22 | C200: 1637.650024 | D200: 1639.890015 | E200: 1625.23999 | F200: 1625.23999 | G200: 33663100 | H200: 1625.23999 | I200: 1 | J200: 1 | K200: 1637.65 | L200: 1639.89 | M200: 1625.24 | N200: 1625.24 | O200: 33663100
... 4300 more rows

Sheet CalculationsAndCharts
A1: Adaptive Exponential Moving Average | R1: Clutter Controls
A2: =InputPriceData!A1 -> Russell 2000 (^RUT) -Chicago Options (Daily)
R3: Moving Averages
A4: User Charting Controls | E4: Click to Shift Chart One Bar: | S4: FALSE
A5: Data Control | S5: TRUE
A6: =InputPriceData!$B$10 -> 7922 | B6: Available Input Data Rows | E6: Earliest: | F6: =OFFSET(InputPriceData!B15,CalculationsAndCharts!A6,0,1,1) -> 1987-09-10 | S6: FALSE
B7: Use Close Adjusted: | C7: TRUE | E7: Latest: | F7: =OFFSET(InputPriceData!B15,1,0,1,1) -> 2019-02-14 | S7: TRUE
A8: =MIN(A6-A11,LOOKUP(2,1/(B:B<>0),ROW(A:A))-32) -> 1000 | B8: Logically Available for Calc / Plot | E8: $ Change: | F8: =G33-G34 -> -13.42
R9: Crossover Combinations
F10: Y-axis Range | S10: FALSE
A11: 282 | B11: Input Data Offset (Pan) | E11: Max High+ | F11: =CEILING(MAX(MAX(OFFSET($E$33,0,0,$A$12,1)))+2*F14,0.1) -> 1600.1 | S11: FALSE
A12: 300 | B12: Data Points to Plot (Zoom) | E12: Min Low- | F12: =FLOOR(MIN(MIN(OFFSET($F$33,0,0,$A$12,1)))-2*F14,0.1) -> 1115.6 | S12: TRUE
B13: First: | C13: =OFFSET(B32,A12,0,1,1) -> 2016-10-21 | E13: White space %: | F13: 0.05 | S13: FALSE
B14: ="Last: " & IF(OFFSET(InputPriceData!P15,1+A11,0,1,1)="","",TEXT(OFFSET(InputPriceData!P15,1+A11,0,1,1),"H:MM AM/PM")) -> Last: | C14: =B33 -> 2017-12-29 | E14: Allowance: | F14: =FLOOR((CEILING(MAX(MAX(OFFSET($E$33,0,0,$A$12,1))),1)-FLOOR(MIN(MIN(OFFSET($F$33,0,0,$A$12,1))),1))*F13,0.01) -> 20.2
A15: User Controls
C16: Alpha | D16: 1-Alpha
A17: Main | C17: (MLTP1)
A18: 10 | B18: Periods | C18: =2/(A18+1) -> 0.1818181818 | D18: =1-C18 -> 0.8181818182
A19: 10 | B19: PDS
A20: Second Calc For Crossovers
A21: 50 | B21: Periods | C21: =2/(A21+1) -> 0.03921568627 | D21: =1-C21 -> 0.9607843137
A22: 50 | B22: PDS
A25: Help! I would like to plot data
A26: From | B26: 2017-11-03 | C26: =OFFSET(InputPriceData!$A$15,MATCH(B26,OFFSET(InputPriceData!B15,1,0,InputPriceData!$B$10,1),0),0,1,1)-C27 -> 39 | E26: 262
A27: To | B27: 2017-12-29 | C27: =OFFSET(InputPriceData!$A$15,MATCH(B27,OFFSET(InputPriceData!$B$15,1,0,InputPriceData!$B$10,1),0),0,1,1)-1 -> 282 | E27: =$A$12-$E$26+1 -> 39
H28: @ Cursor => | I28: =OFFSET(A32,$E$27,0,1,1)&"(RR)" -> 39(RR) | J28: =OFFSET($B$32,E27,0,1,1) -> 2017-11-03 | K28: =TEXT(OFFSET(D32,$E$27,0,1,1),"#,##0.00")&"(o)" -> 1,496.32(o) | L28: =TEXT(OFFSET(E32,$E$27,0,1,1),"#,##0.00")&"(h)" -> 1,497.14(h) | M28: =TEXT(OFFSET(F32,$E$27,0,1,1),"#,##0.00")&"(l)" -> 1,490.66(l) | N28: =TEXT(OFFSET(G32,$E$27,0,1,1),"#,##0.00")&"(c)" -> 1,494.91(c)
E29: Cursor ==> | Y29: Chart Clutter Work Areas | AU29: Chart Cursor work area
T30: CrossOver pairings | AC30: =$AC31&" " &AC32 -> EMA(10)::AEMA(10, 10) Up | AD30: =$AC31&" " &AD32 -> EMA(10)::AEMA(10, 10) Dn | AE30: =$AE31&" " &AE32 -> EMA(10)::EMA(50)x Up | AF30: =$AE31&" " &AF32 -> EMA(10)::EMA(50)x Dn | AG30: =$AG31&" " &AG32 -> AEMA(10, 10)::AEMA(50, 50)x Up | AH30: =$AG31&" " &AH32 -> AEMA(10, 10)::AEMA(50, 50)x Dn | AI30: =$AI31&" " &AI32 -> EMA(50)x::AEMA(50, 50)x Up | AJ30: =$AI31&" " &AJ32 -> EMA(50)x::AEMA(50, 50)x Dn
A31: Rel Row | H31: Main AEMA Calc Area | N31: Second Calc Area for Crossover Comparisons | T31: =H32&"::"&M32 -> EMA(10)::AEMA(10, 10) | V31: =M32&"::"&S32 -> AEMA(10, 10)::AEMA(50, 50)x | Y31: Main | AA31: Xover | AC31: =T31 -> EMA(10)::AEMA(10, 10) | AE31: =U32 -> EMA(10)::EMA(50)x | AG31: =V31 -> AEMA(10, 10)::AEMA(50, 50)x | AI31: =W32 -> EMA(50)x::AEMA(50, 50)x | AP31: Used To Color Vol Bars
B32: Date | C32: Volume | D32: Open | E32: High | F32: Low | G32: Close | H32: ="EMA(" & $A$18 & ")" -> EMA(10) | I32: ="HHV(" & $A$19 & ")" -> HHV(10) | J32: ="LLV(" & $A$19 & ")" -> LLV(10) | K32: ="MLTP2(" & $A$19 & ")" -> MLTP2(10) | L32: ="Rate(" & $A$18 &", " & $A$19 & ")" -> Rate(10, 10) | M32: ="AEMA(" & $A$18 &", " & $A$19 & ")" -> AEMA(10, 10) | N32: ="EMA(" & $A$21 & ")x" -> EMA(50)x | O32: ="HHV(" & $A$22 & ")x" -> HHV(50)x | P32: ="LLV(" & $A$22 & ")x" -> LLV(50)x | Q32: ="MLTP2(" & $A$22 & ")x" -> MLTP2(50)x | R32: ="Rate(" & $A$21 &", " & $A$22 & ")x" -> Rate(50, 50)x | S32: ="AEMA(" & $A$21 &", " & $A$22 & ")x" -> AEMA(50, 50)x | U32: =H32&"::"&N32 -> EMA(10)::EMA(50)x | W32: =N32&"::"&S32 -> EMA(50)x::AEMA(50, 50)x | Y32: =H32 -> EMA(10) | Z32: =M32 -> AEMA(10, 10) | AA32: =N32 -> EMA(50)x | AB32: =S32 -> AEMA(50, 50)x | AC32: Up | AD32: Dn | AE32: Up | AF32: Dn | AG32: Up | AH32: Dn | AI32: Up | AJ32: Dn | AP32: Up Vol | AQ32: Dn Vol | AU32: Volume Cursor | AV32: =MAX(OFFSET(C33,0,0,A12,1)) -> 64516400 | AW32: Oscillator Cursor | AY32: Price Chart Cursor
A33: 1 | B33: =OFFSET(InputPriceData!B$15,CalculationsAndCharts!$A33+$A$11,0,1,1) -> 2017-12-29 | C33: =OFFSET(InputPriceData!G$15,CalculationsAndCharts!$A33+$A$11,IF($C$7,8,0),1,1) -> 24434900 | D33: =OFFSET(InputPriceData!C$15,CalculationsAndCharts!$A33+$A$11,IF($C$7,8,0),1,1) -> 1549.06 | E33: =OFFSET(InputPriceData!D$15,CalculationsAndCharts!$A33+$A$11,IF($C$7,8,0),1,1) -> 1551.94 | F33: =OFFSET(InputPriceData!E$15,CalculationsAndCharts!$A33+$A$11,IF($C$7,8,0),1,1) -> 1535.51 | G33: =OFFSET(InputPriceData!F$15,CalculationsAndCharts!$A33+$A$11,IF($C$7,8,0),1,1) -> 1535.51 | H33: =$G33*$C$18+$D$18*H34 -> 1539.099205 | I33: =MAX(OFFSET($E33,0,0,$A$19,1)) -> 1552.32 | J33: =MIN(OFFSET($F33,0,0,$A$19,1)) -> 1507.68 | K33: =ABS(($G33-J33)-(I33-$G33))/(I33-J33) -> 0.2468637993 | L33: =$C$18*(1+K33) -> 0.226702509 | M33: =M34+L33*($G33-M34) -> 1542.225437 | N33: =$G33*$C$21+$D$21*N34 -> 1513.167785 | O33: =MAX(OFFSET($E33,0,0,$A$22,1)) -> 1559.61 | P33: =MIN(OFFSET($F33,0,0,$A$22,1)) -> 1454.17 | Q33: =ABS(($G33-P33)-(O33-$G33))/(O33-P33) -> 0.5428679818 | R33: =$C$21*(1+Q33) -> 0.06050462674 | S33: =S34+R33*($G33-S34) -> 1526.679886 | T33: =IF(AND($H34>$M34,$H33<$M33),"Up",IF(AND($H34<$M34,$H33>$M33),"Dn","")) ->  | U33: =IF(AND($H34<$N34,$H33>$N33),"Up",IF(AND($H34>$N34,$H33<$N33),"Dn","")) ->  | V33: =IF(AND($M34<$S34,$M33>$S33),"Up",IF(AND($M34>$S34,$M33<$S33),"Dn","")) ->  | W33: =IF(AND($N34>$S34,$N33<$S33),"Up",IF(AND($N34<$S34,$N33>$S33),"Dn","")) ->  | Y33: =IF($S$4,H33,NA()) ->  | Z33: =IF($S$5,M33,NA()) -> 1542.225437 | AA33: =IF($S$6,N33,NA()) ->  | AB33: =IF($S$7,S33,NA()) -> 1526.679886 | AC33: =IF(AND($S$10,$T33="Up"),$AZ$34,NA()) ->  | AD33: =IF(AND($S$10,$T33="Dn"),$AZ$34,NA()) ->  | AE33: =IF(AND($S$11,$U33="Up"),$H33,NA()) ->  | AF33: =IF(AND($S$11,$U33="Dn"),$H33,NA()) ->  | AG33: =IF(AND($S$12,$V33="Up"),M33,NA()) ->  | AH33: =IF(AND($S$12,$V33="Dn"),M33,NA()) ->  | AI33: =IF(AND($S$13,$W33="Up"),$AZ$34,NA()) ->  | AJ33: =IF(AND($S$13,$W33="Dn"),$AZ$34,NA()) ->  | AP33: =IF(G33>=D33,C33,NA()) ->  | AQ33: =IF(G33<D33,C33,NA()) -> 24434900 | AU33: =$E$27 -> 39 | AV33: 0 | AW33: =$E$27 -> 39 | AX33: -6 | AY33: =E27 -> 39 | AZ33: 1127.178
A34: 2 | B34: =OFFSET(InputPriceData!B$15,CalculationsAndCharts!$A34+$A$11,0,1,1) -> 2017-12-28 | C34: =OFFSET(InputPriceData!G$15,CalculationsAndCharts!$A34+$A$11,IF($C$7,8,0),1,1) -> 21533300 | D34: =OFFSET(InputPriceData!C$15,CalculationsAndCharts!$A34+$A$11,IF($C$7,8,0),1,1) -> 1544.05 | E34: =OFFSET(InputPriceData!D$15,CalculationsAndCharts!$A34+$A$11,IF($C$7,8,0),1,1) -> 1549.04 | F34: =OFFSET(InputPriceData!E$15,CalculationsAndCharts!$A34+$A$11,IF($C$7,8,0),1,1) -> 1542.52 | G34: =OFFSET(InputPriceData!F$15,CalculationsAndCharts!$A34+$A$11,IF($C$7,8,0),1,1) -> 1548.93 | H34: =G34*$C$18+$D$18*H35 -> 1539.896806 | I34: =MAX(OFFSET(E34,0,0,$A$19,1)) -> 1552.32 | J34: =MIN(OFFSET(F34,0,0,$A$19,1)) -> 1504.89 | K34: =ABS((G34-J34)-(I34-G34))/(I34-J34) -> 0.8570524984 | L34: =$C$18*(1+K34) -> 0.3376459088 | M34: =M35+L34*(G34-M35) -> 1544.194157 | N34: =$G34*$C$21+$D$21*N35 -> 1512.255857 | O34: =MAX(OFFSET($E34,0,0,$A$22,1)) -> 1559.61 | P34: =MIN(OFFSET($F34,0,0,$A$22,1)) -> 1454.17 | Q34: =ABS(($G34-P34)-(O34-$G34))/(O34-P34) -> 0.7974203338 | R34: =$C$21*(1+Q34) -> 0.07048707192 | S34: =S35+R34*($G34-S35) -> 1526.111216 | T34: =IF(AND($H35>$M35,$H34<$M34),"Up",IF(AND($H35<$M35,$H34>$M34),"Dn","")) ->  | U34: =IF(AND($H35<$N35,$H34>$N34),"Up",IF(AND($H35>$N35,$H34<$N34),"Dn","")) ->  | V34: =IF(AND($M35<$S35,$M34>$S34),"Up",IF(AND($M35>$S35,$M34<$S34),"Dn","")) ->  | W34: =IF(AND($N35>$S35,$N34<$S34),"Up",IF(AND($N35<$S35,$N34>$S34),"Dn","")) ->  | Y34: =IF($S$4,H34,NA()) ->  | Z34: =IF($S$5,M34,NA()) -> 1544.194157 | AA34: =IF($S$6,N34,NA()) ->  | AB34: =IF($S$7,S34,NA()) -> 1526.111216 | AC34: =IF(AND($S$10,$T34="Up"),$AZ$34,NA()) ->  | AD34: =IF(AND($S$10,$T34="Dn"),$AZ$34,NA()) ->  | AE34: =IF(AND($S$11,$U34="Up"),$H34,NA()) ->  | AF34: =IF(AND($S$11,$U34="Dn"),$H34,NA()) ->  | AG34: =IF(AND($S$12,$V34="Up"),M34,NA()) ->  | AH34: =IF(AND($S$12,$V34="Dn"),M34,NA()) ->  | AI34: =IF(AND($S$13,$W34="Up"),$AZ$34,NA()) ->  | AJ34: =IF(AND($S$13,$W34="Dn"),$AZ$34,NA()) ->  | AP34: =IF(G34>=D34,C34,NA()) -> 21533300 | AQ34: =IF(G34<D34,C34,NA()) ->  | AU34: =$E$27 -> 39 | AV34: =CEILING(AV32,10^INT(LOG10(AV32))) -> 70000000 | AW34: =$E$27 -> 39 | AX34: 6 | AY34: =E27 -> 39 | AZ34: 1598.60025
A35: 3 | B35: =OFFSET(InputPriceData!B$15,CalculationsAndCharts!$A35+$A$11,0,1,1) -> 2017-12-27 | C35: =OFFSET(InputPriceData!G$15,CalculationsAndCharts!$A35+$A$11,IF($C$7,8,0),1,1) -> 22020800 | D35: =OFFSET(InputPriceData!C$15,CalculationsAndCharts!$A35+$A$11,IF($C$7,8,0),1,1) -> 1544.39 | E35: =OFFSET(InputPriceData!D$15,CalculationsAndCharts!$A35+$A$11,IF($C$7,8,0),1,1) -> 1550.62 | F35: =OFFSET(InputPriceData!E$15,CalculationsAndCharts!$A35+$A$11,IF($C$7,8,0),1,1) -> 1541.95 | G35: =OFFSET(InputPriceData!F$15,CalculationsAndCharts!$A35+$A$11,IF($C$7,8,0),1,1) -> 1543.94 | H35: 1537.889429 | I35: 1552.32 | J35: 1504.89 | K35: 0.6466371495 | L35: 0.2993885726 | M35: 1541.779983 | N35: 1510.758954 | O35: 1559.61 | P35: 1454.17 | Q35: 0.7027693475 | R35: 0.06677526853 | S35: 1524.380816 | Z35: 1541.779983 | AB35: 1524.380816 | AP35: =IF(G35>=D35,C35,NA()) ->  | AQ35: =IF(G35<D35,C35,NA()) -> 22020800
A36: 4 | B36: =OFFSET(InputPriceData!B$15,CalculationsAndCharts!$A36+$A$11,0,1,1) -> 2017-12-26 | C36: =OFFSET(InputPriceData!G$15,CalculationsAndCharts!$A36+$A$11,IF($C$7,8,0),1,1) -> 19687800 | D36: =OFFSET(InputPriceData!C$15,CalculationsAndCharts!$A36+$A$11,IF($C$7,8,0),1,1) -> 1542.74 | E36: =OFFSET(InputPriceData!D$15,CalculationsAndCharts!$A36+$A$11,IF($C$7,8,0),1,1) -> 1546.59 | F36: =OFFSET(InputPriceData!E$15,CalculationsAndCharts!$A36+$A$11,IF($C$7,8,0),1,1) -> 1541.21 | G36: =OFFSET(InputPriceData!F$15,CalculationsAndCharts!$A36+$A$11,IF($C$7,8,0),1,1) -> 1544.23 | H36: 1536.544858 | I36: 1552.32 | J36: 1504.89 | K36: 0.6588656968 | L36: 0.3016119449 | M36: 1540.856954 | N36: 1509.404625 | O36: 1559.61 | P36: 1454.17 | Q36: 0.7082701062 | R36: 0.06699098456 | S36: 1522.981292 | Z36: 1540.856954 | AB36: 1522.981292 | AP36: =IF(G36>=D36,C36,NA()) -> 19687800 | AQ36: =IF(G36<D36,C36,NA()) -> 
A37: 5 | B37: =OFFSET(InputPriceData!B$15,CalculationsAndCharts!$A37+$A$11,0,1,1) -> 2017-12-22 | C37: =OFFSET(InputPriceData!G$15,CalculationsAndCharts!$A37+$A$11,IF($C$7,8,0),1,1) -> 23998300 | D37: =OFFSET(InputPriceData!C$15,CalculationsAndCharts!$A37+$A$11,IF($C$7,8,0),1,1) -> 1547.24 | E37: =OFFSET(InputPriceData!D$15,CalculationsAndCharts!$A37+$A$11,IF($C$7,8,0),1,1) -> 1548.25 | F37: =OFFSET(InputPriceData!E$15,CalculationsAndCharts!$A37+$A$11,IF($C$7,8,0),1,1) -> 1541.7 | G37: =OFFSET(InputPriceData!F$15,CalculationsAndCharts!$A37+$A$11,IF($C$7,8,0),1,1) -> 1542.93 | H37: 1534.837048 | I37: 1552.32 | J37: 1504.89 | K37: 0.6040480708 | L37: 0.2916451038 | M37: 1539.400241 | N37: 1507.983181 | O37: 1559.61 | P37: 1454.17 | Q37: 0.6836115326 | R37: 0.06602398167 | S37: 1521.455614 | Z37: 1539.400241 | AB37: 1521.455614 | AQ37: 23998300
A38: 6 | B38: =OFFSET(InputPriceData!B$15,CalculationsAndCharts!$A38+$A$11,0,1,1) -> 2017-12-21 | C38: =OFFSET(InputPriceData!G$15,CalculationsAndCharts!$A38+$A$11,IF($C$7,8,0),1,1) -> 32733900 | D38: =OFFSET(InputPriceData!C$15,CalculationsAndCharts!$A38+$A$11,IF($C$7,8,0),1,1) -> 1540.46 | E38: =OFFSET(InputPriceData!D$15,CalculationsAndCharts!$A38+$A$11,IF($C$7,8,0),1,1) -> 1551.21 | F38: =OFFSET(InputPriceData!E$15,CalculationsAndCharts!$A38+$A$11,IF($C$7,8,0),1,1) -> 1540.46 | G38: =OFFSET(InputPriceData!F$15,CalculationsAndCharts!$A38+$A$11,IF($C$7,8,0),1,1) -> 1547.11 | H38: 1533.038615 | I38: 1552.32 | J38: 1504.89 | K38: 0.7803078221 | L38: 0.3236923313 | M38: 1537.946963 | N38: 1506.556781 | O38: 1559.61 | P38: 1454.17 | Q38: 0.7628983308 | R38: 0.06913326787 | S38: 1519.937562 | Z38: 1537.946963 | AB38: 1519.937562 | AP38: 32733900
A39: 7 | B39: =OFFSET(InputPriceData!B$15,CalculationsAndCharts!$A39+$A$11,0,1,1) -> 2017-12-20 | C39: =OFFSET(InputPriceData!G$15,CalculationsAndCharts!$A39+$A$11,IF($C$7,8,0),1,1) -> 32410300 | D39: =OFFSET(InputPriceData!C$15,CalculationsAndCharts!$A39+$A$11,IF($C$7,8,0),1,1) -> 1538.74 | E39: =OFFSET(InputPriceData!D$15,CalculationsAndCharts!$A39+$A$11,IF($C$7,8,0),1,1) -> 1544.35 | F39: =OFFSET(InputPriceData!E$15,CalculationsAndCharts!$A39+$A$11,IF($C$7,8,0),1,1) -> 1536.23 | G39: =OFFSET(InputPriceData!F$15,CalculationsAndCharts!$A39+$A$11,IF($C$7,8,0),1,1) -> 1540.08 | H39: 1529.91164 | I39: 1552.32 | J39: 1504.89 | K39: 0.4838709677 | L39: 0.2697947214 | M39: 1533.561378 | N39: 1504.901547 | O39: 1559.61 | P39: 1454.17 | Q39: 0.629552352 | R39: 0.06390401381 | S39: 1517.919529 | Z39: 1533.561378 | AB39: 1517.919529 | AP39: 32410300
A40: 8 | B40: =OFFSET(InputPriceData!B$15,CalculationsAndCharts!$A40+$A$11,0,1,1) -> 2017-12-19 | C40: =OFFSET(InputPriceData!G$15,CalculationsAndCharts!$A40+$A$11,IF($C$7,8,0),1,1) -> 33685900 | D40: =OFFSET(InputPriceData!C$15,CalculationsAndCharts!$A40+$A$11,IF($C$7,8,0),1,1) -> 1549.32 | E40: =OFFSET(InputPriceData!D$15,CalculationsAndCharts!$A40+$A$11,IF($C$7,8,0),1,1) -> 1552.21 | F40: =OFFSET(InputPriceData!E$15,CalculationsAndCharts!$A40+$A$11,IF($C$7,8,0),1,1) -> 1535.91 | G40: =OFFSET(InputPriceData!F$15,CalculationsAndCharts!$A40+$A$11,IF($C$7,8,0),1,1) -> 1536.75 | H40: 1527.652005 | I40: 1552.32 | J40: 1504.89 | K40: 0.3434535104 | L40: 0.2442642746 | M40: 1531.152891 | N40: 1503.465692 | O40: 1559.61 | P40: 1454.17 | Q40: 0.5663884674 | R40: 0.06142699872 | S40: 1516.406711 | Z40: 1531.152891 | AB40: 1516.406711 | AQ40: 33685900
A41: 9 | B41: =OFFSET(InputPriceData!B$15,CalculationsAndCharts!$A41+$A$11,0,1,1) -> 2017-12-18 | C41: =OFFSET(InputPriceData!G$15,CalculationsAndCharts!$A41+$A$11,IF($C$7,8,0),1,1) -> 37246600 | D41: =OFFSET(InputPriceData!C$15,CalculationsAndCharts!$A41+$A$11,IF($C$7,8,0),1,1) -> 1530.81 | E41: =OFFSET(InputPriceData!D$15,CalculationsAndCharts!$A41+$A$11,IF($C$7,8,0),1,1) -> 1552.32 | F41: =OFFSET(InputPriceData!E$15,CalculationsAndCharts!$A41+$A$11,IF($C$7,8,0),1,1) -> 1530.81 | G41: =OFFSET(InputPriceData!F$15,CalculationsAndCharts!$A41+$A$11,IF($C$7,8,0),1,1) -> 1548.92 | H41: 1525.630228 | I41: 1552.32 | J41: 1504.89 | K41: 0.8566308244 | L41: 0.3375692408 | M41: 1529.343828 | N41: 1502.107149 | O41: 1559.61 | P41: 1454.17 | Q41: 0.7972306525 | R41: 0.07047963343 | S41: 1515.075299 | T41: Up | Z41: 1529.343828 | AB41: 1515.075299 | AP41: 37246600
A42: 10 | B42: =OFFSET(InputPriceData!B$15,CalculationsAndCharts!$A42+$A$11,0,1,1) -> 2017-12-15 | C42: =OFFSET(InputPriceData!G$15,CalculationsAndCharts!$A42+$A$11,IF($C$7,8,0),1,1) -> 57239200 | D42: =OFFSET(InputPriceData!C$15,CalculationsAndCharts!$A42+$A$11,IF($C$7,8,0),1,1) -> 1507.68 | E42: =OFFSET(InputPriceData!D$15,CalculationsAndCharts!$A42+$A$11,IF($C$7,8,0),1,1) -> 1538.06 | F42: =OFFSET(InputPriceData!E$15,CalculationsAndCharts!$A42+$A$11,IF($C$7,8,0),1,1) -> 1507.68 | G42: =OFFSET(InputPriceData!F$15,CalculationsAndCharts!$A42+$A$11,IF($C$7,8,0),1,1) -> 1530.42 | H42: 1520.454723 | I42: 1559.61 | J42: 1504.89 | K42: 0.06688596491 | L42: 0.1939792663 | M42: 1519.367972 | N42: 1500.19642 | O42: 1559.61 | P42: 1454.17 | Q42: 0.4463201821 | R42: 0.05671843851 | S42: 1512.50907 | Z42: 1519.367972 | AB42: 1512.50907 | AP42: 57239200
A43: 11 | B43: =OFFSET(InputPriceData!B$15,CalculationsAndCharts!$A43+$A$11,0,1,1) -> 2017-12-14 | C43: =OFFSET(InputPriceData!G$15,CalculationsAndCharts!$A43+$A$11,IF($C$7,8,0),1,1) -> 34300300 | D43: =OFFSET(InputPriceData!C$15,CalculationsAndCharts!$A43+$A$11,IF($C$7,8,0),1,1) -> 1524.54 | E43: =OFFSET(InputPriceData!D$15,CalculationsAndCharts!$A43+$A$11,IF($C$7,8,0),1,1) -> 1527 | F43: =OFFSET(InputPriceData!E$15,CalculationsAndCharts!$A43+$A$11,IF($C$7,8,0),1,1) -> 1504.89 | G43: =OFFSET(InputPriceData!F$15,CalculationsAndCharts!$A43+$A$11,IF($C$7,8,0),1,1) -> 1506.95 | H43: 1518.240217 | I43: 1559.61 | J43: 1498.78 | K43: 0.7313825415 | L43: 0.3147968257 | M43: 1516.708159 | N43: 1498.962805 | O43: 1559.61 | P43: 1454.17 | Q43: 0.001138088012 | R43: 0.03926031718 | S43: 1511.432106 | T43: Dn | Z43: 1516.708159 | AB43: 1511.432106 | AQ43: 34300300
A44: 12 | B44: =OFFSET(InputPriceData!B$15,CalculationsAndCharts!$A44+$A$11,0,1,1) -> 2017-12-13 | C44: =OFFSET(InputPriceData!G$15,CalculationsAndCharts!$A44+$A$11,IF($C$7,8,0),1,1) -> 35423700 | D44: =OFFSET(InputPriceData!C$15,CalculationsAndCharts!$A44+$A$11,IF($C$7,8,0),1,1) -> 1516.19 | E44: =OFFSET(InputPriceData!D$15,CalculationsAndCharts!$A44+$A$11,IF($C$7,8,0),1,1) -> 1532.38 | F44: =OFFSET(InputPriceData!E$15,CalculationsAndCharts!$A44+$A$11,IF($C$7,8,0),1,1) -> 1516.08 | G44: =OFFSET(InputPriceData!F$15,CalculationsAndCharts!$A44+$A$11,IF($C$7,8,0),1,1) -> 1524.45 | H44: 1520.749154 | I44: 1559.61 | J44: 1498.78 | K44: 0.1560085484 | L44: 0.2101833724 | M44: 1521.191264 | N44: 1498.636797 | O44: 1559.61 | P44: 1454.17 | Q44: 0.3330804249 | R44: 0.05227766372 | S44: 1511.615266 | Z44: 1521.191264 | AB44: 1511.615266 | AP44: 35423700
A45: 13 | B45: =OFFSET(InputPriceData!B$15,CalculationsAndCharts!$A45+$A$11,0,1,1) -> 2017-12-12 | C45: =OFFSET(InputPriceData!G$15,CalculationsAndCharts!$A45+$A$11,IF($C$7,8,0),1,1) -> 35556800 | D45: =OFFSET(InputPriceData!C$15,CalculationsAndCharts!$A45+$A$11,IF($C$7,8,0),1,1) -> 1520.06 | E45: =OFFSET(InputPriceData!D$15,CalculationsAndCharts!$A45+$A$11,IF($C$7,8,0),1,1) -> 1525.11 | F45: =OFFSET(InputPriceData!E$15,CalculationsAndCharts!$A45+$A$11,IF($C$7,8,0),1,1) -> 1515.95 | G45: =OFFSET(InputPriceData!F$15,CalculationsAndCharts!$A45+$A$11,IF($C$7,8,0),1,1) -> 1516.12 | H45: 1519.926744 | I45: 1559.61 | J45: 1498.78 | K45: 0.4298865691 | L45: 0.2599793762 | M45: 1520.32406 | N45: 1497.583196 | O45: 1559.61 | P45: 1454.17 | Q45: 0.1750758725 | R45: 0.04608140677 | S45: 1510.907284 | Z45: 1520.32406 | AB45: 1510.907284 | AQ45: 35556800
A46: 14 | B46: =OFFSET(InputPriceData!B$15,CalculationsAndCharts!$A46+$A$11,0,1,1) -> 2017-12-11 | C46: =OFFSET(InputPriceData!G$15,CalculationsAndCharts!$A46+$A$11,IF($C$7,8,0),1,1) -> 30919500 | D46: =OFFSET(InputPriceData!C$15,CalculationsAndCharts!$A46+$A$11,IF($C$7,8,0),1,1) -> 1522.1 | E46: =OFFSET(InputPriceData!D$15,CalculationsAndCharts!$A46+$A$11,IF($C$7,8,0),1,1) -> 1527.47 | F46: =OFFSET(InputPriceData!E$15,CalculationsAndCharts!$A46+$A$11,IF($C$7,8,0),1,1) -> 1518.3 | G46: =OFFSET(InputPriceData!F$15,CalculationsAndCharts!$A46+$A$11,IF($C$7,8,0),1,1) -> 1519.84 | H46: 1520.772687 | I46: 1559.61 | J46: 1498.78 | K46: 0.3075784975 | L46: 0.237741545 | M46: 1521.801003 | N46: 1496.826592 | O46: 1559.61 | P46: 1454.17 | Q46: 0.2456373293 | R46: 0.04884852272 | S46: 1510.655471 | Z46: 1521.801003 | AB46: 1510.655471 | AQ46: 30919500
A47: 15 | B47: =OFFSET(InputPriceData!B$15,CalculationsAndCharts!$A47+$A$11,0,1,1) -> 2017-12-08 | C47: =OFFSET(InputPriceData!G$15,CalculationsAndCharts!$A47+$A$11,IF($C$7,8,0),1,1) -> 31061500 | D47: =OFFSET(InputPriceData!C$15,CalculationsAndCharts!$A47+$A$11,IF($C$7,8,0),1,1) -> 1521.78 | E47: =OFFSET(InputPriceData!D$15,CalculationsAndCharts!$A47+$A$11,IF($C$7,8,0),1,1) -> 1529 | F47: =OFFSET(InputPriceData!E$15,CalculationsAndCharts!$A47+$A$11,IF($C$7,8,0),1,1) -> 1520.88 | G47: =OFFSET(InputPriceData!F$15,CalculationsAndCharts!$A47+$A$11,IF($C$7,8,0),1,1) -> 1521.72 | H47: 1520.979951 | I47: 1559.61 | J47: 1498.78 | K47: 0.2457668913 | L47: 0.2265030712 | M47: 1522.412622 | N47: 1495.887269 | O47: 1559.61 | P47: 1454.17 | Q47: 0.2812974203 | R47: 0.05024695766 | S47: 1510.183779 | Z47: 1522.412622 | AB47: 1510.183779 | AQ47: 31061500
A48: 16 | B48: =OFFSET(InputPriceData!B$15,CalculationsAndCharts!$A48+$A$11,0,1,1) -> 2017-12-07 | C48: =OFFSET(InputPriceData!G$15,CalculationsAndCharts!$A48+$A$11,IF($C$7,8,0),1,1) -> 32924000 | D48: =OFFSET(InputPriceData!C$15,CalculationsAndCharts!$A48+$A$11,IF($C$7,8,0),1,1) -> 1508.93 | E48: =OFFSET(InputPriceData!D$15,CalculationsAndCharts!$A48+$A$11,IF($C$7,8,0),1,1) -> 1524 | F48: =OFFSET(InputPriceData!E$15,CalculationsAndCharts!$A48+$A$11,IF($C$7,8,0),1,1) -> 1508.15 | G48: =OFFSET(InputPriceData!F$15,CalculationsAndCharts!$A48+$A$11,IF($C$7,8,0),1,1) -> 1520.47 | H48: 1520.815496 | I48: 1559.61 | J48: 1498.78 | K48: 0.2868650337 | L48: 0.2339754607 | M48: 1522.615443 | N48: 1494.832872 | O48: 1559.61 | P48: 1454.17 | Q48: 0.2575872534 | R48: 0.04931714719 | S48: 1509.573452 | Z48: 1522.615443 | AB48: 1509.573452 | AP48: 32924000
A49: 17 | B49: =OFFSET(InputPriceData!B$15,CalculationsAndCharts!$A49+$A$11,0,1,1) -> 2017-12-06 | C49: =OFFSET(InputPriceData!G$15,CalculationsAndCharts!$A49+$A$11,IF($C$7,8,0),1,1) -> 32290000 | D49: =OFFSET(InputPriceData!C$15,CalculationsAndCharts!$A49+$A$11,IF($C$7,8,0),1,1) -> 1516.36 | E49: =OFFSET(InputPriceData!D$15,CalculationsAndCharts!$A49+$A$11,IF($C$7,8,0),1,1) -> 1516.54 | F49: =OFFSET(InputPriceData!E$15,CalculationsAndCharts!$A49+$A$11,IF($C$7,8,0),1,1) -> 1508.13 | G49: =OFFSET(InputPriceData!F$15,CalculationsAndCharts!$A49+$A$11,IF($C$7,8,0),1,1) -> 1508.88 | H49: 1520.892273 | I49: 1559.61 | J49: 1498.78 | K49: 0.6679270097 | L49: 0.3032594563 | M49: 1523.27075 | N49: 1493.786459 | O49: 1559.61 | P49: 1454.17 | Q49: 0.03774658574 | R49: 0.04069594454 | S49: 1509.008188 | Z49: 1523.27075 | AB49: 1509.008188 | AQ49: 32290000
A50: 18 | B50: =OFFSET(InputPriceData!B$15,CalculationsAndCharts!$A50+$A$11,0,1,1) -> 2017-12-05 | C50: =OFFSET(InputPriceData!G$15,CalculationsAndCharts!$A50+$A$11,IF($C$7,8,0),1,1) -> 35390400 | D50: =OFFSET(InputPriceData!C$15,CalculationsAndCharts!$A50+$A$11,IF($C$7,8,0),1,1) -> 1532.72 | E50: =OFFSET(InputPriceData!D$15,CalculationsAndCharts!$A50+$A$11,IF($C$7,8,0),1,1) -> 1534.01 | F50: =OFFSET(InputPriceData!E$15,CalculationsAndCharts!$A50+$A$11,IF($C$7,8,0),1,1) -> 1516.75 | G50: =OFFSET(InputPriceData!F$15,CalculationsAndCharts!$A50+$A$11,IF($C$7,8,0),1,1) -> 1516.76 | H50: 1523.561666 | I50: 1559.61 | J50: 1498.78 | K50: 0.4088443202 | L50: 0.2561535128 | M50: 1529.534388 | N50: 1493.170396 | O50: 1559.61 | P50: 1452.25 | Q50: 0.2017511177 | R50: 0.04712749481 | S50: 1509.013626 | Z50: 1529.534388 | AB50: 1509.013626 | AQ50: 35390400
A51: 19 | B51: =OFFSET(InputPriceData!B$15,CalculationsAndCharts!$A51+$A$11,0,1,1) -> 2017-12-04 | C51: =OFFSET(InputPriceData!G$15,CalculationsAndCharts!$A51+$A$11,IF($C$7,8,0),1,1) -> 40231500 | D51: =OFFSET(InputPriceData!C$15,CalculationsAndCharts!$A51+$A$11,IF($C$7,8,0),1,1) -> 1539.27 | E51: =OFFSET(InputPriceData!D$15,CalculationsAndCharts!$A51+$A$11,IF($C$7,8,0),1,1) -> 1559.61 | F51: =OFFSET(InputPriceData!E$15,CalculationsAndCharts!$A51+$A$11,IF($C$7,8,0),1,1) -> 1531.73 | G51: =OFFSET(InputPriceData!F$15,CalculationsAndCharts!$A51+$A$11,IF($C$7,8,0),1,1) -> 1532.41 | H51: 1525.073148 | I51: 1559.61 | J51: 1492.93 | K51: 0.1841631674 | L51: 0.2153023941 | M51: 1533.93342 | N51: 1492.207555 | O51: 1559.61 | P51: 1445.02 | Q51: 0.5252639846 | R51: 0.05981427391 | S51: 1508.630503 | Z51: 1533.93342 | AB51: 1508.630503 | AQ51: 40231500
A52: 20 | B52: =OFFSET(InputPriceData!B$15,CalculationsAndCharts!$A52+$A$11,0,1,1) -> 2017-12-01 | C52: =OFFSET(InputPriceData!G$15,CalculationsAndCharts!$A52+$A$11,IF($C$7,8,0),1,1) -> 39423200 | D52: =OFFSET(InputPriceData!C$15,CalculationsAndCharts!$A52+$A$11,IF($C$7,8,0),1,1) -> 1544.1 | E52: =OFFSET(InputPriceData!D$15,CalculationsAndCharts!$A52+$A$11,IF($C$7,8,0),1,1) -> 1544.92 | F52: =OFFSET(InputPriceData!E$15,CalculationsAndCharts!$A52+$A$11,IF($C$7,8,0),1,1) -> 1498.78 | G52: =OFFSET(InputPriceData!F$15,CalculationsAndCharts!$A52+$A$11,IF($C$7,8,0),1,1) -> 1537.02 | H52: 1523.442736 | I52: 1551.69 | J52: 1481.09 | K52: 0.5844192635 | L52: 0.2880762297 | M52: 1534.351411 | N52: 1490.566639 | O52: 1551.69 | P52: 1441.86 | Q52: 0.7328598744 | R52: 0.06795528919 | S52: 1507.117661 | Z52: 1534.351411 | AB52: 1507.117661 | AQ52: 39423200
A53: 21 | B53: =OFFSET(InputPriceData!B$15,CalculationsAndCharts!$A53+$A$11,0,1,1) -> 2017-11-30 | C53: =OFFSET(InputPriceData!G$15,CalculationsAndCharts!$A53+$A$11,IF($C$7,8,0),1,1) -> 49384900 | D53: =OFFSET(InputPriceData!C$15,CalculationsAndCharts!$A53+$A$11,IF($C$7,8,0),1,1) -> 1542.62 | E53: =OFFSET(InputPriceData!D$15,CalculationsAndCharts!$A53+$A$11,IF($C$7,8,0),1,1) -> 1551.69 | F53: =OFFSET(InputPriceData!E$15,CalculationsAndCharts!$A53+$A$11,IF($C$7,8,0),1,1) -> 1541.21 | G53: =OFFSET(InputPriceData!F$15,CalculationsAndCharts!$A53+$A$11,IF($C$7,8,0),1,1) -> 1544.14 | H53: 1520.425567 | I53: 1551.69 | J53: 1464.97 | K53: 0.8258763838 | L53: 0.3319775243 | M53: 1533.27158 | N53: 1488.670583 | O53: 1551.69 | P53: 1441.69 | Q53: 0.8627272727 | R53: 0.07304812834 | S53: 1504.937484 | Z53: 1533.27158 | AB53: 1504.937484 | AP53: 49384900
A54: 22 | B54: =OFFSET(InputPriceData!B$15,CalculationsAndCharts!$A54+$A$11,0,1,1) -> 2017-11-29 | C54: =OFFSET(InputPriceData!G$15,CalculationsAndCharts!$A54+$A$11,IF($C$7,8,0),1,1) -> 40782800 | D54: =OFFSET(InputPriceData!C$15,CalculationsAndCharts!$A54+$A$11,IF($C$7,8,0),1,1) -> 1536.82 | E54: =OFFSET(InputPriceData!D$15,CalculationsAndCharts!$A54+$A$11,IF($C$7,8,0),1,1) -> 1547.27 | F54: =OFFSET(InputPriceData!E$15,CalculationsAndCharts!$A54+$A$11,IF($C$7,8,0),1,1) -> 1536.82 | G54: =OFFSET(InputPriceData!F$15,CalculationsAndCharts!$A54+$A$11,IF($C$7,8,0),1,1) -> 1542.3 | H54: 1515.155693 | I54: 1547.27 | J54: 1454.17 | K54: 0.8932330827 | L54: 0.3442241969 | M54: 1527.870457 | N54: 1486.406526 | O54: 1547.27 | P54: 1440 | Q54: 0.9073366272 | R54: 0.07479751479 | S54: 1501.848143 | Z54: 1527.870457 | AB54: 1501.848143 | AP54: 40782800
A55: 23 | B55: =OFFSET(InputPriceData!B$15,CalculationsAndCharts!$A55+$A$11,0,1,1) -> 2017-11-28 | C55: =OFFSET(InputPriceData!G$15,CalculationsAndCharts!$A55+$A$11,IF($C$7,8,0),1,1) -> 34884200 | D55: =OFFSET(InputPriceData!C$15,CalculationsAndCharts!$A55+$A$11,IF($C$7,8,0),1,1) -> 1514.15 | E55: =OFFSET(InputPriceData!D$15,CalculationsAndCharts!$A55+$A$11,IF($C$7,8,0),1,1) -> 1536.63 | F55: =OFFSET(InputPriceData!E$15,CalculationsAndCharts!$A55+$A$11,IF($C$7,8,0),1,1) -> 1514.15 | G55: =OFFSET(InputPriceData!F$15,CalculationsAndCharts!$A55+$A$11,IF($C$7,8,0),1,1) -> 1536.43 | H55: 1509.123624 | I55: 1536.63 | J55: 1454.17 | K55: 0.9951491632 | L55: 0.3627543933 | M55: 1520.296226 | N55: 1484.125159 | O55: 1536.63 | P55: 1438.29 | Q55: 0.9959324792 | R55: 0.07827186193 | S55: 1498.577833 | Z55: 1520.296226 | AB55: 1498.577833 | AP55: 34884200
A56: 24 | B56: =OFFSET(InputPriceData!B$15,CalculationsAndCharts!$A56+$A$11,0,1,1) -> 2017-11-27 | C56: =OFFSET(InputPriceData!G$15,CalculationsAndCharts!$A56+$A$11,IF($C$7,8,0),1,1) -> 30068600 | D56: =OFFSET(InputPriceData!C$15,CalculationsAndCharts!$A56+$A$11,IF($C$7,8,0),1,1) -> 1519.17 | E56: =OFFSET(InputPriceData!D$15,CalculationsAndCharts!$A56+$A$11,IF($C$7,8,0),1,1) -> 1522.03 | F56: =OFFSET(InputPriceData!E$15,CalculationsAndCharts!$A56+$A$11,IF($C$7,8,0),1,1) -> 1513.19 | G56: =OFFSET(InputPriceData!F$15,CalculationsAndCharts!$A56+$A$11,IF($C$7,8,0),1,1) -> 1513.31 | H56: 1503.055541 | I56: 1524.18 | J56: 1454.17 | K56: 0.6894729324 | L56: 0.3071768968 | M56: 1511.112016 | N56: 1481.990268 | O56: 1524.18 | P56: 1431.75 | Q56: 0.76479498 | R56: 0.06920764627 | S56: 1495.36348 | Z56: 1511.112016 | AB56: 1495.36348 | AQ56: 30068600
A57: 25 | B57: =OFFSET(InputPriceData!B$15,CalculationsAndCharts!$A57+$A$11,0,1,1) -> 2017-11-24 | C57: =OFFSET(InputPriceData!G$15,CalculationsAndCharts!$A57+$A$11,IF($C$7,8,0),1,1) -> 13497800 | D57: =OFFSET(InputPriceData!C$15,CalculationsAndCharts!$A57+$A$11,IF($C$7,8,0),1,1) -> 1517.41 | E57: =OFFSET(InputPriceData!D$15,CalculationsAndCharts!$A57+$A$11,IF($C$7,8,0),1,1) -> 1521.38 | F57: =OFFSET(InputPriceData!E$15,CalculationsAndCharts!$A57+$A$11,IF($C$7,8,0),1,1) -> 1516.52 | G57: =OFFSET(InputPriceData!F$15,CalculationsAndCharts!$A57+$A$11,IF($C$7,8,0),1,1) -> 1519.16 | H57: 1500.776772 | I57: 1524.18 | J57: 1454.17 | K57: 0.8565919154 | L57: 0.3375621664 | M57: 1510.137496 | N57: 1480.711911 | O57: 1524.18 | P57: 1422.25 | Q57: 0.9015010301 | R57: 0.07456866785 | S57: 1494.029094 | Z57: 1510.137496 | AB57: 1494.029094 | AP57: 13497800
A58: 26 | B58: =OFFSET(InputPriceData!B$15,CalculationsAndCharts!$A58+$A$11,0,1,1) -> 2017-11-22 | C58: =OFFSET(InputPriceData!G$15,CalculationsAndCharts!$A58+$A$11,IF($C$7,8,0),1,1) -> 27629500 | D58: =OFFSET(InputPriceData!C$15,CalculationsAndCharts!$A58+$A$11,IF($C$7,8,0),1,1) -> 1518.98 | E58: =OFFSET(InputPriceData!D$15,CalculationsAndCharts!$A58+$A$11,IF($C$7,8,0),1,1) -> 1524.18 | F58: =OFFSET(InputPriceData!E$15,CalculationsAndCharts!$A58+$A$11,IF($C$7,8,0),1,1) -> 1516.76 | G58: =OFFSET(InputPriceData!F$15,CalculationsAndCharts!$A58+$A$11,IF($C$7,8,0),1,1) -> 1516.76 | H58: 1496.69161 | I58: 1524.18 | J58: 1454.17 | K58: 0.7880302814 | L58: 0.3250964148 | M58: 1505.539849 | N58: 1479.142602 | O58: 1524.18 | P58: 1421.63 | Q58: 0.8552901024 | R58: 0.0727564746 | S58: 1492.004116 | Z58: 1505.539849 | AB58: 1492.004116 | AQ58: 27629500
A59: 27 | B59: =OFFSET(InputPriceData!B$15,CalculationsAndCharts!$A59+$A$11,0,1,1) -> 2017-11-21 | C59: =OFFSET(InputPriceData!G$15,CalculationsAndCharts!$A59+$A$11,IF($C$7,8,0),1,1) -> 33327200 | D59: =OFFSET(InputPriceData!C$15,CalculationsAndCharts!$A59+$A$11,IF($C$7,8,0),1,1) -> 1503.45 | E59: =OFFSET(InputPriceData!D$15,CalculationsAndCharts!$A59+$A$11,IF($C$7,8,0),1,1) -> 1519.53 | F59: =OFFSET(InputPriceData!E$15,CalculationsAndCharts!$A59+$A$11,IF($C$7,8,0),1,1) -> 1503.45 | G59: =OFFSET(InputPriceData!F$15,CalculationsAndCharts!$A59+$A$11,IF($C$7,8,0),1,1) -> 1518.89 | H59: 1492.231968 | I59: 1519.53 | J59: 1454.17 | K59: 0.9804161567 | L59: 0.3600756648 | M59: 1500.135179 | N59: 1477.607198 | O59: 1519.53 | P59: 1421.63 | Q59: 0.9869254341 | R59: 0.07791864448 | S59: 1490.061638 | Z59: 1500.135179 | AB59: 1490.061638 | AP59: 33327200
A60: 28 | B60: =OFFSET(InputPriceData!B$15,CalculationsAndCharts!$A60+$A$11,0,1,1) -> 2017-11-20 | C60: =OFFSET(InputPriceData!G$15,CalculationsAndCharts!$A60+$A$11,IF($C$7,8,0),1,1) -> 30035400 | D60: =OFFSET(InputPriceData!C$15,CalculationsAndCharts!$A60+$A$11,IF($C$7,8,0),1,1) -> 1492.93 | E60: =OFFSET(InputPriceData!D$15,CalculationsAndCharts!$A60+$A$11,IF($C$7,8,0),1,1) -> 1503.4 | F60: =OFFSET(InputPriceData!E$15,CalculationsAndCharts!$A60+$A$11,IF($C$7,8,0),1,1) -> 1492.93 | G60: =OFFSET(InputPriceData!F$15,CalculationsAndCharts!$A60+$A$11,IF($C$7,8,0),1,1) -> 1503.4 | H60: 1486.307961 | I60: 1503.4 | J60: 1454.17 | K60: 1 | L60: 0.3636363636 | M60: 1489.582127 | N60: 1475.922185 | O60: 1514.94 | P60: 1415.18 | Q60: 0.7686447474 | R60: 0.06935861754 | S60: 1487.625554 | T60: Up | V60: Up | Z60: 1489.582127 | AB60: 1487.625554 | AG60: 1489.582127 | AP60: 30035400
A61: 29 | B61: =OFFSET(InputPriceData!B$15,CalculationsAndCharts!$A61+$A$11,0,1,1) -> 2017-11-17 | C61: =OFFSET(InputPriceData!G$15,CalculationsAndCharts!$A61+$A$11,IF($C$7,8,0),1,1) -> 33001600 | D61: =OFFSET(InputPriceData!C$15,CalculationsAndCharts!$A61+$A$11,IF($C$7,8,0),1,1) -> 1485.7 | E61: =OFFSET(InputPriceData!D$15,CalculationsAndCharts!$A61+$A$11,IF($C$7,8,0),1,1) -> 1496.86 | F61: =OFFSET(InputPriceData!E$15,CalculationsAndCharts!$A61+$A$11,IF($C$7,8,0),1,1) -> 1481.09 | G61: =OFFSET(InputPriceData!F$15,CalculationsAndCharts!$A61+$A$11,IF($C$7,8,0),1,1) -> 1492.82 | H61: 1482.50973 | I61: 1501.49 | J61: 1454.17 | K61: 0.6335587489 | L61: 0.2970106816 | M61: 1481.6862 | N61: 1474.800642 | O61: 1514.94 | P61: 1400.56 | Q61: 0.6132190942 | R61: 0.06326349389 | S61: 1486.44992 | Z61: 1481.6862 | AB61: 1486.44992 | AP61: 33001600
A62: 30 | B62: =OFFSET(InputPriceData!B$15,CalculationsAndCharts!$A62+$A$11,0,1,1) -> 2017-11-16 | C62: =OFFSET(InputPriceData!G$15,CalculationsAndCharts!$A62+$A$11,IF($C$7,8,0),1,1) -> 33127100 | D62: =OFFSET(InputPriceData!C$15,CalculationsAndCharts!$A62+$A$11,IF($C$7,8,0),1,1) -> 1464.97 | E62: =OFFSET(InputPriceData!D$15,CalculationsAndCharts!$A62+$A$11,IF($C$7,8,0),1,1) -> 1490.97 | F62: =OFFSET(InputPriceData!E$15,CalculationsAndCharts!$A62+$A$11,IF($C$7,8,0),1,1) -> 1464.97 | G62: =OFFSET(InputPriceData!F$15,CalculationsAndCharts!$A62+$A$11,IF($C$7,8,0),1,1) -> 1486.88 | H62: 1480.218559 | I62: 1501.49 | J62: 1454.17 | K62: 0.3825021133 | L62: 0.2513640206 | M62: 1476.982205 | N62: 1474.065158 | O62: 1514.94 | P62: 1394.43 | Q62: 0.5343125052 | R62: 0.06016911785 | S62: 1486.01971 | Z62: 1476.982205 | AB62: 1486.01971 | AP62: 33127100
A63: 31 | B63: =OFFSET(InputPriceData!B$15,CalculationsAndCharts!$A63+$A$11,0,1,1) -> 2017-11-15 | C63: =OFFSET(InputPriceData!G$15,CalculationsAndCharts!$A63+$A$11,IF($C$7,8,0),1,1) -> 35588900 | D63: =OFFSET(InputPriceData!C$15,CalculationsAndCharts!$A63+$A$11,IF($C$7,8,0),1,1) -> 1470.9 | E63: =OFFSET(InputPriceData!D$15,CalculationsAndCharts!$A63+$A$11,IF($C$7,8,0),1,1) -> 1470.9 | F63: =OFFSET(InputPriceData!E$15,CalculationsAndCharts!$A63+$A$11,IF($C$7,8,0),1,1) -> 1454.17 | G63: =OFFSET(InputPriceData!F$15,CalculationsAndCharts!$A63+$A$11,IF($C$7,8,0),1,1) -> 1464.09 | H63: 1478.738239 | I63: 1501.49 | J63: 1454.17 | K63: 0.5807269653 | L63: 0.2874049028 | M63: 1473.658895 | N63: 1473.542103 | O63: 1514.94 | P63: 1393.88 | Q63: 0.1599207005 | R63: 0.04548708629 | S63: 1485.964633 | Z63: 1473.658895 | AB63: 1485.964633 | AQ63: 35588900
A64: 32 | B64: =OFFSET(InputPriceData!B$15,CalculationsAndCharts!$A64+$A$11,0,1,1) -> 2017-11-14 | C64: =OFFSET(InputPriceData!G$15,CalculationsAndCharts!$A64+$A$11,IF($C$7,8,0),1,1) -> 36417600 | D64: =OFFSET(InputPriceData!C$15,CalculationsAndCharts!$A64+$A$11,IF($C$7,8,0),1,1) -> 1474.27 | E64: =OFFSET(InputPriceData!D$15,CalculationsAndCharts!$A64+$A$11,IF($C$7,8,0),1,1) -> 1474.27 | F64: =OFFSET(InputPriceData!E$15,CalculationsAndCharts!$A64+$A$11,IF($C$7,8,0),1,1) -> 1465.38 | G64: =OFFSET(InputPriceData!F$15,CalculationsAndCharts!$A64+$A$11,IF($C$7,8,0),1,1) -> 1471.26 | H64: 1481.993403 | I64: 1512.4 | J64: 1463.49 | K64: 0.6822735637 | L64: 0.3058679207 | M64: 1477.518236 | N64: 1473.927903 | O64: 1514.94 | P64: 1393.88 | Q64: 0.2783743598 | R64: 0.05013232784 | S64: 1487.007064 | Z64: 1477.518236 | AB64: 1487.007064 | AQ64: 36417600
A65: 33 | B65: =OFFSET(InputPriceData!B$15,CalculationsAndCharts!$A65+$A$11,0,1,1) -> 2017-11-13 | C65: =OFFSET(InputPriceData!G$15,CalculationsAndCharts!$A65+$A$11,IF($C$7,8,0),1,1) -> 34029300 | D65: =OFFSET(InputPriceData!C$15,CalculationsAndCharts!$A65+$A$11,IF($C$7,8,0),1,1) -> 1474.44 | E65: =OFFSET(InputPriceData!D$15,CalculationsAndCharts!$A65+$A$11,IF($C$7,8,0),1,1) -> 1476.68 | F65: =OFFSET(InputPriceData!E$15,CalculationsAndCharts!$A65+$A$11,IF($C$7,8,0),1,1) -> 1466.09 | G65: =OFFSET(InputPriceData!F$15,CalculationsAndCharts!$A65+$A$11,IF($C$7,8,0),1,1) -> 1475.07 | H65: 1484.378604 | I65: 1512.4 | J65: 1463.49 | K65: 0.526477203 | L65: 0.2775413096 | M65: 1480.275916 | N65: 1474.036797 | O65: 1514.94 | P65: 1393.88 | Q65: 0.3413183545 | R65: 0.05260071979 | S65: 1487.838166 | Z65: 1480.275916 | AB65: 1487.838166 | AP65: 34029300
A66: 34 | B66: =OFFSET(InputPriceData!B$15,CalculationsAndCharts!$A66+$A$11,0,1,1) -> 2017-11-10 | C66: =OFFSET(InputPriceData!G$15,CalculationsAndCharts!$A66+$A$11,IF($C$7,8,0),1,1) -> 34869100 | D66: =OFFSET(InputPriceData!C$15,CalculationsAndCharts!$A66+$A$11,IF($C$7,8,0),1,1) -> 1474.92 | E66: =OFFSET(InputPriceData!D$15,CalculationsAndCharts!$A66+$A$11,IF($C$7,8,0),1,1) -> 1479.11 | F66: =OFFSET(InputPriceData!E$15,CalculationsAndCharts!$A66+$A$11,IF($C$7,8,0),1,1) -> 1473.14 | G66: =OFFSET(InputPriceData!F$15,CalculationsAndCharts!$A66+$A$11,IF($C$7,8,0),1,1) -> 1475.27 | H66: 1486.447183 | I66: 1512.4 | J66: 1463.49 | K66: 0.5182989164 | L66: 0.2760543484 | M66: 1482.275832 | N66: 1473.994626 | O66: 1514.94 | P66: 1393.88 | Q66: 0.3446225012 | R66: 0.05273029417 | S66: 1488.547069 | Z66: 1482.275832 | AB66: 1488.547069 | AP66: 34869100
A67: 35 | B67: =OFFSET(InputPriceData!B$15,CalculationsAndCharts!$A67+$A$11,0,1,1) -> 2017-11-09 | C67: =OFFSET(InputPriceData!G$15,CalculationsAndCharts!$A67+$A$11,IF($C$7,8,0),1,1) -> 38316100 | D67: =OFFSET(InputPriceData!C$15,CalculationsAndCharts!$A67+$A$11,IF($C$7,8,0),1,1) -> 1481.29 | E67: =OFFSET(InputPriceData!D$15,CalculationsAndCharts!$A67+$A$11,IF($C$7,8,0),1,1) -> 1481.62 | F67: =OFFSET(InputPriceData!E$15,CalculationsAndCharts!$A67+$A$11,IF($C$7,8,0),1,1) -> 1463.49 | G67: =OFFSET(InputPriceData!F$15,CalculationsAndCharts!$A67+$A$11,IF($C$7,8,0),1,1) -> 1475.02 | H67: 1488.931001 | I67: 1512.4 | J67: 1463.49 | K67: 0.5285217747 | L67: 0.2779130499 | M67: 1484.94729 | N67: 1473.94257 | O67: 1514.94 | P67: 1392.04 | Q67: 0.3503661513 | R67: 0.05295553535 | S67: 1489.286145 | Z67: 1484.94729 | AB67: 1489.286145 | AQ67: 38316100
A68: 36 | B68: =OFFSET(InputPriceData!B$15,CalculationsAndCharts!$A68+$A$11,0,1,1) -> 2017-11-08 | C68: =OFFSET(InputPriceData!G$15,CalculationsAndCharts!$A68+$A$11,IF($C$7,8,0),1,1) -> 38993600 | D68: =OFFSET(InputPriceData!C$15,CalculationsAndCharts!$A68+$A$11,IF($C$7,8,0),1,1) -> 1477.95 | E68: =OFFSET(InputPriceData!D$15,CalculationsAndCharts!$A68+$A$11,IF($C$7,8,0),1,1) -> 1482.86 | F68: =OFFSET(InputPriceData!E$15,CalculationsAndCharts!$A68+$A$11,IF($C$7,8,0),1,1) -> 1469.34 | G68: =OFFSET(InputPriceData!F$15,CalculationsAndCharts!$A68+$A$11,IF($C$7,8,0),1,1) -> 1481.73 | H68: 1492.022335 | I68: 1512.4 | J68: 1469.34 | K68: 0.4245239201 | L68: 0.2590043491 | M68: 1488.768053 | N68: 1473.898593 | O68: 1514.94 | P68: 1381.2 | Q68: 0.5033647376 | R68: 0.0589554799 | S68: 1490.08386 | V68: Dn | Z68: 1488.768053 | AB68: 1490.08386 | AH68: 1488.768053 | AP68: 38993600
A69: 37 | B69: =OFFSET(InputPriceData!B$15,CalculationsAndCharts!$A69+$A$11,0,1,1) -> 2017-11-07 | C69: =OFFSET(InputPriceData!G$15,CalculationsAndCharts!$A69+$A$11,IF($C$7,8,0),1,1) -> 38096500 | D69: =OFFSET(InputPriceData!C$15,CalculationsAndCharts!$A69+$A$11,IF($C$7,8,0),1,1) -> 1497.98 | E69: =OFFSET(InputPriceData!D$15,CalculationsAndCharts!$A69+$A$11,IF($C$7,8,0),1,1) -> 1498 | F69: =OFFSET(InputPriceData!E$15,CalculationsAndCharts!$A69+$A$11,IF($C$7,8,0),1,1) -> 1476.72 | G69: =OFFSET(InputPriceData!F$15,CalculationsAndCharts!$A69+$A$11,IF($C$7,8,0),1,1) -> 1479.09 | H69: 1494.30952 | I69: 1512.4 | J69: 1476.72 | K69: 0.8671524664 | L69: 0.3394822666 | M69: 1491.228103 | N69: 1473.578944 | O69: 1514.94 | P69: 1371.8 | Q69: 0.4990917982 | R69: 0.05878791366 | S69: 1490.60722 | Z69: 1491.228103 | AB69: 1490.60722 | AQ69: 38096500
A70: 38 | B70: =OFFSET(InputPriceData!B$15,CalculationsAndCharts!$A70+$A$11,0,1,1) -> 2017-11-06 | C70: =OFFSET(InputPriceData!G$15,CalculationsAndCharts!$A70+$A$11,IF($C$7,8,0),1,1) -> 35390800 | D70: =OFFSET(InputPriceData!C$15,CalculationsAndCharts!$A70+$A$11,IF($C$7,8,0),1,1) -> 1495.03 | E70: =OFFSET(InputPriceData!D$15,CalculationsAndCharts!$A70+$A$11,IF($C$7,8,0),1,1) -> 1501.49 | F70: =OFFSET(InputPriceData!E$15,CalculationsAndCharts!$A70+$A$11,IF($C$7,8,0),1,1) -> 1494.74 | G70: =OFFSET(InputPriceData!F$15,CalculationsAndCharts!$A70+$A$11,IF($C$7,8,0),1,1) -> 1497.96 | H70: 1497.691636 | I70: 1512.4 | J70: 1482.53 | K70: 0.03314362236 | L70: 0.187844295 | M70: 1497.46665 | N70: 1473.354002 | O70: 1514.94 | P70: 1371.8 | Q70: 0.7627497555 | R70: 0.06912744139 | S70: 1491.326584 | Z70: 1497.46665 | AB70: 1491.326584 | AP70: 35390800
A71: 39 | B71: =OFFSET(InputPriceData!B$15,CalculationsAndCharts!$A71+$A$11,0,1,1) -> 2017-11-03 | C71: =OFFSET(InputPriceData!G$15,CalculationsAndCharts!$A71+$A$11,IF($C$7,8,0),1,1) -> 35677100 | D71: =OFFSET(InputPriceData!C$15,CalculationsAndCharts!$A71+$A$11,IF($C$7,8,0),1,1) -> 1496.32 | E71: =OFFSET(InputPriceData!D$15,CalculationsAndCharts!$A71+$A$11,IF($C$7,8,0),1,1) -> 1497.14 | F71: =OFFSET(InputPriceData!E$15,CalculationsAndCharts!$A71+$A$11,IF($C$7,8,0),1,1) -> 1490.66 | G71: =OFFSET(InputPriceData!F$15,CalculationsAndCharts!$A71+$A$11,IF($C$7,8,0),1,1) -> 1494.91 | H71: 1497.631999 | I71: 1512.4 | J71: 1482.53 | K71: 0.1710746568 | L71: 0.2129226649 | M71: 1497.352543 | N71: 1472.349676 | O71: 1514.94 | P71: 1371.8 | Q71: 0.7201341344 | R71: 0.06745624057 | S71: 1490.83398 | Z71: 1497.352543 | AB71: 1490.83398 | AQ71: 35677100
A72: 40 | B72: =OFFSET(InputPriceData!B$15,CalculationsAndCharts!$A72+$A$11,0,1,1) -> 2017-11-02 | C72: =OFFSET(InputPriceData!G$15,CalculationsAndCharts!$A72+$A$11,IF($C$7,8,0),1,1) -> 40482700 | D72: =OFFSET(InputPriceData!C$15,CalculationsAndCharts!$A72+$A$11,IF($C$7,8,0),1,1) -> 1492.9 | E72: =OFFSET(InputPriceData!D$15,CalculationsAndCharts!$A72+$A$11,IF($C$7,8,0),1,1) -> 1499.94 | F72: =OFFSET(InputPriceData!E$15,CalculationsAndCharts!$A72+$A$11,IF($C$7,8,0),1,1) -> 1487.73 | G72: =OFFSET(InputPriceData!F$15,CalculationsAndCharts!$A72+$A$11,IF($C$7,8,0),1,1) -> 1496.55 | H72: 1498.236888 | I72: 1512.75 | J72: 1482.53 | K72: 0.07213765718 | L72: 0.1949341195 | M72: 1498.013307 | N72: 1471.428846 | O72: 1514.94 | P72: 1370.16 | Q72: 0.7459593867 | R72: 0.06846899556 | S72: 1490.539138 | Z72: 1498.013307 | AB72: 1490.539138 | AP72: 40482700
A73: 41 | B73: =OFFSET(InputPriceData!B$15,CalculationsAndCharts!$A73+$A$11,0,1,1) -> 2017-11-01 | C73: =OFFSET(InputPriceData!G$15,CalculationsAndCharts!$A73+$A$11,IF($C$7,8,0),1,1) -> 38131800 | D73: =OFFSET(InputPriceData!C$15,CalculationsAndCharts!$A73+$A$11,IF($C$7,8,0),1,1) -> 1504.54 | E73: =OFFSET(InputPriceData!D$15,CalculationsAndCharts!$A73+$A$11,IF($C$7,8,0),1,1) -> 1512.4 | F73: =OFFSET(InputPriceData!E$15,CalculationsAndCharts!$A73+$A$11,IF($C$7,8,0),1,1) -> 1485.13 | G73: =OFFSET(InputPriceData!F$15,CalculationsAndCharts!$A73+$A$11,IF($C$7,8,0),1,1) -> 1492.78 | H73: 1498.611752 | I73: 1512.75 | J73: 1482.53 | K73: 0.3216412972 | L73: 0.2402984177 | M73: 1498.367624 | N73: 1470.403493 | O73: 1514.94 | P73: 1363.17 | Q73: 0.707979179 | R73: 0.06697957565 | S73: 1490.09733 | T73: Dn | Z73: 1498.367624 | AB73: 1490.09733 | AQ73: 38131800
A74: 42 | B74: =OFFSET(InputPriceData!B$15,CalculationsAndCharts!$A74+$A$11,0,1,1) -> 2017-10-31 | C74: =OFFSET(InputPriceData!G$15,CalculationsAndCharts!$A74+$A$11,IF($C$7,8,0),1,1) -> 38272300 | D74: =OFFSET(InputPriceData!C$15,CalculationsAndCharts!$A74+$A$11,IF($C$7,8,0),1,1) -> 1491.44 | E74: =OFFSET(InputPriceData!D$15,CalculationsAndCharts!$A74+$A$11,IF($C$7,8,0),1,1) -> 1506.78 | F74: =OFFSET(InputPriceData!E$15,CalculationsAndCharts!$A74+$A$11,IF($C$7,8,0),1,1) -> 1491.44 | G74: =OFFSET(InputPriceData!F$15,CalculationsAndCharts!$A74+$A$11,IF($C$7,8,0),1,1) -> 1502.53 | H74: 1499.907697 | I74: 1512.75 | J74: 1482.53 | K74: 0.3236267373 | L74: 0.2406594068 | M74: 1500.135025 | N74: 1469.490166 | O74: 1514.94 | P74: 1357.89 | Q74: 0.8419611589 | R74: 0.07223377094 | S74: 1489.904747 | Z74: 1500.135025 | AB74: 1489.904747 | AP74: 38272300
A75: 43 | B75: =OFFSET(InputPriceData!B$15,CalculationsAndCharts!$A75+$A$11,0,1,1) -> 2017-10-30 | C75: =OFFSET(InputPriceData!G$15,CalculationsAndCharts!$A75+$A$11,IF($C$7,8,0),1,1) -> 36588700 | D75: =OFFSET(InputPriceData!C$15,CalculationsAndCharts!$A75+$A$11,IF($C$7,8,0),1,1) -> 1507.48 | E75: =OFFSET(InputPriceData!D$15,CalculationsAndCharts!$A75+$A$11,IF($C$7,8,0),1,1) -> 1507.48 | F75: =OFFSET(InputPriceData!E$15,CalculationsAndCharts!$A75+$A$11,IF($C$7,8,0),1,1) -> 1484.82 | G75: =OFFSET(InputPriceData!F$15,CalculationsAndCharts!$A75+$A$11,IF($C$7,8,0),1,1) -> 1490.9 | H75: 1499.324963 | I75: 1512.75 | J75: 1482.53 | K75: 0.4460622105 | L75: 0.2629204019 | M75: 1499.37598 | N75: 1468.141602 | O75: 1514.94 | P75: 1351.2 | Q75: 0.7063637474 | R75: 0.06691622539 | S75: 1488.921774 | Z75: 1499.37598 | AB75: 1488.921774 | AQ75: 36588700
A76: 44 | B76: =OFFSET(InputPriceData!B$15,CalculationsAndCharts!$A76+$A$11,0,1,1) -> 2017-10-27 | C76: =OFFSET(InputPriceData!G$15,CalculationsAndCharts!$A76+$A$11,IF($C$7,8,0),1,1) -> 38871100 | D76: =OFFSET(InputPriceData!C$15,CalculationsAndCharts!$A76+$A$11,IF($C$7,8,0),1,1) -> 1497.54 | E76: =OFFSET(InputPriceData!D$15,CalculationsAndCharts!$A76+$A$11,IF($C$7,8,0),1,1) -> 1508.32 | F76: =OFFSET(InputPriceData!E$15,CalculationsAndCharts!$A76+$A$11,IF($C$7,8,0),1,1) -> 1493.49 | G76: =OFFSET(InputPriceData!F$15,CalculationsAndCharts!$A76+$A$11,IF($C$7,8,0),1,1) -> 1508.32 | H76: 1501.197176 | I76: 1512.75 | J76: 1482.53 | K76: 0.7068166777 | L76: 0.310330305 | M76: 1502.399409 | N76: 1467.212688 | O76: 1514.94 | P76: 1349.35 | Q76: 0.9200434809 | R76: 0.07529582278 | S76: 1488.779905 | Z76: 1502.399409 | AB76: 1488.779905 | AP76: 38871100
A77: 45 | B77: =OFFSET(InputPriceData!B$15,CalculationsAndCharts!$A77+$A$11,0,1,1) -> 2017-10-26 | C77: =OFFSET(InputPriceData!G$15,CalculationsAndCharts!$A77+$A$11,IF($C$7,8,0),1,1) -> 38690500 | D77: =OFFSET(InputPriceData!C$15,CalculationsAndCharts!$A77+$A$11,IF($C$7,8,0),1,1) -> 1494.11 | E77: =OFFSET(InputPriceData!D$15,CalculationsAndCharts!$A77+$A$11,IF($C$7,8,0),1,1) -> 1501.36 | F77: =OFFSET(InputPriceData!E$15,CalculationsAndCharts!$A77+$A$11,IF($C$7,8,0),1,1) -> 1494.11 | G77: =OFFSET(InputPriceData!F$15,CalculationsAndCharts!$A77+$A$11,IF($C$7,8,0),1,1) -> 1497.46 | H77: 1499.614327 | I77: 1512.75 | J77: 1482.53 | K77: 0.01191264064 | L77: 0.1839841165 | M77: 1499.735324 | N77: 1465.534838 | O77: 1514.94 | P77: 1349.35 | Q77: 0.7888761399 | R77: 0.07015200548 | S77: 1487.188815 | Z77: 1499.735324 | AB77: 1487.188815 | AP77: 38690500
A78: 46 | B78: =OFFSET(InputPriceData!B$15,CalculationsAndCharts!$A78+$A$11,0,1,1) -> 2017-10-25 | C78: =OFFSET(InputPriceData!G$15,CalculationsAndCharts!$A78+$A$11,IF($C$7,8,0),1,1) -> 38745100 | D78: =OFFSET(InputPriceData!C$15,CalculationsAndCharts!$A78+$A$11,IF($C$7,8,0),1,1) -> 1500.25 | E78: =OFFSET(InputPriceData!D$15,CalculationsAndCharts!$A78+$A$11,IF($C$7,8,0),1,1) -> 1500.42 | F78: =OFFSET(InputPriceData!E$15,CalculationsAndCharts!$A78+$A$11,IF($C$7,8,0),1,1) -> 1482.53 | G78: =OFFSET(InputPriceData!F$15,CalculationsAndCharts!$A78+$A$11,IF($C$7,8,0),1,1) -> 1493.48 | H78: 1500.093066 | I78: 1512.75 | J78: 1482.53 | K78: 0.2753143614 | L78: 0.2318753384 | M78: 1500.248333 | N78: 1464.23177 | O78: 1514.94 | P78: 1349.35 | Q78: 0.7408056042 | R78: 0.06826688644 | S78: 1486.41391 | Z78: 1500.248333 | AB78: 1486.41391 | AQ78: 38745100
A79: 47 | B79: =OFFSET(InputPriceData!B$15,CalculationsAndCharts!$A79+$A$11,0,1,1) -> 2017-10-24 | C79: =OFFSET(InputPriceData!G$15,CalculationsAndCharts!$A79+$A$11,IF($C$7,8,0),1,1) -> 34273300 | D79: =OFFSET(InputPriceData!C$15,CalculationsAndCharts!$A79+$A$11,IF($C$7,8,0),1,1) -> 1498.19 | E79: =OFFSET(InputPriceData!D$15,CalculationsAndCharts!$A79+$A$11,IF($C$7,8,0),1,1) -> 1505.57 | F79: =OFFSET(InputPriceData!E$15,CalculationsAndCharts!$A79+$A$11,IF($C$7,8,0),1,1) -> 1498.19 | G79: =OFFSET(InputPriceData!F$15,CalculationsAndCharts!$A79+$A$11,IF($C$7,8,0),1,1) -> 1500.42 | H79: 1501.562636 | I79: 1512.75 | J79: 1491.38 | K79: 0.1539541413 | L79: 0.2098098439 | M79: 1502.291504 | N79: 1463.037965 | O79: 1514.94 | P79: 1349.35 | Q79: 0.824627091 | R79: 0.07155400357 | S79: 1485.896186 | Z79: 1502.291504 | AB79: 1485.896186 | AP79: 34273300
A80: 48 | B80: =OFFSET(InputPriceData!B$15,CalculationsAndCharts!$A80+$A$11,0,1,1) -> 2017-10-23 | C80: =OFFSET(InputPriceData!G$15,CalculationsAndCharts!$A80+$A$11,IF($C$7,8,0),1,1) -> 32117100 | D80: =OFFSET(InputPriceData!C$15,CalculationsAndCharts!$A80+$A$11,IF($C$7,8,0),1,1) -> 1509.67 | E80: =OFFSET(InputPriceData!D$15,CalculationsAndCharts!$A80+$A$11,IF($C$7,8,0),1,1) -> 1511.48 | F80: =OFFSET(InputPriceData!E$15,CalculationsAndCharts!$A80+$A$11,IF($C$7,8,0),1,1) -> 1497.34 | G80: =OFFSET(InputPriceData!F$15,CalculationsAndCharts!$A80+$A$11,IF($C$7,8,0),1,1) -> 1497.49 | H80: 1501.816555 | I80: 1512.75 | J80: 1491.38 | K80: 0.4281703322 | L80: 0.2596673331 | M80: 1502.788422 | N80: 1461.512168 | O80: 1514.94 | P80: 1349.35 | Q80: 0.7892384806 | R80: 0.07016621492 | S80: 1484.776857 | Z80: 1502.788422 | AB80: 1484.776857 | AQ80: 32117100
A81: 49 | B81: =OFFSET(InputPriceData!B$15,CalculationsAndCharts!$A81+$A$11,0,1,1) -> 2017-10-20 | C81: =OFFSET(InputPriceData!G$15,CalculationsAndCharts!$A81+$A$11,IF($C$7,8,0),1,1) -> 33846500 | D81: =OFFSET(InputPriceData!C$15,CalculationsAndCharts!$A81+$A$11,IF($C$7,8,0),1,1) -> 1504.72 | E81: =OFFSET(InputPriceData!D$15,CalculationsAndCharts!$A81+$A$11,IF($C$7,8,0),1,1) -> 1512.75 | F81: =OFFSET(InputPriceData!E$15,CalculationsAndCharts!$A81+$A$11,IF($C$7,8,0),1,1) -> 1504.72 | G81: =OFFSET(InputPriceData!F$15,CalculationsAndCharts!$A81+$A$11,IF($C$7,8,0),1,1) -> 1509.25 | H81: 1502.778012 | I81: 1513.3 | J81: 1491.38 | K81: 0.6304744526 | L81: 0.2964499005 | M81: 1504.646812 | N81: 1460.043685 | O81: 1514.94 | P81: 1349.35 | Q81: 0.9312760432 | R81: 0.07573631542 | S81: 1483.81751 | Z81: 1504.646812 | AB81: 1483.81751 | AP81: 33846500
A82: 50 | B82: =OFFSET(InputPriceData!B$15,CalculationsAndCharts!$A82+$A$11,0,1,1) -> 2017-10-19 | C82: =OFFSET(InputPriceData!G$15,CalculationsAndCharts!$A82+$A$11,IF($C$7,8,0),1,1) -> 29907100 | D82: =OFFSET(InputPriceData!C$15,CalculationsAndCharts!$A82+$A$11,IF($C$7,8,0),1,1) -> 1502.97 | E82: =OFFSET(InputPriceData!D$15,CalculationsAndCharts!$A82+$A$11,IF($C$7,8,0),1,1) -> 1505.14 | F82: =OFFSET(InputPriceData!E$15,CalculationsAndCharts!$A82+$A$11,IF($C$7,8,0),1,1) -> 1491.38 | G82: =OFFSET(InputPriceData!F$15,CalculationsAndCharts!$A82+$A$11,IF($C$7,8,0),1,1) -> 1502.04 | H82: 1501.339793 | I82: 1513.3 | J82: 1491.38 | K82: 0.02737226277 | L82: 0.1867949569 | M82: 1502.707199 | N82: 1458.035264 | O82: 1514.94 | P82: 1349.35 | Q82: 0.8441934899 | R82: 0.07232131333 | S82: 1481.733513 | Z82: 1502.707199 | AB82: 1481.733513 | AP82: =IF(G82>=D82,C82,NA()) ->  | AQ82: =IF(G82<D82,C82,NA()) -> 29907100
A83: 51 | B83: =OFFSET(InputPriceData!B$15,CalculationsAndCharts!$A83+$A$11,0,1,1) -> 2017-10-18 | C83: =OFFSET(InputPriceData!G$15,CalculationsAndCharts!$A83+$A$11,IF($C$7,8,0),1,1) -> 29980900 | D83: =OFFSET(InputPriceData!C$15,CalculationsAndCharts!$A83+$A$11,IF($C$7,8,0),1,1) -> 1497.98 | E83: =OFFSET(InputPriceData!D$15,CalculationsAndCharts!$A83+$A$11,IF($C$7,8,0),1,1) -> 1507.84 | F83: =OFFSET(InputPriceData!E$15,CalculationsAndCharts!$A83+$A$11,IF($C$7,8,0),1,1) -> 1497.98 | G83: =OFFSET(InputPriceData!F$15,CalculationsAndCharts!$A83+$A$11,IF($C$7,8,0),1,1) -> 1505.14 | H83: 1501.184191 | I83: 1514.94 | J83: 1495.9 | K83: 0.02941176471 | L83: 0.1871657754 | M83: 1502.860457 | N83: 1456.239152 | O83: 1514.94 | P83: 1349.35 | Q83: 0.8816353645 | R83: 0.07378962214 | S83: 1480.15043 | Z83: 1502.860457 | AB83: 1480.15043 | AP83: 29980900
A84: 52 | B84: =OFFSET(InputPriceData!B$15,CalculationsAndCharts!$A84+$A$11,0,1,1) -> 2017-10-17 | C84: =OFFSET(InputPriceData!G$15,CalculationsAndCharts!$A84+$A$11,IF($C$7,8,0),1,1) -> 28893900 | D84: =OFFSET(InputPriceData!C$15,CalculationsAndCharts!$A84+$A$11,IF($C$7,8,0),1,1) -> 1502.53 | E84: =OFFSET(InputPriceData!D$15,CalculationsAndCharts!$A84+$A$11,IF($C$7,8,0),1,1) -> 1505.8 | F84: =OFFSET(InputPriceData!E$15,CalculationsAndCharts!$A84+$A$11,IF($C$7,8,0),1,1) -> 1495.9 | G84: =OFFSET(InputPriceData!F$15,CalculationsAndCharts!$A84+$A$11,IF($C$7,8,0),1,1) -> 1497.5 | H84: 1500.305122 | I84: 1514.94 | J84: 1495.9 | K84: 0.8319327731 | L84: 0.333078686 | M84: 1502.335562 | N84: 1454.243199 | O84: 1514.94 | P84: 1349.35 | Q84: 0.7893592608 | R84: 0.0701709514 | S84: 1478.159553 | Z84: 1502.335562 | AB84: 1478.159553 | AQ84: 28893900
A85: 53 | B85: =OFFSET(InputPriceData!B$15,CalculationsAndCharts!$A85+$A$11,0,1,1) -> 2017-10-16 | C85: =OFFSET(InputPriceData!G$15,CalculationsAndCharts!$A85+$A$11,IF($C$7,8,0),1,1) -> 29160200 | D85: =OFFSET(InputPriceData!C$15,CalculationsAndCharts!$A85+$A$11,IF($C$7,8,0),1,1) -> 1502.97 | E85: =OFFSET(InputPriceData!D$15,CalculationsAndCharts!$A85+$A$11,IF($C$7,8,0),1,1) -> 1511.29 | F85: =OFFSET(InputPriceData!E$15,CalculationsAndCharts!$A85+$A$11,IF($C$7,8,0),1,1) -> 1499.64 | G85: =OFFSET(InputPriceData!F$15,CalculationsAndCharts!$A85+$A$11,IF($C$7,8,0),1,1) -> 1502.68 | H85: 1500.928483 | I85: 1514.94 | J85: 1499.64 | K85: 0.6026143791 | L85: 0.2913844326 | M85: 1504.750573 | N85: 1452.477615 | O85: 1514.94 | P85: 1349.35 | Q85: 0.8519234253 | R85: 0.07262444805 | S85: 1476.699997 | Z85: 1504.750573 | AB85: 1476.699997 | AQ85: 29160200
A86: 54 | B86: =OFFSET(InputPriceData!B$15,CalculationsAndCharts!$A86+$A$11,0,1,1) -> 2017-10-13 | C86: =OFFSET(InputPriceData!G$15,CalculationsAndCharts!$A86+$A$11,IF($C$7,8,0),1,1) -> 31494400 | D86: =OFFSET(InputPriceData!C$15,CalculationsAndCharts!$A86+$A$11,IF($C$7,8,0),1,1) -> 1505.46 | E86: =OFFSET(InputPriceData!D$15,CalculationsAndCharts!$A86+$A$11,IF($C$7,8,0),1,1) -> 1508.22 | F86: =OFFSET(InputPriceData!E$15,CalculationsAndCharts!$A86+$A$11,IF($C$7,8,0),1,1) -> 1502.23 | G86: =OFFSET(InputPriceData!F$15,CalculationsAndCharts!$A86+$A$11,IF($C$7,8,0),1,1) -> 1502.66 | H86: 1500.539257 | I86: 1514.94 | J86: 1491.05 | K86: 0.0280452072 | L86: 0.1869173104 | M86: 1505.601997 | N86: 1450.428538 | O86: 1514.94 | P86: 1349.35 | Q86: 0.8516818648 | R86: 0.07261497509 | S86: 1474.665456 | Z86: 1505.601997 | AB86: 1474.665456 | AQ86: 31494400
A87: 55 | B87: =OFFSET(InputPriceData!B$15,CalculationsAndCharts!$A87+$A$11,0,1,1) -> 2017-10-12 | C87: =OFFSET(InputPriceData!G$15,CalculationsAndCharts!$A87+$A$11,IF($C$7,8,0),1,1) -> 31515100 | D87: =OFFSET(InputPriceData!C$15,CalculationsAndCharts!$A87+$A$11,IF($C$7,8,0),1,1) -> 1506.46 | E87: =OFFSET(InputPriceData!D$15,CalculationsAndCharts!$A87+$A$11,IF($C$7,8,0),1,1) -> 1508.43 | F87: =OFFSET(InputPriceData!E$15,CalculationsAndCharts!$A87+$A$11,IF($C$7,8,0),1,1) -> 1501.14 | G87: =OFFSET(InputPriceData!F$15,CalculationsAndCharts!$A87+$A$11,IF($C$7,8,0),1,1) -> 1505.16 | H87: 1500.067981 | I87: 1514.94 | J87: 1488.8 | K87: 0.2517214996 | L87: 0.2275857272 | M87: 1506.278325 | N87: 1448.296642 | O87: 1514.94 | P87: 1349.35 | Q87: 0.8818769249 | R87: 0.0737990951 | S87: 1472.473462 | Z87: 1506.278325 | AB87: 1472.473462 | AQ87: 31515100
A88: 56 | B88: =OFFSET(InputPriceData!B$15,CalculationsAndCharts!$A88+$A$11,0,1,1) -> 2017-10-11 | C88: =OFFSET(InputPriceData!G$15,CalculationsAndCharts!$A88+$A$11,IF($C$7,8,0),1,1) -> 29760900 | D88: =OFFSET(InputPriceData!C$15,CalculationsAndCharts!$A88+$A$11,IF($C$7,8,0),1,1) -> 1507.91 | E88: =OFFSET(InputPriceData!D$15,CalculationsAndCharts!$A88+$A$11,IF($C$7,8,0),1,1) -> 1510.62 | F88: =OFFSET(InputPriceData!E$15,CalculationsAndCharts!$A88+$A$11,IF($C$7,8,0),1,1) -> 1505.14 | G88: =OFFSET(InputPriceData!F$15,CalculationsAndCharts!$A88+$A$11,IF($C$7,8,0),1,1) -> 1506.92 | H88: 1498.936421 | I88: 1514.94 | J88: 1478.2 | K88: 0.5634186173 | L88: 0.2842579304 | M88: 1506.607831 | N88: 1445.975689 | O88: 1514.94 | P88: 1349.35 | Q88: 0.9031342472 | R88: 0.07463271558 | S88: 1469.869019 | Z88: 1506.607831 | AB88: 1469.869019 | AQ88: 29760900
A89: 57 | B89: =OFFSET(InputPriceData!B$15,CalculationsAndCharts!$A89+$A$11,0,1,1) -> 2017-10-10 | C89: =OFFSET(InputPriceData!G$15,CalculationsAndCharts!$A89+$A$11,IF($C$7,8,0),1,1) -> 29605000 | D89: =OFFSET(InputPriceData!C$15,CalculationsAndCharts!$A89+$A$11,IF($C$7,8,0),1,1) -> 1504.11 | E89: =OFFSET(InputPriceData!D$15,CalculationsAndCharts!$A89+$A$11,IF($C$7,8,0),1,1) -> 1511.33 | F89: =OFFSET(InputPriceData!E$15,CalculationsAndCharts!$A89+$A$11,IF($C$7,8,0),1,1) -> 1503.92 | G89: =OFFSET(InputPriceData!F$15,CalculationsAndCharts!$A89+$A$11,IF($C$7,8,0),1,1) -> 1508.01 | H89: 1497.162292 | I89: 1514.94 | J89: 1457.27 | K89: 0.7596670713 | L89: 0.3199394675 | M89: 1506.483852 | N89: 1443.488166 | O89: 1514.94 | P89: 1349.35 | Q89: 0.9162992934 | R89: 0.0751489919 | S89: 1466.880784 | Z89: 1506.483852 | AB89: 1466.880784 | AP89: 29605000
A90: 58 | B90: =OFFSET(InputPriceData!B$15,CalculationsAndCharts!$A90+$A$11,0,1,1) -> 2017-10-09 | C90: =OFFSET(InputPriceData!G$15,CalculationsAndCharts!$A90+$A$11,IF($C$7,8,0),1,1) -> 24839700 | D90: =OFFSET(InputPriceData!C$15,CalculationsAndCharts!$A90+$A$11,IF($C$7,8,0),1,1) -> 1510.41 | E90: =OFFSET(InputPriceData!D$15,CalculationsAndCharts!$A90+$A$11,IF($C$7,8,0),1,1) -> 1513.3 | F90: =OFFSET(InputPriceData!E$15,CalculationsAndCharts!$A90+$A$11,IF($C$7,8,0),1,1) -> 1501.77 | G90: =OFFSET(InputPriceData!F$15,CalculationsAndCharts!$A90+$A$11,IF($C$7,8,0),1,1) -> 1503.56 | H90: 1494.75169 | I90: 1514.94 | J90: 1452.25 | K90: 0.6369436912 | L90: 0.2976261257 | M90: 1505.765865 | N90: 1440.854621 | O90: 1514.94 | P90: 1349.35 | Q90: 0.8625520865 | R90: 0.07304125829 | S90: 1463.538819 | Z90: 1505.765865 | AB90: 1463.538819 | AQ90: 24839700
A91: 59 | B91: =OFFSET(InputPriceData!B$15,CalculationsAndCharts!$A91+$A$11,0,1,1) -> 2017-10-06 | C91: =OFFSET(InputPriceData!G$15,CalculationsAndCharts!$A91+$A$11,IF($C$7,8,0),1,1) -> 28845700 | D91: =OFFSET(InputPriceData!C$15,CalculationsAndCharts!$A91+$A$11,IF($C$7,8,0),1,1) -> 1511.41 | E91: =OFFSET(InputPriceData!D$15,CalculationsAndCharts!$A91+$A$11,IF($C$7,8,0),1,1) -> 1511.41 | F91: =OFFSET(InputPriceData!E$15,CalculationsAndCharts!$A91+$A$11,IF($C$7,8,0),1,1) -> 1506.41 | G91: =OFFSET(InputPriceData!F$15,CalculationsAndCharts!$A91+$A$11,IF($C$7,8,0),1,1) -> 1510.22 | H91: 1492.794288 | I91: 1514.94 | J91: 1445.02 | K91: 0.8649885584 | L91: 0.3390888288 | M91: 1506.700585 | N91: 1438.295218 | O91: 1514.94 | P91: 1349.35 | Q91: 0.9429917266 | R91: 0.07619575398 | S91: 1460.385284 | Z91: 1506.700585 | AB91: 1460.385284 | AQ91: 28845700
A92: 60 | B92: =OFFSET(InputPriceData!B$15,CalculationsAndCharts!$A92+$A$11,0,1,1) -> 2017-10-05 | C92: =OFFSET(InputPriceData!G$15,CalculationsAndCharts!$A92+$A$11,IF($C$7,8,0),1,1) -> 30451200 | D92: =OFFSET(InputPriceData!C$15,CalculationsAndCharts!$A92+$A$11,IF($C$7,8,0),1,1) -> 1508.34 | E92: =OFFSET(InputPriceData!D$15,CalculationsAndCharts!$A92+$A$11,IF($C$7,8,0),1,1) -> 1514.94 | F92: =OFFSET(InputPriceData!E$15,CalculationsAndCharts!$A92+$A$11,IF($C$7,8,0),1,1) -> 1508.34 | G92: =OFFSET(InputPriceData!F$15,CalculationsAndCharts!$A92+$A$11,IF($C$7,8,0),1,1) -> 1512.09 | H92: 1488.921908 | I92: 1514.94 | J92: 1441.86 | K92: 0.9220032841 | L92: 0.3494551426 | M92: 1504.894905 | N92: 1435.359513 | O92: 1514.94 | P92: 1349.35 | Q92: 0.9655776315 | R92: 0.07708147575 | S92: 1456.274896 | Z92: 1504.894905 | AB92: 1456.274896 | AP92: 30451200
A93: 61 | B93: =OFFSET(InputPriceData!B$15,CalculationsAndCharts!$A93+$A$11,0,1,1) -> 2017-10-04 | C93: =OFFSET(InputPriceData!G$15,CalculationsAndCharts!$A93+$A$11,IF($C$7,8,0),1,1) -> 30171200 | D93: =OFFSET(InputPriceData!C$15,CalculationsAndCharts!$A93+$A$11,IF($C$7,8,0),1,1) -> 1512 | E93: =OFFSET(InputPriceData!D$15,CalculationsAndCharts!$A93+$A$11,IF($C$7,8,0),1,1) -> 1514.77 | F93: =OFFSET(InputPriceData!E$15,CalculationsAndCharts!$A93+$A$11,IF($C$7,8,0),1,1) -> 1505.07 | G93: =OFFSET(InputPriceData!F$15,CalculationsAndCharts!$A93+$A$11,IF($C$7,8,0),1,1) -> 1507.76 | H93: 1483.773443 | I93: 1514.77 | J93: 1441.69 | K93: 0.8081554461 | L93: 0.3287555357 | M93: 1501.029893 | N93: 1432.227656 | O93: 1514.77 | P93: 1349.35 | Q93: 0.9152460404 | R93: 0.07510768786 | S93: 1451.613259 | Z93: 1501.029893 | AB93: 1451.613259 | AQ93: 30171200
A94: 62 | B94: =OFFSET(InputPriceData!B$15,CalculationsAndCharts!$A94+$A$11,0,1,1) -> 2017-10-03 | C94: =OFFSET(InputPriceData!G$15,CalculationsAndCharts!$A94+$A$11,IF($C$7,8,0),1,1) -> 30688500 | D94: =OFFSET(InputPriceData!C$15,CalculationsAndCharts!$A94+$A$11,IF($C$7,8,0),1,1) -> 1509.94 | E94: =OFFSET(InputPriceData!D$15,CalculationsAndCharts!$A94+$A$11,IF($C$7,8,0),1,1) -> 1512.26 | F94: =OFFSET(InputPriceData!E$15,CalculationsAndCharts!$A94+$A$11,IF($C$7,8,0),1,1) -> 1503.52 | G94: =OFFSET(InputPriceData!F$15,CalculationsAndCharts!$A94+$A$11,IF($C$7,8,0),1,1) -> 1511.97 | H94: 1478.443096 | I94: 1512.26 | J94: 1440 | K94: 0.9919734293 | L94: 0.3621769871 | M94: 1497.733688 | N94: 1429.144703 | O94: 1512.26 | P94: 1349.35 | Q94: 0.996439752 | R94: 0.07829175498 | S94: 1447.053754 | Z94: 1497.733688 | AB94: 1447.053754 | AP94: 30688500
A95: 63 | B95: =OFFSET(InputPriceData!B$15,CalculationsAndCharts!$A95+$A$11,0,1,1) -> 2017-10-02 | C95: =OFFSET(InputPriceData!G$15,CalculationsAndCharts!$A95+$A$11,IF($C$7,8,0),1,1) -> 31997300 | D95: =OFFSET(InputPriceData!C$15,CalculationsAndCharts!$A95+$A$11,IF($C$7,8,0),1,1) -> 1491.05 | E95: =OFFSET(InputPriceData!D$15,CalculationsAndCharts!$A95+$A$11,IF($C$7,8,0),1,1) -> 1509.48 | F95: =OFFSET(InputPriceData!E$15,CalculationsAndCharts!$A95+$A$11,IF($C$7,8,0),1,1) -> 1491.05 | G95: =OFFSET(InputPriceData!F$15,CalculationsAndCharts!$A95+$A$11,IF($C$7,8,0),1,1) -> 1509.47 | H95: 1470.992673 | I95: 1509.48 | J95: 1438.29 | K95: 0.9997190617 | L95: 0.3635852839 | M95: 1489.649839 | N95: 1425.764079 | O95: 1509.48 | P95: 1349.35 | Q95: 0.9998751015 | R95: 0.07842647457 | S95: 1441.539637 | Z95: 1489.649839 | AB95: 1441.539637 | AP95: 31997300
A96: 64 | B96: =OFFSET(InputPriceData!B$15,CalculationsAndCharts!$A96+$A$11,0,1,1) -> 2017-09-29 | C96: =OFFSET(InputPriceData!G$15,CalculationsAndCharts!$A96+$A$11,IF($C$7,8,0),1,1) -> 32119200 | D96: =OFFSET(InputPriceData!C$15,CalculationsAndCharts!$A96+$A$11,IF($C$7,8,0),1,1) -> 1488.8 | E96: =OFFSET(InputPriceData!D$15,CalculationsAndCharts!$A96+$A$11,IF($C$7,8,0),1,1) -> 1493.56 | F96: =OFFSET(InputPriceData!E$15,CalculationsAndCharts!$A96+$A$11,IF($C$7,8,0),1,1) -> 1488.8 | G96: =OFFSET(InputPriceData!F$15,CalculationsAndCharts!$A96+$A$11,IF($C$7,8,0),1,1) -> 1490.86 | H96: 1462.442156 | I96: 1493.56 | J96: 1431.75 | K96: 0.9126354959 | L96: 0.3477519083 | M96: 1478.326533 | N96: 1422.347511 | O96: 1493.56 | P96: 1349.35 | Q96: 0.9625546079 | R96: 0.0769629258 | S96: 1435.758721 | Z96: 1478.326533 | AB96: 1435.758721 | AP96: 32119200
A97: 65 | B97: =OFFSET(InputPriceData!B$15,CalculationsAndCharts!$A97+$A$11,0,1,1) -> 2017-09-28 | C97: =OFFSET(InputPriceData!G$15,CalculationsAndCharts!$A97+$A$11,IF($C$7,8,0),1,1) -> 31686200 | D97: =OFFSET(InputPriceData!C$15,CalculationsAndCharts!$A97+$A$11,IF($C$7,8,0),1,1) -> 1484.8 | E97: =OFFSET(InputPriceData!D$15,CalculationsAndCharts!$A97+$A$11,IF($C$7,8,0),1,1) -> 1489.35 | F97: =OFFSET(InputPriceData!E$15,CalculationsAndCharts!$A97+$A$11,IF($C$7,8,0),1,1) -> 1478.2 | G97: =OFFSET(InputPriceData!F$15,CalculationsAndCharts!$A97+$A$11,IF($C$7,8,0),1,1) -> 1488.79 | H97: 1456.12708 | I97: 1489.35 | J97: 1422.25 | K97: 0.9833084948 | L97: 0.3606015445 | M97: 1471.644203 | N97: 1419.551083 | O97: 1489.35 | P97: 1349.35 | Q97: 0.992 | R97: 0.07811764706 | S97: 1431.164371 | Z97: 1471.644203 | AB97: 1431.164371 | AP97: 31686200
A98: 66 | B98: =OFFSET(InputPriceData!B$15,CalculationsAndCharts!$A98+$A$11,0,1,1) -> 2017-09-27 | C98: =OFFSET(InputPriceData!G$15,CalculationsAndCharts!$A98+$A$11,IF($C$7,8,0),1,1) -> 34560300 | D98: =OFFSET(InputPriceData!C$15,CalculationsAndCharts!$A98+$A$11,IF($C$7,8,0),1,1) -> 1457.27 | E98: =OFFSET(InputPriceData!D$15,CalculationsAndCharts!$A98+$A$11,IF($C$7,8,0),1,1) -> 1487.95 | F98: =OFFSET(InputPriceData!E$15,CalculationsAndCharts!$A98+$A$11,IF($C$7,8,0),1,1) -> 1457.27 | G98: =OFFSET(InputPriceData!F$15,CalculationsAndCharts!$A98+$A$11,IF($C$7,8,0),1,1) -> 1484.81 | H98: =G98*$C$18+$D$18*H99 -> 1448.868653 | I98: =MAX(OFFSET(E98,0,0,$A$19,1)) -> 1487.95 | J98: =MIN(OFFSET(F98,0,0,$A$19,1)) -> 1421.63 | K98: =ABS((G98-J98)-(I98-G98))/(I98-J98) -> 0.9053075995 | L98: =$C$18*(1+K98) -> 0.3464195635 | M98: =M99+L98*(G98-M99) -> 1461.974488 | N98: =$G98*$C$21+$D$21*N99 -> 1416.725004 | O98: =MAX(OFFSET($E98,0,0,$A$22,1)) -> 1487.95 | P98: =MIN(OFFSET($F98,0,0,$A$22,1)) -> 1349.35 | Q98: =ABS(($G98-P98)-(O98-$G98))/(O98-P98) -> 0.9546897547 | R98: =$C$21*(1+Q98) -> 0.07665450018 | S98: =S99+R98*($G98-S99) -> 1426.281341 | T98: =IF(AND($H99>$M99,$H98<$M98),"Up",IF(AND($H99<$M99,$H98>$M98),"Dn","")) ->  | U98: =IF(AND($H99<$N99,$H98>$N98),"Up",IF(AND($H99>$N99,$H98<$N98),"Dn","")) ->  | V98: =IF(AND($M99<$S99,$M98>$S98),"Up",IF(AND($M99>$S99,$M98<$S98),"Dn","")) ->  | W98: =IF(AND($N99>$S99,$N98<$S98),"Up",IF(AND($N99<$S99,$N98>$S98),"Dn","")) ->  | Y98: =IF($S$4,H98,NA()) ->  | Z98: =IF($S$5,M98,NA()) -> 1461.974488 | AA98: =IF($S$6,N98,NA()) ->  | AB98: =IF($S$7,S98,NA()) -> 1426.281341 | AC98: =IF(AND($S$10,$T98="Up"),$AZ$34,NA()) ->  | AD98: =IF(AND($S$10,$T98="Dn"),$AZ$34,NA()) ->  | AE98: =IF(AND($S$11,$U98="Up"),$H98,NA()) ->  | AF98: =IF(AND($S$11,$U98="Dn"),$H98,NA()) ->  | AG98: =IF(AND($S$12,$V98="Up"),M98,NA()) ->  | AH98: =IF(AND($S$12,$V98="Dn"),M98,NA()) ->  | AI98: =IF(AND($S$13,$W98="Up"),$AZ$34,NA()) ->  | AJ98: =IF(AND($S$13,$W98="Dn"),$AZ$34,NA()) ->  | AP98: 34560300
A99: 67 | B99: =OFFSET(InputPriceData!B$15,CalculationsAndCharts!$A99+$A$11,0,1,1) -> 2017-09-26 | C99: =OFFSET(InputPriceData!G$15,CalculationsAndCharts!$A99+$A$11,IF($C$7,8,0),1,1) -> 30431100 | D99: =OFFSET(InputPriceData!C$15,CalculationsAndCharts!$A99+$A$11,IF($C$7,8,0),1,1) -> 1452.25 | E99: =OFFSET(InputPriceData!D$15,CalculationsAndCharts!$A99+$A$11,IF($C$7,8,0),1,1) -> 1460.95 | F99: =OFFSET(InputPriceData!E$15,CalculationsAndCharts!$A99+$A$11,IF($C$7,8,0),1,1) -> 1452.25 | G99: =OFFSET(InputPriceData!F$15,CalculationsAndCharts!$A99+$A$11,IF($C$7,8,0),1,1) -> 1456.86 | H99: 1440.881687 | I99: 1460.95 | J99: 1421.63 | K99: 0.7919633774 | L99: 0.3258115232 | M99: 1449.8709 | N99: 1413.946025 | O99: 1460.95 | P99: 1349.35 | Q99: 0.926702509 | R99: 0.07555696114 | S99: 1421.422396 | Z99: 1449.8709 | AB99: 1421.422396 | AP99: 30431100
A100: 68 | B100: =OFFSET(InputPriceData!B$15,CalculationsAndCharts!$A100+$A$11,0,1,1) -> 2017-09-25 | C100: =OFFSET(InputPriceData!G$15,CalculationsAndCharts!$A100+$A$11,IF($C$7,8,0),1,1) -> 32978900 | D100: =OFFSET(InputPriceData!C$15,CalculationsAndCharts!$A100+$A$11,IF($C$7,8,0),1,1) -> 1450.63 | E100: =OFFSET(InputPriceData!D$15,CalculationsAndCharts!$A100+$A$11,IF($C$7,8,0),1,1) -> 1455.22 | F100: =OFFSET(InputPriceData!E$15,CalculationsAndCharts!$A100+$A$11,IF($C$7,8,0),1,1) -> 1445.02 | G100: =OFFSET(InputPriceData!F$15,CalculationsAndCharts!$A100+$A$11,IF($C$7,8,0),1,1) -> 1451.96 | H100: 1437.330951 | I100: 1455.22 | J100: 1415.18 | K100: 0.8371628372 | L100: 0.3340296068 | M100: 1446.493314 | N100: 1412.194434 | O100: 1455.22 | P100: 1349.35 | Q100: 0.9384150373 | R100: 0.07601627597 | S100: 1418.525996 | Z100: 1446.493314 | AB100: 1418.525996 | AP100: 32978900
A101: 69 | B101: =OFFSET(InputPriceData!B$15,CalculationsAndCharts!$A101+$A$11,0,1,1) -> 2017-09-22 | C101: =OFFSET(InputPriceData!G$15,CalculationsAndCharts!$A101+$A$11,IF($C$7,8,0),1,1) -> 28659600 | D101: =OFFSET(InputPriceData!C$15,CalculationsAndCharts!$A101+$A$11,IF($C$7,8,0),1,1) -> 1443.47 | E101: =OFFSET(InputPriceData!D$15,CalculationsAndCharts!$A101+$A$11,IF($C$7,8,0),1,1) -> 1451.51 | F101: =OFFSET(InputPriceData!E$15,CalculationsAndCharts!$A101+$A$11,IF($C$7,8,0),1,1) -> 1441.86 | G101: =OFFSET(InputPriceData!F$15,CalculationsAndCharts!$A101+$A$11,IF($C$7,8,0),1,1) -> 1450.78 | H101: 1434.080052 | I101: 1451.51 | J101: 1400.56 | K101: 0.9713444553 | L101: 0.3584262646 | M101: 1443.751399 | N101: 1410.57135 | O101: 1452.09 | P101: 1349.35 | Q101: 0.9744987347 | R101: 0.07743132293 | S101: 1415.775375 | Z101: 1443.751399 | AB101: 1415.775375 | AP101: 28659600
A102: 70 | B102: =OFFSET(InputPriceData!B$15,CalculationsAndCharts!$A102+$A$11,0,1,1) -> 2017-09-21 | C102: =OFFSET(InputPriceData!G$15,CalculationsAndCharts!$A102+$A$11,IF($C$7,8,0),1,1) -> 29308600 | D102: =OFFSET(InputPriceData!C$15,CalculationsAndCharts!$A102+$A$11,IF($C$7,8,0),1,1) -> 1445.2 | E102: =OFFSET(InputPriceData!D$15,CalculationsAndCharts!$A102+$A$11,IF($C$7,8,0),1,1) -> 1448.84 | F102: =OFFSET(InputPriceData!E$15,CalculationsAndCharts!$A102+$A$11,IF($C$7,8,0),1,1) -> 1441.69 | G102: =OFFSET(InputPriceData!F$15,CalculationsAndCharts!$A102+$A$11,IF($C$7,8,0),1,1) -> 1444.18 | H102: 1430.368952 | I102: 1448.84 | J102: 1394.43 | K102: 0.8287079581 | L102: 0.332492356 | M102: 1439.824749 | N102: 1408.93018 | O102: 1452.09 | P102: 1349.35 | Q102: 0.8460190773 | R102: 0.07239290499 | S102: 1412.837432 | Z102: 1439.824749 | AB102: 1412.837432 | AQ102: 29308600
A103: 71 | B103: =OFFSET(InputPriceData!B$15,CalculationsAndCharts!$A103+$A$11,0,1,1) -> 2017-09-20 | C103: =OFFSET(InputPriceData!G$15,CalculationsAndCharts!$A103+$A$11,IF($C$7,8,0),1,1) -> 35300100 | D103: =OFFSET(InputPriceData!C$15,CalculationsAndCharts!$A103+$A$11,IF($C$7,8,0),1,1) -> 1440.48 | E103: =OFFSET(InputPriceData!D$15,CalculationsAndCharts!$A103+$A$11,IF($C$7,8,0),1,1) -> 1446.48 | F103: =OFFSET(InputPriceData!E$15,CalculationsAndCharts!$A103+$A$11,IF($C$7,8,0),1,1) -> 1440 | G103: =OFFSET(InputPriceData!F$15,CalculationsAndCharts!$A103+$A$11,IF($C$7,8,0),1,1) -> 1445.42 | H103: 1427.29983 | I103: 1446.48 | J103: 1393.88 | K103: 0.9596958175 | L103: 0.3563083305 | M103: 1437.655354 | N103: 1407.491412 | O103: 1452.09 | P103: 1349.35 | Q103: 0.8701576796 | R103: 0.07333951685 | S103: 1410.391375 | Z103: 1437.655354 | AB103: 1410.391375 | AP103: 35300100
A104: 72 | B104: =OFFSET(InputPriceData!B$15,CalculationsAndCharts!$A104+$A$11,0,1,1) -> 2017-09-19 | C104: =OFFSET(InputPriceData!G$15,CalculationsAndCharts!$A104+$A$11,IF($C$7,8,0),1,1) -> 32491000 | D104: =OFFSET(InputPriceData!C$15,CalculationsAndCharts!$A104+$A$11,IF($C$7,8,0),1,1) -> 1441.19 | E104: =OFFSET(InputPriceData!D$15,CalculationsAndCharts!$A104+$A$11,IF($C$7,8,0),1,1) -> 1442.58 | F104: =OFFSET(InputPriceData!E$15,CalculationsAndCharts!$A104+$A$11,IF($C$7,8,0),1,1) -> 1438.29 | G104: =OFFSET(InputPriceData!F$15,CalculationsAndCharts!$A104+$A$11,IF($C$7,8,0),1,1) -> 1440.4 | H104: 1423.273126 | I104: 1444.27 | J104: 1393.88 | K104: 0.8463980949 | L104: 0.3357087445 | M104: 1433.357321 | N104: 1405.943307 | O104: 1452.09 | P104: 1349.35 | Q104: 0.7724352735 | R104: 0.06950726563 | S104: 1407.619073 | Z104: 1433.357321 | AB104: 1407.619073 | AQ104: 32491000
A105: 73 | B105: =OFFSET(InputPriceData!B$15,CalculationsAndCharts!$A105+$A$11,0,1,1) -> 2017-09-18 | C105: =OFFSET(InputPriceData!G$15,CalculationsAndCharts!$A105+$A$11,IF($C$7,8,0),1,1) -> 31943000 | D105: =OFFSET(InputPriceData!C$15,CalculationsAndCharts!$A105+$A$11,IF($C$7,8,0),1,1) -> 1431.75 | E105: =OFFSET(InputPriceData!D$15,CalculationsAndCharts!$A105+$A$11,IF($C$7,8,0),1,1) -> 1444.27 | F105: =OFFSET(InputPriceData!E$15,CalculationsAndCharts!$A105+$A$11,IF($C$7,8,0),1,1) -> 1431.75 | G105: =OFFSET(InputPriceData!F$15,CalculationsAndCharts!$A105+$A$11,IF($C$7,8,0),1,1) -> 1441.08 | H105: 1419.467154 | I105: 1444.27 | J105: 1393.88 | K105: 0.8733875769 | L105: 0.3406159231 | M105: 1429.798206 | N105: 1404.536911 | O105: 1452.09 | P105: 1349.35 | Q105: 0.7856725715 | R105: 0.07002637535 | S105: 1405.170357 | W105: Up | Z105: 1429.798206 | AB105: 1405.170357 | AP105: 31943000
A106: 74 | B106: =OFFSET(InputPriceData!B$15,CalculationsAndCharts!$A106+$A$11,0,1,1) -> 2017-09-15 | C106: =OFFSET(InputPriceData!G$15,CalculationsAndCharts!$A106+$A$11,IF($C$7,8,0),1,1) -> 48531700 | D106: =OFFSET(InputPriceData!C$15,CalculationsAndCharts!$A106+$A$11,IF($C$7,8,0),1,1) -> 1425.35 | E106: =OFFSET(InputPriceData!D$15,CalculationsAndCharts!$A106+$A$11,IF($C$7,8,0),1,1) -> 1431.99 | F106: =OFFSET(InputPriceData!E$15,CalculationsAndCharts!$A106+$A$11,IF($C$7,8,0),1,1) -> 1422.25 | G106: =OFFSET(InputPriceData!F$15,CalculationsAndCharts!$A106+$A$11,IF($C$7,8,0),1,1) -> 1431.71 | H106: 1414.664299 | I106: 1431.99 | J106: 1393.88 | K106: 0.985305694 | L106: 0.3609646716 | M106: 1423.970405 | N106: 1403.045356 | O106: 1452.09 | P106: 1349.35 | Q106: 0.6032703913 | R106: 0.06287334868 | S106: 1402.466386 | Z106: 1423.970405 | AB106: 1402.466386 | AP106: 48531700
A107: 75 | B107: =OFFSET(InputPriceData!B$15,CalculationsAndCharts!$A107+$A$11,0,1,1) -> 2017-09-14 | C107: =OFFSET(InputPriceData!G$15,CalculationsAndCharts!$A107+$A$11,IF($C$7,8,0),1,1) -> 34144600 | D107: =OFFSET(InputPriceData!C$15,CalculationsAndCharts!$A107+$A$11,IF($C$7,8,0),1,1) -> 1426.57 | E107: =OFFSET(InputPriceData!D$15,CalculationsAndCharts!$A107+$A$11,IF($C$7,8,0),1,1) -> 1427.92 | F107: =OFFSET(InputPriceData!E$15,CalculationsAndCharts!$A107+$A$11,IF($C$7,8,0),1,1) -> 1421.63 | G107: =OFFSET(InputPriceData!F$15,CalculationsAndCharts!$A107+$A$11,IF($C$7,8,0),1,1) -> 1425.02 | H107: 1410.876365 | I107: 1428.74 | J107: 1392.04 | K107: 0.7972752044 | L107: 0.3267773099 | M107: 1419.598628 | N107: 1401.875371 | O107: 1452.09 | P107: 1349.35 | Q107: 0.4730387386 | R107: 0.05776622504 | S107: 1400.504384 | Z107: 1419.598628 | AB107: 1400.504384 | AQ107: 34144600
A108: 76 | B108: =OFFSET(InputPriceData!B$15,CalculationsAndCharts!$A108+$A$11,0,1,1) -> 2017-09-13 | C108: =OFFSET(InputPriceData!G$15,CalculationsAndCharts!$A108+$A$11,IF($C$7,8,0),1,1) -> 33680500 | D108: =OFFSET(InputPriceData!C$15,CalculationsAndCharts!$A108+$A$11,IF($C$7,8,0),1,1) -> 1423.3 | E108: =OFFSET(InputPriceData!D$15,CalculationsAndCharts!$A108+$A$11,IF($C$7,8,0),1,1) -> 1428.74 | F108: =OFFSET(InputPriceData!E$15,CalculationsAndCharts!$A108+$A$11,IF($C$7,8,0),1,1) -> 1421.88 | G108: =OFFSET(InputPriceData!F$15,CalculationsAndCharts!$A108+$A$11,IF($C$7,8,0),1,1) -> 1426.89 | H108: 1407.733335 | I108: 1428.74 | J108: 1381.2 | K108: 0.9221708035 | L108: 0.3494856006 | M108: 1416.967134 | N108: 1400.930692 | O108: 1452.09 | P108: 1349.35 | Q108: 0.5094413082 | R108: 0.05919377679 | S108: 1399.001387 | Z108: 1416.967134 | AB108: 1399.001387 | AP108: 33680500
A109: 77 | B109: =OFFSET(InputPriceData!B$15,CalculationsAndCharts!$A109+$A$11,0,1,1) -> 2017-09-12 | C109: =OFFSET(InputPriceData!G$15,CalculationsAndCharts!$A109+$A$11,IF($C$7,8,0),1,1) -> 32309200 | D109: =OFFSET(InputPriceData!C$15,CalculationsAndCharts!$A109+$A$11,IF($C$7,8,0),1,1) -> 1415.34 | E109: =OFFSET(InputPriceData!D$15,CalculationsAndCharts!$A109+$A$11,IF($C$7,8,0),1,1) -> 1423.93 | F109: =OFFSET(InputPriceData!E$15,CalculationsAndCharts!$A109+$A$11,IF($C$7,8,0),1,1) -> 1415.18 | G109: =OFFSET(InputPriceData!F$15,CalculationsAndCharts!$A109+$A$11,IF($C$7,8,0),1,1) -> 1423.46 | H109: 1403.476299 | I109: 1423.93 | J109: 1371.8 | K109: 0.9819681565 | L109: 0.3603578466 | M109: 1411.636124 | N109: 1399.871129 | O109: 1452.09 | P109: 1349.35 | Q109: 0.4426708195 | R109: 0.05657532626 | S109: 1397.246688 | Z109: 1411.636124 | AB109: 1397.246688 | AP109: 32309200
A110: 78 | B110: =OFFSET(InputPriceData!B$15,CalculationsAndCharts!$A110+$A$11,0,1,1) -> 2017-09-11 | C110: =OFFSET(InputPriceData!G$15,CalculationsAndCharts!$A110+$A$11,IF($C$7,8,0),1,1) -> 32917600 | D110: =OFFSET(InputPriceData!C$15,CalculationsAndCharts!$A110+$A$11,IF($C$7,8,0),1,1) -> 1400.56 | E110: =OFFSET(InputPriceData!D$15,CalculationsAndCharts!$A110+$A$11,IF($C$7,8,0),1,1) -> 1415.75 | F110: =OFFSET(InputPriceData!E$15,CalculationsAndCharts!$A110+$A$11,IF($C$7,8,0),1,1) -> 1400.56 | G110: =OFFSET(InputPriceData!F$15,CalculationsAndCharts!$A110+$A$11,IF($C$7,8,0),1,1) -> 1414.83 | H110: 1399.035476 | I110: 1415.75 | J110: 1371.8 | K110: 0.9581342435 | L110: 0.3560244079 | M110: 1404.974857 | N110: 1398.908317 | O110: 1452.09 | P110: 1349.35 | Q110: 0.2746739342 | R110: 0.04998721311 | S110: 1395.674727 | U110: Up | Z110: 1404.974857 | AB110: 1395.674727 | AP110: 32917600
A111: 79 | B111: =OFFSET(InputPriceData!B$15,CalculationsAndCharts!$A111+$A$11,0,1,1) -> 2017-09-08 | C111: =OFFSET(InputPriceData!G$15,CalculationsAndCharts!$A111+$A$11,IF($C$7,8,0),1,1) -> 33024900 | D111: =OFFSET(InputPriceData!C$15,CalculationsAndCharts!$A111+$A$11,IF($C$7,8,0),1,1) -> 1398.19 | E111: =OFFSET(InputPriceData!D$15,CalculationsAndCharts!$A111+$A$11,IF($C$7,8,0),1,1) -> 1403.53 | F111: =OFFSET(InputPriceData!E$15,CalculationsAndCharts!$A111+$A$11,IF($C$7,8,0),1,1) -> 1394.43 | G111: =OFFSET(InputPriceData!F$15,CalculationsAndCharts!$A111+$A$11,IF($C$7,8,0),1,1) -> 1399.43 | H111: 1395.525582 | I111: 1414.55 | J111: 1371.8 | K111: 0.2926315789 | L111: 0.2350239234 | M111: 1399.526404 | N111: 1398.258453 | O111: 1452.09 | P111: 1349.35 | Q111: 0.02511193303 | R111: 0.04020046796 | S111: 1394.666826 | Z111: 1399.526404 | AB111: 1394.666826 | AP111: 33024900
A112: 80 | B112: =OFFSET(InputPriceData!B$15,CalculationsAndCharts!$A112+$A$11,0,1,1) -> 2017-09-07 | C112: =OFFSET(InputPriceData!G$15,CalculationsAndCharts!$A112+$A$11,IF($C$7,8,0),1,1) -> 33539300 | D112: =OFFSET(InputPriceData!C$15,CalculationsAndCharts!$A112+$A$11,IF($C$7,8,0),1,1) -> 1402.46 | E112: =OFFSET(InputPriceData!D$15,CalculationsAndCharts!$A112+$A$11,IF($C$7,8,0),1,1) -> 1404.31 | F112: =OFFSET(InputPriceData!E$15,CalculationsAndCharts!$A112+$A$11,IF($C$7,8,0),1,1) -> 1393.88 | G112: =OFFSET(InputPriceData!F$15,CalculationsAndCharts!$A112+$A$11,IF($C$7,8,0),1,1) -> 1398.67 | H112: 1394.657933 | I112: 1414.55 | J112: 1370.16 | K112: 0.2845235413 | L112: 0.2335497348 | M112: 1399.556022 | N112: 1398.210635 | O112: 1452.09 | P112: 1349.35 | Q112: 0.03990656025 | R112: 0.04078064942 | S112: 1394.467324 | Z112: 1399.556022 | AB112: 1394.467324 | AQ112: 33539300
A113: 81 | B113: =OFFSET(InputPriceData!B$15,CalculationsAndCharts!$A113+$A$11,0,1,1) -> 2017-09-06 | C113: =OFFSET(InputPriceData!G$15,CalculationsAndCharts!$A113+$A$11,IF($C$7,8,0),1,1) -> 33744100 | D113: =OFFSET(InputPriceData!C$15,CalculationsAndCharts!$A113+$A$11,IF($C$7,8,0),1,1) -> 1400.01 | E113: =OFFSET(InputPriceData!D$15,CalculationsAndCharts!$A113+$A$11,IF($C$7,8,0),1,1) -> 1406.02 | F113: =OFFSET(InputPriceData!E$15,CalculationsAndCharts!$A113+$A$11,IF($C$7,8,0),1,1) -> 1399.27 | G113: =OFFSET(InputPriceData!F$15,CalculationsAndCharts!$A113+$A$11,IF($C$7,8,0),1,1) -> 1402.2 | H113: 1393.766363 | I113: 1414.55 | J113: 1363.17 | K113: 0.5192681977 | L113: 0.2762305814 | M113: 1399.826007 | N113: 1398.191885 | O113: 1452.09 | P113: 1349.35 | Q113: 0.02881058984 | R113: 0.04034551333 | S113: 1394.28865 | Z113: 1399.826007 | AB113: 1394.28865 | AP113: 33744100
A114: 82 | B114: =OFFSET(InputPriceData!B$15,CalculationsAndCharts!$A114+$A$11,0,1,1) -> 2017-09-05 | C114: =OFFSET(InputPriceData!G$15,CalculationsAndCharts!$A114+$A$11,IF($C$7,8,0),1,1) -> 34902600 | D114: =OFFSET(InputPriceData!C$15,CalculationsAndCharts!$A114+$A$11,IF($C$7,8,0),1,1) -> 1413.3 | E114: =OFFSET(InputPriceData!D$15,CalculationsAndCharts!$A114+$A$11,IF($C$7,8,0),1,1) -> 1414.55 | F114: =OFFSET(InputPriceData!E$15,CalculationsAndCharts!$A114+$A$11,IF($C$7,8,0),1,1) -> 1394.51 | G114: =OFFSET(InputPriceData!F$15,CalculationsAndCharts!$A114+$A$11,IF($C$7,8,0),1,1) -> 1399.66 | H114: 1391.892221 | I114: 1414.55 | J114: 1357.89 | K114: 0.474408754 | L114: 0.2680743189 | M114: 1398.919959 | N114: 1398.028289 | O114: 1452.09 | P114: 1349.35 | Q114: 0.02063461164 | R114: 0.04002488673 | S114: 1393.956043 | Z114: 1398.919959 | AB114: 1393.956043 | AQ114: 34902600
A115: 83 | B115: =OFFSET(InputPriceData!B$15,CalculationsAndCharts!$A115+$A$11,0,1,1) -> 2017-09-01 | C115: =OFFSET(InputPriceData!G$15,CalculationsAndCharts!$A115+$A$11,IF($C$7,8,0),1,1) -> 27107300 | D115: =OFFSET(InputPriceData!C$15,CalculationsAndCharts!$A115+$A$11,IF($C$7,8,0),1,1) -> 1405.82 | E115: =OFFSET(InputPriceData!D$15,CalculationsAndCharts!$A115+$A$11,IF($C$7,8,0),1,1) -> 1413.87 | F115: =OFFSET(InputPriceData!E$15,CalculationsAndCharts!$A115+$A$11,IF($C$7,8,0),1,1) -> 1405.82 | G115: =OFFSET(InputPriceData!F$15,CalculationsAndCharts!$A115+$A$11,IF($C$7,8,0),1,1) -> 1413.57 | H115: 1390.166048 | I115: 1413.87 | J115: 1351.2 | K115: 0.9904260412 | L115: 0.3618956438 | M115: 1398.648913 | N115: 1397.961688 | O115: 1452.09 | P115: 1349.35 | Q115: 0.2501459996 | R115: 0.04902533332 | S115: 1393.718224 | V115: Up | Z115: 1398.648913 | AB115: 1393.718224 | AG115: 1398.648913 | AP115: 27107300
A116: 84 | B116: =OFFSET(InputPriceData!B$15,CalculationsAndCharts!$A116+$A$11,0,1,1) -> 2017-08-31 | C116: =OFFSET(InputPriceData!G$15,CalculationsAndCharts!$A116+$A$11,IF($C$7,8,0),1,1) -> 33481100 | D116: =OFFSET(InputPriceData!C$15,CalculationsAndCharts!$A116+$A$11,IF($C$7,8,0),1,1) -> 1392.04 | E116: =OFFSET(InputPriceData!D$15,CalculationsAndCharts!$A116+$A$11,IF($C$7,8,0),1,1) -> 1406.44 | F116: =OFFSET(InputPriceData!E$15,CalculationsAndCharts!$A116+$A$11,IF($C$7,8,0),1,1) -> 1392.04 | G116: =OFFSET(InputPriceData!F$15,CalculationsAndCharts!$A116+$A$11,IF($C$7,8,0),1,1) -> 1405.28 | H116: 1384.96517 | I116: 1406.44 | J116: 1349.35 | K116: 0.9593624102 | L116: 0.356247711 | M116: 1390.18654 | N116: 1397.324614 | O116: 1452.09 | P116: 1349.35 | Q116: 0.08876776329 | R116: 0.04269677503 | S116: 1392.694811 | Z116: 1390.18654 | AB116: 1392.694811 | AP116: 33481100
A117: 85 | B117: =OFFSET(InputPriceData!B$15,CalculationsAndCharts!$A117+$A$11,0,1,1) -> 2017-08-30 | C117: =OFFSET(InputPriceData!G$15,CalculationsAndCharts!$A117+$A$11,IF($C$7,8,0),1,1) -> 26336600 | D117: =OFFSET(InputPriceData!C$15,CalculationsAndCharts!$A117+$A$11,IF($C$7,8,0),1,1) -> 1383.21 | E117: =OFFSET(InputPriceData!D$15,CalculationsAndCharts!$A117+$A$11,IF($C$7,8,0),1,1) -> 1392.77 | F117: =OFFSET(InputPriceData!E$15,CalculationsAndCharts!$A117+$A$11,IF($C$7,8,0),1,1) -> 1381.2 | G117: =OFFSET(InputPriceData!F$15,CalculationsAndCharts!$A117+$A$11,IF($C$7,8,0),1,1) -> 1391.32 | H117: 1380.450764 | I117: 1392.77 | J117: 1349.35 | K117: 0.9332105021 | L117: 0.3514928186 | M117: 1381.833933 | N117: 1396.999904 | O117: 1452.09 | P117: 1349.35 | Q117: 0.1829861787 | R117: 0.04639161485 | S117: 1392.133498 | T117: Up | Z117: 1381.833933 | AB117: 1392.133498 | AP117: 26336600
A118: 86 | B118: =OFFSET(InputPriceData!B$15,CalculationsAndCharts!$A118+$A$11,0,1,1) -> 2017-08-29 | C118: =OFFSET(InputPriceData!G$15,CalculationsAndCharts!$A118+$A$11,IF($C$7,8,0),1,1) -> 27375800 | D118: =OFFSET(InputPriceData!C$15,CalculationsAndCharts!$A118+$A$11,IF($C$7,8,0),1,1) -> 1381.31 | E118: =OFFSET(InputPriceData!D$15,CalculationsAndCharts!$A118+$A$11,IF($C$7,8,0),1,1) -> 1385.19 | F118: =OFFSET(InputPriceData!E$15,CalculationsAndCharts!$A118+$A$11,IF($C$7,8,0),1,1) -> 1371.8 | G118: =OFFSET(InputPriceData!F$15,CalculationsAndCharts!$A118+$A$11,IF($C$7,8,0),1,1) -> 1383.68 | H118: 1378.035378 | I118: 1391.68 | J118: 1349.35 | K118: 0.6220174817 | L118: 0.2949122694 | M118: 1376.692456 | N118: 1397.231737 | O118: 1452.09 | P118: 1349.35 | Q118: 0.3317111154 | R118: 0.05222396531 | S118: 1392.173073 | Z118: 1376.692456 | AB118: 1392.173073 | AP118: 27375800
A119: 87 | B119: =OFFSET(InputPriceData!B$15,CalculationsAndCharts!$A119+$A$11,0,1,1) -> 2017-08-28 | C119: =OFFSET(InputPriceData!G$15,CalculationsAndCharts!$A119+$A$11,IF($C$7,8,0),1,1) -> 26777000 | D119: =OFFSET(InputPriceData!C$15,CalculationsAndCharts!$A119+$A$11,IF($C$7,8,0),1,1) -> 1377.76 | E119: =OFFSET(InputPriceData!D$15,CalculationsAndCharts!$A119+$A$11,IF($C$7,8,0),1,1) -> 1382.53 | F119: =OFFSET(InputPriceData!E$15,CalculationsAndCharts!$A119+$A$11,IF($C$7,8,0),1,1) -> 1377.06 | G119: =OFFSET(InputPriceData!F$15,CalculationsAndCharts!$A119+$A$11,IF($C$7,8,0),1,1) -> 1382.23 | H119: 1376.781017 | I119: 1395.88 | J119: 1349.35 | K119: 0.4132817537 | L119: 0.2569603189 | M119: 1373.769823 | N119: 1397.784869 | O119: 1452.09 | P119: 1349.35 | Q119: 0.3599377068 | R119: 0.05333089046 | S119: 1392.641055 | Z119: 1373.769823 | AB119: 1392.641055 | AP119: 26777000
A120: 88 | B120: =OFFSET(InputPriceData!B$15,CalculationsAndCharts!$A120+$A$11,0,1,1) -> 2017-08-25 | C120: =OFFSET(InputPriceData!G$15,CalculationsAndCharts!$A120+$A$11,IF($C$7,8,0),1,1) -> 25887800 | D120: =OFFSET(InputPriceData!C$15,CalculationsAndCharts!$A120+$A$11,IF($C$7,8,0),1,1) -> 1374.38 | E120: =OFFSET(InputPriceData!D$15,CalculationsAndCharts!$A120+$A$11,IF($C$7,8,0),1,1) -> 1380.6 | F120: =OFFSET(InputPriceData!E$15,CalculationsAndCharts!$A120+$A$11,IF($C$7,8,0),1,1) -> 1373.53 | G120: =OFFSET(InputPriceData!F$15,CalculationsAndCharts!$A120+$A$11,IF($C$7,8,0),1,1) -> 1377.45 | H120: 1375.570132 | I120: 1395.88 | J120: 1349.35 | K120: 0.20782291 | L120: 0.2196041654 | M120: 1370.844098 | N120: 1398.419762 | O120: 1452.09 | P120: 1349.35 | Q120: 0.4529881254 | R120: 0.05697992648 | S120: 1393.227565 | Z120: 1370.844098 | AB120: 1393.227565 | AP120: 25887800
A121: 89 | B121: =OFFSET(InputPriceData!B$15,CalculationsAndCharts!$A121+$A$11,0,1,1) -> 2017-08-24 | C121: =OFFSET(InputPriceData!G$15,CalculationsAndCharts!$A121+$A$11,IF($C$7,8,0),1,1) -> 28465900 | D121: =OFFSET(InputPriceData!C$15,CalculationsAndCharts!$A121+$A$11,IF($C$7,8,0),1,1) -> 1370.16 | E121: =OFFSET(InputPriceData!D$15,CalculationsAndCharts!$A121+$A$11,IF($C$7,8,0),1,1) -> 1377.05 | F121: =OFFSET(InputPriceData!E$15,CalculationsAndCharts!$A121+$A$11,IF($C$7,8,0),1,1) -> 1370.16 | G121: =OFFSET(InputPriceData!F$15,CalculationsAndCharts!$A121+$A$11,IF($C$7,8,0),1,1) -> 1373.88 | H121: 1375.152384 | I121: 1395.88 | J121: 1349.35 | K121: 0.05437352246 | L121: 0.1917042768 | M121: 1368.985191 | N121: 1399.275671 | O121: 1452.09 | P121: 1349.35 | Q121: 0.52248394 | R121: 0.05970525255 | S121: 1394.18089 | Z121: 1368.985191 | AB121: 1394.18089 | AP121: 28465900
A122: 90 | B122: =OFFSET(InputPriceData!B$15,CalculationsAndCharts!$A122+$A$11,0,1,1) -> 2017-08-23 | C122: =OFFSET(InputPriceData!G$15,CalculationsAndCharts!$A122+$A$11,IF($C$7,8,0),1,1) -> 27852900 | D122: =OFFSET(InputPriceData!C$15,CalculationsAndCharts!$A122+$A$11,IF($C$7,8,0),1,1) -> 1370.68 | E122: =OFFSET(InputPriceData!D$15,CalculationsAndCharts!$A122+$A$11,IF($C$7,8,0),1,1) -> 1373.28 | F122: =OFFSET(InputPriceData!E$15,CalculationsAndCharts!$A122+$A$11,IF($C$7,8,0),1,1) -> 1363.17 | G122: =OFFSET(InputPriceData!F$15,CalculationsAndCharts!$A122+$A$11,IF($C$7,8,0),1,1) -> 1369.74 | H122: 1375.435135 | I122: 1396.6 | J122: 1349.35 | K122: 0.1369312169 | L122: 0.2067147667 | M122: 1367.824284 | N122: 1400.312229 | O122: 1452.09 | P122: 1349.35 | Q122: 0.6030757251 | R122: 0.06286571471 | S122: 1395.469922 | Z122: 1367.824284 | AB122: 1395.469922 | AQ122: 27852900
A123: 91 | B123: =OFFSET(InputPriceData!B$15,CalculationsAndCharts!$A123+$A$11,0,1,1) -> 2017-08-22 | C123: =OFFSET(InputPriceData!G$15,CalculationsAndCharts!$A123+$A$11,IF($C$7,8,0),1,1) -> 27774900 | D123: =OFFSET(InputPriceData!C$15,CalculationsAndCharts!$A123+$A$11,IF($C$7,8,0),1,1) -> 1357.89 | E123: =OFFSET(InputPriceData!D$15,CalculationsAndCharts!$A123+$A$11,IF($C$7,8,0),1,1) -> 1372.33 | F123: =OFFSET(InputPriceData!E$15,CalculationsAndCharts!$A123+$A$11,IF($C$7,8,0),1,1) -> 1357.89 | G123: =OFFSET(InputPriceData!F$15,CalculationsAndCharts!$A123+$A$11,IF($C$7,8,0),1,1) -> 1371.54 | H123: 1376.700721 | I123: 1409.78 | J123: 1349.35 | K123: 0.265596558 | L123: 0.2301084651 | M123: 1367.325086 | N123: 1401.560075 | O123: 1452.09 | P123: 1349.35 | Q123: 0.5680358186 | R123: 0.06149160073 | S123: 1397.19596 | Z123: 1367.325086 | AB123: 1397.19596 | AP123: 27774900
A124: 92 | B124: =OFFSET(InputPriceData!B$15,CalculationsAndCharts!$A124+$A$11,0,1,1) -> 2017-08-21 | C124: =OFFSET(InputPriceData!G$15,CalculationsAndCharts!$A124+$A$11,IF($C$7,8,0),1,1) -> 27881500 | D124: =OFFSET(InputPriceData!C$15,CalculationsAndCharts!$A124+$A$11,IF($C$7,8,0),1,1) -> 1357.74 | E124: =OFFSET(InputPriceData!D$15,CalculationsAndCharts!$A124+$A$11,IF($C$7,8,0),1,1) -> 1358.09 | F124: =OFFSET(InputPriceData!E$15,CalculationsAndCharts!$A124+$A$11,IF($C$7,8,0),1,1) -> 1351.2 | G124: =OFFSET(InputPriceData!F$15,CalculationsAndCharts!$A124+$A$11,IF($C$7,8,0),1,1) -> 1356.9 | H124: 1377.847548 | I124: 1426.29 | J124: 1349.35 | K124: 0.8037431765 | L124: 0.3279533048 | M124: 1366.065314 | N124: 1402.785384 | O124: 1452.09 | P124: 1349.35 | Q124: 0.8530270586 | R124: 0.07266772779 | S124: 1398.876953 | Z124: 1366.065314 | AB124: 1398.876953 | AQ124: 27881500
A125: 93 | B125: =OFFSET(InputPriceData!B$15,CalculationsAndCharts!$A125+$A$11,0,1,1) -> 2017-08-18 | C125: =OFFSET(InputPriceData!G$15,CalculationsAndCharts!$A125+$A$11,IF($C$7,8,0),1,1) -> 34156800 | D125: =OFFSET(InputPriceData!C$15,CalculationsAndCharts!$A125+$A$11,IF($C$7,8,0),1,1) -> 1357.01 | E125: =OFFSET(InputPriceData!D$15,CalculationsAndCharts!$A125+$A$11,IF($C$7,8,0),1,1) -> 1362.34 | F125: =OFFSET(InputPriceData!E$15,CalculationsAndCharts!$A125+$A$11,IF($C$7,8,0),1,1) -> 1349.35 | G125: =OFFSET(InputPriceData!F$15,CalculationsAndCharts!$A125+$A$11,IF($C$7,8,0),1,1) -> 1357.79 | H125: 1382.502559 | I125: 1426.29 | J125: 1349.35 | K125: 0.7806082662 | L125: 0.3237469575 | M125: 1370.537913 | N125: 1404.658257 | O125: 1452.09 | P125: 1349.35 | Q125: 0.8357017715 | R125: 0.07198830476 | S125: 1402.166356 | Z125: 1370.537913 | AB125: 1402.166356 | AP125: 34156800
A126: 94 | B126: =OFFSET(InputPriceData!B$15,CalculationsAndCharts!$A126+$A$11,0,1,1) -> 2017-08-17 | C126: =OFFSET(InputPriceData!G$15,CalculationsAndCharts!$A126+$A$11,IF($C$7,8,0),1,1) -> 31426200 | D126: =OFFSET(InputPriceData!C$15,CalculationsAndCharts!$A126+$A$11,IF($C$7,8,0),1,1) -> 1383.07 | E126: =OFFSET(InputPriceData!D$15,CalculationsAndCharts!$A126+$A$11,IF($C$7,8,0),1,1) -> 1384.74 | F126: =OFFSET(InputPriceData!E$15,CalculationsAndCharts!$A126+$A$11,IF($C$7,8,0),1,1) -> 1358.8 | G126: =OFFSET(InputPriceData!F$15,CalculationsAndCharts!$A126+$A$11,IF($C$7,8,0),1,1) -> 1358.94 | H126: 1387.994238 | I126: 1426.29 | J126: 1358.8 | K126: 0.9958512372 | L126: 0.3628820431 | M126: 1376.640803 | N126: 1406.571247 | O126: 1452.09 | P126: 1358.8 | Q126: 0.9969986065 | R126: 0.07831367084 | S126: 1405.608747 | W126: Dn | Z126: 1376.640803 | AB126: 1405.608747 | AQ126: 31426200
A127: 95 | B127: =OFFSET(InputPriceData!B$15,CalculationsAndCharts!$A127+$A$11,0,1,1) -> 2017-08-16 | C127: =OFFSET(InputPriceData!G$15,CalculationsAndCharts!$A127+$A$11,IF($C$7,8,0),1,1) -> 29536500 | D127: =OFFSET(InputPriceData!C$15,CalculationsAndCharts!$A127+$A$11,IF($C$7,8,0),1,1) -> 1384.18 | E127: =OFFSET(InputPriceData!D$15,CalculationsAndCharts!$A127+$A$11,IF($C$7,8,0),1,1) -> 1391.68 | F127: =OFFSET(InputPriceData!E$15,CalculationsAndCharts!$A127+$A$11,IF($C$7,8,0),1,1) -> 1381.9 | G127: =OFFSET(InputPriceData!F$15,CalculationsAndCharts!$A127+$A$11,IF($C$7,8,0),1,1) -> 1383.53 | H127: 1394.450736 | I127: 1426.29 | J127: 1368.33 | K127: 0.4755003451 | L127: 0.26827279 | M127: 1386.722615 | N127: 1408.515379 | O127: 1452.09 | P127: 1368.33 | Q127: 0.6370582617 | R127: 0.0641983632 | S127: 1409.574088 | Z127: 1386.722615 | AB127: 1409.574088 | AQ127: 29536500
A128: 96 | B128: =OFFSET(InputPriceData!B$15,CalculationsAndCharts!$A128+$A$11,0,1,1) -> 2017-08-15 | C128: =OFFSET(InputPriceData!G$15,CalculationsAndCharts!$A128+$A$11,IF($C$7,8,0),1,1) -> 29131000 | D128: =OFFSET(InputPriceData!C$15,CalculationsAndCharts!$A128+$A$11,IF($C$7,8,0),1,1) -> 1394.7 | E128: =OFFSET(InputPriceData!D$15,CalculationsAndCharts!$A128+$A$11,IF($C$7,8,0),1,1) -> 1395.88 | F128: =OFFSET(InputPriceData!E$15,CalculationsAndCharts!$A128+$A$11,IF($C$7,8,0),1,1) -> 1382.95 | G128: =OFFSET(InputPriceData!F$15,CalculationsAndCharts!$A128+$A$11,IF($C$7,8,0),1,1) -> 1383.24 | H128: 1396.877566 | I128: 1428.03 | J128: 1368.33 | K128: 0.5005025126 | L128: 0.2728186386 | M128: 1387.893122 | N128: 1409.535191 | O128: 1452.09 | P128: 1368.33 | Q128: 0.643982808 | R128: 0.06446991404 | S128: 1411.360779 | Z128: 1387.893122 | AB128: 1411.360779 | AQ128: 29131000
A129: 97 | B129: =OFFSET(InputPriceData!B$15,CalculationsAndCharts!$A129+$A$11,0,1,1) -> 2017-08-14 | C129: =OFFSET(InputPriceData!G$15,CalculationsAndCharts!$A129+$A$11,IF($C$7,8,0),1,1) -> 28225500 | D129: =OFFSET(InputPriceData!C$15,CalculationsAndCharts!$A129+$A$11,IF($C$7,8,0),1,1) -> 1375.13 | E129: =OFFSET(InputPriceData!D$15,CalculationsAndCharts!$A129+$A$11,IF($C$7,8,0),1,1) -> 1394.53 | F129: =OFFSET(InputPriceData!E$15,CalculationsAndCharts!$A129+$A$11,IF($C$7,8,0),1,1) -> 1375.13 | G129: =OFFSET(InputPriceData!F$15,CalculationsAndCharts!$A129+$A$11,IF($C$7,8,0),1,1) -> 1394.31 | H129: 1399.908136 | I129: 1430.66 | J129: 1368.33 | K129: 0.1663725333 | L129: 0.2120677333 | M129: 1389.638847 | N129: 1410.608464 | O129: 1452.09 | P129: 1368.33 | Q129: 0.3796561605 | R129: 0.05410416316 | S129: 1413.298658 | Z129: 1389.638847 | AB129: 1413.298658 | AP129: 28225500
A130: 98 | B130: =OFFSET(InputPriceData!B$15,CalculationsAndCharts!$A130+$A$11,0,1,1) -> 2017-08-11 | C130: =OFFSET(InputPriceData!G$15,CalculationsAndCharts!$A130+$A$11,IF($C$7,8,0),1,1) -> 31599300 | D130: =OFFSET(InputPriceData!C$15,CalculationsAndCharts!$A130+$A$11,IF($C$7,8,0),1,1) -> 1372.26 | E130: =OFFSET(InputPriceData!D$15,CalculationsAndCharts!$A130+$A$11,IF($C$7,8,0),1,1) -> 1376.37 | F130: =OFFSET(InputPriceData!E$15,CalculationsAndCharts!$A130+$A$11,IF($C$7,8,0),1,1) -> 1368.33 | G130: =OFFSET(InputPriceData!F$15,CalculationsAndCharts!$A130+$A$11,IF($C$7,8,0),1,1) -> 1374.23 | H130: 1401.152167 | I130: 1432.46 | J130: 1368.33 | K130: 0.8159987525 | L130: 0.3301815914 | M130: 1388.381631 | N130: 1411.273707 | O130: 1452.09 | P130: 1368.33 | Q130: 0.8591212989 | R130: 0.07290671761 | S130: 1414.384787 | Z130: 1388.381631 | AB130: 1414.384787 | AP130: 31599300
A131: 99 | B131: =OFFSET(InputPriceData!B$15,CalculationsAndCharts!$A131+$A$11,0,1,1) -> 2017-08-10 | C131: =OFFSET(InputPriceData!G$15,CalculationsAndCharts!$A131+$A$11,IF($C$7,8,0),1,1) -> 36210700 | D131: =OFFSET(InputPriceData!C$15,CalculationsAndCharts!$A131+$A$11,IF($C$7,8,0),1,1) -> 1396.6 | E131: =OFFSET(InputPriceData!D$15,CalculationsAndCharts!$A131+$A$11,IF($C$7,8,0),1,1) -> 1396.6 | F131: =OFFSET(InputPriceData!E$15,CalculationsAndCharts!$A131+$A$11,IF($C$7,8,0),1,1) -> 1372.54 | G131: =OFFSET(InputPriceData!F$15,CalculationsAndCharts!$A131+$A$11,IF($C$7,8,0),1,1) -> 1372.54 | H131: 1407.13487 | I131: 1432.59 | J131: 1372.54 | K131: 1 | L131: 0.3636363636 | M131: 1395.357564 | N131: 1412.785695 | O131: 1452.09 | P131: 1370.33 | Q131: 0.9459393346 | R131: 0.07631134646 | S131: 1417.542564 | U131: Dn | Z131: 1395.357564 | AB131: 1417.542564 | AQ131: 36210700
A132: 100 | B132: =OFFSET(InputPriceData!B$15,CalculationsAndCharts!$A132+$A$11,0,1,1) -> 2017-08-09 | C132: =OFFSET(InputPriceData!G$15,CalculationsAndCharts!$A132+$A$11,IF($C$7,8,0),1,1) -> 33080600 | D132: =OFFSET(InputPriceData!C$15,CalculationsAndCharts!$A132+$A$11,IF($C$7,8,0),1,1) -> 1409.78 | E132: =OFFSET(InputPriceData!D$15,CalculationsAndCharts!$A132+$A$11,IF($C$7,8,0),1,1) -> 1409.78 | F132: =OFFSET(InputPriceData!E$15,CalculationsAndCharts!$A132+$A$11,IF($C$7,8,0),1,1) -> 1393.24 | G132: =OFFSET(InputPriceData!F$15,CalculationsAndCharts!$A132+$A$11,IF($C$7,8,0),1,1) -> 1396.95 | H132: 1414.822619 | I132: 1446.63 | J132: 1393.24 | K132: 0.8610226634 | L132: 0.338367757 | M132: 1408.396171 | N132: 1414.428377 | O132: 1452.09 | P132: 1354.85 | Q132: 0.1341011929 | R132: 0.04447455659 | S132: 1421.26049 | Z132: 1408.396171 | AB132: 1421.26049 | AQ132: 33080600
A133: 101 | B133: =OFFSET(InputPriceData!B$15,CalculationsAndCharts!$A133+$A$11,0,1,1) -> 2017-08-08 | C133: =OFFSET(InputPriceData!G$15,CalculationsAndCharts!$A133+$A$11,IF($C$7,8,0),1,1) -> 33446400 | D133: =OFFSET(InputPriceData!C$15,CalculationsAndCharts!$A133+$A$11,IF($C$7,8,0),1,1) -> 1413.93 | E133: =OFFSET(InputPriceData!D$15,CalculationsAndCharts!$A133+$A$11,IF($C$7,8,0),1,1) -> 1426.29 | F133: =OFFSET(InputPriceData!E$15,CalculationsAndCharts!$A133+$A$11,IF($C$7,8,0),1,1) -> 1407.57 | G133: =OFFSET(InputPriceData!F$15,CalculationsAndCharts!$A133+$A$11,IF($C$7,8,0),1,1) -> 1410.15 | H133: 1418.794312 | I133: 1452.02 | J133: 1402.39 | K133: 0.6872859158 | L133: 0.3067792574 | M133: 1414.2499 | N133: 1415.14178 | O133: 1452.09 | P133: 1354.85 | Q133: 0.1373920197 | R133: 0.04460360862 | S133: 1422.392013 | Z133: 1414.2499 | AB133: 1422.392013 | AQ133: 33446400
A134: 102 | B134: =OFFSET(InputPriceData!B$15,CalculationsAndCharts!$A134+$A$11,0,1,1) -> 2017-08-07 | C134: =OFFSET(InputPriceData!G$15,CalculationsAndCharts!$A134+$A$11,IF($C$7,8,0),1,1) -> 29317800 | D134: =OFFSET(InputPriceData!C$15,CalculationsAndCharts!$A134+$A$11,IF($C$7,8,0),1,1) -> 1412.4 | E134: =OFFSET(InputPriceData!D$15,CalculationsAndCharts!$A134+$A$11,IF($C$7,8,0),1,1) -> 1417.42 | F134: =OFFSET(InputPriceData!E$15,CalculationsAndCharts!$A134+$A$11,IF($C$7,8,0),1,1) -> 1408.62 | G134: =OFFSET(InputPriceData!F$15,CalculationsAndCharts!$A134+$A$11,IF($C$7,8,0),1,1) -> 1414.17 | H134: 1420.715271 | I134: 1452.09 | J134: 1402.39 | K134: 0.5259557344 | L134: 0.2774464972 | M134: 1416.064277 | N134: 1415.345526 | O134: 1452.09 | P134: 1354.85 | Q134: 0.2200740436 | R134: 0.04784604093 | S134: 1422.963543 | Z134: 1416.064277 | AB134: 1422.963543 | AP134: 29317800
A135: 103 | B135: =OFFSET(InputPriceData!B$15,CalculationsAndCharts!$A135+$A$11,0,1,1) -> 2017-08-04 | C135: =OFFSET(InputPriceData!G$15,CalculationsAndCharts!$A135+$A$11,IF($C$7,8,0),1,1) -> 32351400 | D135: =OFFSET(InputPriceData!C$15,CalculationsAndCharts!$A135+$A$11,IF($C$7,8,0),1,1) -> 1405.14 | E135: =OFFSET(InputPriceData!D$15,CalculationsAndCharts!$A135+$A$11,IF($C$7,8,0),1,1) -> 1413.04 | F135: =OFFSET(InputPriceData!E$15,CalculationsAndCharts!$A135+$A$11,IF($C$7,8,0),1,1) -> 1405.14 | G135: =OFFSET(InputPriceData!F$15,CalculationsAndCharts!$A135+$A$11,IF($C$7,8,0),1,1) -> 1412.32 | H135: 1422.169775 | I135: 1452.09 | J135: 1402.39 | K135: 0.6004024145 | L135: 0.2909822572 | M135: 1416.791643 | N135: 1415.393507 | O135: 1452.09 | P135: 1354.85 | Q135: 0.1820238585 | R135: 0.0463538768 | S135: 1423.405421 | Z135: 1416.791643 | AB135: 1423.405421 | AP135: 32351400
A136: 104 | B136: =OFFSET(InputPriceData!B$15,CalculationsAndCharts!$A136+$A$11,0,1,1) -> 2017-08-03 | C136: =OFFSET(InputPriceData!G$15,CalculationsAndCharts!$A136+$A$11,IF($C$7,8,0),1,1) -> 36450200 | D136: =OFFSET(InputPriceData!C$15,CalculationsAndCharts!$A136+$A$11,IF($C$7,8,0),1,1) -> 1413.09 | E136: =OFFSET(InputPriceData!D$15,CalculationsAndCharts!$A136+$A$11,IF($C$7,8,0),1,1) -> 1414.72 | F136: =OFFSET(InputPriceData!E$15,CalculationsAndCharts!$A136+$A$11,IF($C$7,8,0),1,1) -> 1402.39 | G136: =OFFSET(InputPriceData!F$15,CalculationsAndCharts!$A136+$A$11,IF($C$7,8,0),1,1) -> 1405.23 | H136: 1424.358614 | I136: 1452.09 | J136: 1402.39 | K136: 0.8857142857 | L136: 0.3428571429 | M136: 1418.626814 | N136: 1415.518956 | O136: 1452.09 | P136: 1354.85 | Q136: 0.03619909502 | R136: 0.04063525863 | S136: 1423.94425 | V136: Dn | Z136: 1418.626814 | AB136: 1423.94425 | AH136: 1418.626814 | AQ136: 36450200
A137: 105 | B137: =OFFSET(InputPriceData!B$15,CalculationsAndCharts!$A137+$A$11,0,1,1) -> 2017-08-02 | C137: =OFFSET(InputPriceData!G$15,CalculationsAndCharts!$A137+$A$11,IF($C$7,8,0),1,1) -> 34785800 | D137: =OFFSET(InputPriceData!C$15,CalculationsAndCharts!$A137+$A$11,IF($C$7,8,0),1,1) -> 1428.03 | E137: =OFFSET(InputPriceData!D$15,CalculationsAndCharts!$A137+$A$11,IF($C$7,8,0),1,1) -> 1428.03 | F137: =OFFSET(InputPriceData!E$15,CalculationsAndCharts!$A137+$A$11,IF($C$7,8,0),1,1) -> 1408.52 | G137: =OFFSET(InputPriceData!F$15,CalculationsAndCharts!$A137+$A$11,IF($C$7,8,0),1,1) -> 1412.9 | H137: 1428.609417 | I137: 1452.09 | J137: 1408.52 | K137: 0.7989442277 | L137: 0.3270807687 | M137: 1425.616456 | N137: 1415.938913 | O137: 1452.09 | P137: 1354.85 | Q137: 0.1939531057 | R137: 0.04682169042 | S137: 1424.736919 | Z137: 1425.616456 | AB137: 1424.736919 | AQ137: 34785800
A138: 106 | B138: =OFFSET(InputPriceData!B$15,CalculationsAndCharts!$A138+$A$11,0,1,1) -> 2017-08-01 | C138: =OFFSET(InputPriceData!G$15,CalculationsAndCharts!$A138+$A$11,IF($C$7,8,0),1,1) -> 34608600 | D138: =OFFSET(InputPriceData!C$15,CalculationsAndCharts!$A138+$A$11,IF($C$7,8,0),1,1) -> 1426.03 | E138: =OFFSET(InputPriceData!D$15,CalculationsAndCharts!$A138+$A$11,IF($C$7,8,0),1,1) -> 1430.66 | F138: =OFFSET(InputPriceData!E$15,CalculationsAndCharts!$A138+$A$11,IF($C$7,8,0),1,1) -> 1420.82 | G138: =OFFSET(InputPriceData!F$15,CalculationsAndCharts!$A138+$A$11,IF($C$7,8,0),1,1) -> 1428.33 | H138: 1432.100399 | I138: 1452.09 | J138: 1420.66 | K138: 0.5119312759 | L138: 0.2748965956 | M138: 1431.797447 | N138: 1416.062951 | O138: 1452.09 | P138: 1354.85 | Q138: 0.5113122172 | R138: 0.05926714577 | S138: 1425.318368 | T138: Dn | Z138: 1431.797447 | AB138: 1425.318368 | AP138: 34608600
A139: 107 | B139: =OFFSET(InputPriceData!B$15,CalculationsAndCharts!$A139+$A$11,0,1,1) -> 2017-07-31 | C139: =OFFSET(InputPriceData!G$15,CalculationsAndCharts!$A139+$A$11,IF($C$7,8,0),1,1) -> 34692100 | D139: =OFFSET(InputPriceData!C$15,CalculationsAndCharts!$A139+$A$11,IF($C$7,8,0),1,1) -> 1429.46 | E139: =OFFSET(InputPriceData!D$15,CalculationsAndCharts!$A139+$A$11,IF($C$7,8,0),1,1) -> 1432.46 | F139: =OFFSET(InputPriceData!E$15,CalculationsAndCharts!$A139+$A$11,IF($C$7,8,0),1,1) -> 1420.66 | G139: =OFFSET(InputPriceData!F$15,CalculationsAndCharts!$A139+$A$11,IF($C$7,8,0),1,1) -> 1425.14 | H139: 1432.938266 | I139: 1452.09 | J139: 1420.66 | K139: 0.714922049 | L139: 0.3118040089 | M139: 1433.112004 | N139: 1415.562255 | O139: 1452.09 | P139: 1354.85 | Q139: 0.4457013575 | R139: 0.05669417088 | S139: 1425.128632 | Z139: 1433.112004 | AB139: 1425.128632 | AQ139: 34692100
A140: 108 | B140: =OFFSET(InputPriceData!B$15,CalculationsAndCharts!$A140+$A$11,0,1,1) -> 2017-07-28 | C140: =OFFSET(InputPriceData!G$15,CalculationsAndCharts!$A140+$A$11,IF($C$7,8,0),1,1) -> 32947700 | D140: =OFFSET(InputPriceData!C$15,CalculationsAndCharts!$A140+$A$11,IF($C$7,8,0),1,1) -> 1432.59 | E140: =OFFSET(InputPriceData!D$15,CalculationsAndCharts!$A140+$A$11,IF($C$7,8,0),1,1) -> 1432.59 | F140: =OFFSET(InputPriceData!E$15,CalculationsAndCharts!$A140+$A$11,IF($C$7,8,0),1,1) -> 1425.8 | G140: =OFFSET(InputPriceData!F$15,CalculationsAndCharts!$A140+$A$11,IF($C$7,8,0),1,1) -> 1429.26 | H140: 1434.671214 | I140: 1452.09 | J140: 1422.49 | K140: 0.5425675676 | L140: 0.2804668305 | M140: 1436.723915 | N140: 1415.171326 | O140: 1452.09 | P140: 1351.01 | Q140: 0.5482785912 | R140: 0.0607168075 | S140: 1425.127949 | Z140: 1436.723915 | AB140: 1425.127949 | AQ140: 32947700
A141: 109 | B141: =OFFSET(InputPriceData!B$15,CalculationsAndCharts!$A141+$A$11,0,1,1) -> 2017-07-27 | C141: =OFFSET(InputPriceData!G$15,CalculationsAndCharts!$A141+$A$11,IF($C$7,8,0),1,1) -> 39955200 | D141: =OFFSET(InputPriceData!C$15,CalculationsAndCharts!$A141+$A$11,IF($C$7,8,0),1,1) -> 1442.26 | E141: =OFFSET(InputPriceData!D$15,CalculationsAndCharts!$A141+$A$11,IF($C$7,8,0),1,1) -> 1446.63 | F141: =OFFSET(InputPriceData!E$15,CalculationsAndCharts!$A141+$A$11,IF($C$7,8,0),1,1) -> 1427.69 | G141: =OFFSET(InputPriceData!F$15,CalculationsAndCharts!$A141+$A$11,IF($C$7,8,0),1,1) -> 1433.62 | H141: 1435.873705 | I141: 1452.09 | J141: 1422.49 | K141: 0.247972973 | L141: 0.2269041769 | M141: 1439.633274 | N141: 1414.596278 | O141: 1452.09 | P141: 1351.01 | Q141: 0.6345468935 | R141: 0.06409987818 | S141: 1424.860846 | Z141: 1439.633274 | AB141: 1424.860846 | AQ141: 39955200
A142: 110 | B142: =OFFSET(InputPriceData!B$15,CalculationsAndCharts!$A142+$A$11,0,1,1) -> 2017-07-26 | C142: =OFFSET(InputPriceData!G$15,CalculationsAndCharts!$A142+$A$11,IF($C$7,8,0),1,1) -> 35570200 | D142: =OFFSET(InputPriceData!C$15,CalculationsAndCharts!$A142+$A$11,IF($C$7,8,0),1,1) -> 1450.58 | E142: =OFFSET(InputPriceData!D$15,CalculationsAndCharts!$A142+$A$11,IF($C$7,8,0),1,1) -> 1452.02 | F142: =OFFSET(InputPriceData!E$15,CalculationsAndCharts!$A142+$A$11,IF($C$7,8,0),1,1) -> 1441.25 | G142: =OFFSET(InputPriceData!F$15,CalculationsAndCharts!$A142+$A$11,IF($C$7,8,0),1,1) -> 1442.28 | H142: 1436.374529 | I142: 1452.09 | J142: 1416.27 | K142: 0.4522613065 | L142: 0.2640475103 | M142: 1441.398175 | N142: 1413.8198 | O142: 1452.09 | P142: 1351.01 | Q142: 0.8058963197 | R142: 0.07081946352 | S142: 1424.260931 | Z142: 1441.398175 | AB142: 1424.260931 | AQ142: 35570200
A143: 111 | B143: =OFFSET(InputPriceData!B$15,CalculationsAndCharts!$A143+$A$11,0,1,1) -> 2017-07-25 | C143: =OFFSET(InputPriceData!G$15,CalculationsAndCharts!$A143+$A$11,IF($C$7,8,0),1,1) -> 40080600 | D143: =OFFSET(InputPriceData!C$15,CalculationsAndCharts!$A143+$A$11,IF($C$7,8,0),1,1) -> 1438.86 | E143: =OFFSET(InputPriceData!D$15,CalculationsAndCharts!$A143+$A$11,IF($C$7,8,0),1,1) -> 1452.09 | F143: =OFFSET(InputPriceData!E$15,CalculationsAndCharts!$A143+$A$11,IF($C$7,8,0),1,1) -> 1438.86 | G143: =OFFSET(InputPriceData!F$15,CalculationsAndCharts!$A143+$A$11,IF($C$7,8,0),1,1) -> 1450.39 | H143: 1435.062202 | I143: 1452.09 | J143: 1414.34 | K143: 0.9099337748 | L143: 0.3472606863 | M143: 1441.08179 | N143: 1412.658159 | O143: 1452.09 | P143: 1351.01 | Q143: 0.9663632766 | R143: 0.07711228536 | S143: 1422.88757 | Z143: 1441.08179 | AB143: 1422.88757 | AP143: 40080600
A144: 112 | B144: =OFFSET(InputPriceData!B$15,CalculationsAndCharts!$A144+$A$11,0,1,1) -> 2017-07-24 | C144: =OFFSET(InputPriceData!G$15,CalculationsAndCharts!$A144+$A$11,IF($C$7,8,0),1,1) -> 30102400 | D144: =OFFSET(InputPriceData!C$15,CalculationsAndCharts!$A144+$A$11,IF($C$7,8,0),1,1) -> 1435.82 | E144: =OFFSET(InputPriceData!D$15,CalculationsAndCharts!$A144+$A$11,IF($C$7,8,0),1,1) -> 1438.6 | F144: =OFFSET(InputPriceData!E$15,CalculationsAndCharts!$A144+$A$11,IF($C$7,8,0),1,1) -> 1431.34 | G144: =OFFSET(InputPriceData!F$15,CalculationsAndCharts!$A144+$A$11,IF($C$7,8,0),1,1) -> 1438.05 | H144: 1431.656025 | I144: 1452.05 | J144: 1402.63 | K144: 0.433427762 | L144: 0.2606232295 | M144: 1436.129775 | N144: 1411.118084 | O144: 1452.05 | P144: 1351.01 | Q144: 0.7228820269 | R144: 0.06756400106 | S144: 1420.589592 | Z144: 1436.129775 | AB144: 1420.589592 | AP144: 30102400
A145: 113 | B145: =OFFSET(InputPriceData!B$15,CalculationsAndCharts!$A145+$A$11,0,1,1) -> 2017-07-21 | C145: =OFFSET(InputPriceData!G$15,CalculationsAndCharts!$A145+$A$11,IF($C$7,8,0),1,1) -> 30595700 | D145: =OFFSET(InputPriceData!C$15,CalculationsAndCharts!$A145+$A$11,IF($C$7,8,0),1,1) -> 1443.37 | E145: =OFFSET(InputPriceData!D$15,CalculationsAndCharts!$A145+$A$11,IF($C$7,8,0),1,1) -> 1452.05 | F145: =OFFSET(InputPriceData!E$15,CalculationsAndCharts!$A145+$A$11,IF($C$7,8,0),1,1) -> 1433.83 | G145: =OFFSET(InputPriceData!F$15,CalculationsAndCharts!$A145+$A$11,IF($C$7,8,0),1,1) -> 1435.84 | H145: 1430.235141 | I145: 1452.05 | J145: 1402.63 | K145: 0.3439902873 | L145: 0.2443618704 | M145: 1435.452914 | N145: 1410.018822 | O145: 1452.05 | P145: 1351.01 | Q145: 0.6791369755 | R145: 0.06584850884 | S145: 1419.324417 | Z145: 1435.452914 | AB145: 1419.324417 | AQ145: 30595700
A146: 114 | B146: =OFFSET(InputPriceData!B$15,CalculationsAndCharts!$A146+$A$11,0,1,1) -> 2017-07-20 | C146: =OFFSET(InputPriceData!G$15,CalculationsAndCharts!$A146+$A$11,IF($C$7,8,0),1,1) -> 31827800 | D146: =OFFSET(InputPriceData!C$15,CalculationsAndCharts!$A146+$A$11,IF($C$7,8,0),1,1) -> 1442.16 | E146: =OFFSET(InputPriceData!D$15,CalculationsAndCharts!$A146+$A$11,IF($C$7,8,0),1,1) -> 1445.06 | F146: =OFFSET(InputPriceData!E$15,CalculationsAndCharts!$A146+$A$11,IF($C$7,8,0),1,1) -> 1438.96 | G146: =OFFSET(InputPriceData!F$15,CalculationsAndCharts!$A146+$A$11,IF($C$7,8,0),1,1) -> 1442.35 | H146: 1428.989617 | I146: 1445.06 | J146: 1401.35 | K146: 0.8760009151 | L146: 0.3410910755 | M146: 1435.327736 | N146: 1408.964896 | O146: 1445.06 | P146: 1351.01 | Q146: 0.9423710792 | R146: 0.07617141487 | S146: 1418.16023 | Z146: 1435.327736 | AB146: 1418.16023 | AP146: =IF(G146>=D146,C146,NA()) -> 31827800 | AQ146: =IF(G146<D146,C146,NA()) -> 
A147: 115 | B147: =OFFSET(InputPriceData!B$15,CalculationsAndCharts!$A147+$A$11,0,1,1) -> 2017-07-19 | C147: =OFFSET(InputPriceData!G$15,CalculationsAndCharts!$A147+$A$11,IF($C$7,8,0),1,1) -> 30597600 | D147: =OFFSET(InputPriceData!C$15,CalculationsAndCharts!$A147+$A$11,IF($C$7,8,0),1,1) -> 1428.28 | E147: =OFFSET(InputPriceData!D$15,CalculationsAndCharts!$A147+$A$11,IF($C$7,8,0),1,1) -> 1441.77 | F147: =OFFSET(InputPriceData!E$15,CalculationsAndCharts!$A147+$A$11,IF($C$7,8,0),1,1) -> 1428.28 | G147: =OFFSET(InputPriceData!F$15,CalculationsAndCharts!$A147+$A$11,IF($C$7,8,0),1,1) -> 1441.77 | H147: 1426.020643 | I147: 1441.77 | J147: 1398.83 | K147: 1 | L147: 0.3636363636 | M147: 1431.692587 | N147: 1407.602239 | O147: 1441.77 | P147: 1351.01 | Q147: 1 | R147: 0.07843137255 | S147: 1416.165738 | Z147: 1431.692587 | AB147: 1416.165738 | AP147: 30597600
A148: 116 | B148: =OFFSET(InputPriceData!B$15,CalculationsAndCharts!$A148+$A$11,0,1,1) -> 2017-07-18 | C148: =OFFSET(InputPriceData!G$15,CalculationsAndCharts!$A148+$A$11,IF($C$7,8,0),1,1) -> 29621300 | D148: =OFFSET(InputPriceData!C$15,CalculationsAndCharts!$A148+$A$11,IF($C$7,8,0),1,1) -> 1431.11 | E148: =OFFSET(InputPriceData!D$15,CalculationsAndCharts!$A148+$A$11,IF($C$7,8,0),1,1) -> 1431.11 | F148: =OFFSET(InputPriceData!E$15,CalculationsAndCharts!$A148+$A$11,IF($C$7,8,0),1,1) -> 1422.49 | G148: =OFFSET(InputPriceData!F$15,CalculationsAndCharts!$A148+$A$11,IF($C$7,8,0),1,1) -> 1427.61 | H148: 1422.520786 | I148: 1434.45 | J148: 1398.83 | K148: 0.6159460977 | L148: 0.2938083814 | M148: 1425.934066 | N148: 1406.207637 | O148: 1434.45 | P148: 1351.01 | Q148: 0.8360498562 | R148: 0.07200195514 | S148: 1413.986652 | Z148: 1425.934066 | AB148: 1413.986652 | AQ148: 29621300
A149: 117 | B149: =OFFSET(InputPriceData!B$15,CalculationsAndCharts!$A149+$A$11,0,1,1) -> 2017-07-17 | C149: =OFFSET(InputPriceData!G$15,CalculationsAndCharts!$A149+$A$11,IF($C$7,8,0),1,1) -> 27931700 | D149: =OFFSET(InputPriceData!C$15,CalculationsAndCharts!$A149+$A$11,IF($C$7,8,0),1,1) -> 1428.78 | E149: =OFFSET(InputPriceData!D$15,CalculationsAndCharts!$A149+$A$11,IF($C$7,8,0),1,1) -> 1434.45 | F149: =OFFSET(InputPriceData!E$15,CalculationsAndCharts!$A149+$A$11,IF($C$7,8,0),1,1) -> 1425.97 | G149: =OFFSET(InputPriceData!F$15,CalculationsAndCharts!$A149+$A$11,IF($C$7,8,0),1,1) -> 1431.6 | H149: 1421.38985 | I149: 1434.45 | J149: 1398.83 | K149: 0.8399775407 | L149: 0.334541371 | M149: 1425.2368 | N149: 1405.334071 | O149: 1434.45 | P149: 1351.01 | Q149: 0.9316874401 | R149: 0.07575244863 | S149: 1412.929637 | Z149: 1425.2368 | AB149: 1412.929637 | AP149: 27931700
A150: 118 | B150: =OFFSET(InputPriceData!B$15,CalculationsAndCharts!$A150+$A$11,0,1,1) -> 2017-07-14 | C150: =OFFSET(InputPriceData!G$15,CalculationsAndCharts!$A150+$A$11,IF($C$7,8,0),1,1) -> 27366400 | D150: =OFFSET(InputPriceData!C$15,CalculationsAndCharts!$A150+$A$11,IF($C$7,8,0),1,1) -> 1425.47 | E150: =OFFSET(InputPriceData!D$15,CalculationsAndCharts!$A150+$A$11,IF($C$7,8,0),1,1) -> 1432.97 | F150: =OFFSET(InputPriceData!E$15,CalculationsAndCharts!$A150+$A$11,IF($C$7,8,0),1,1) -> 1424.1 | G150: =OFFSET(InputPriceData!F$15,CalculationsAndCharts!$A150+$A$11,IF($C$7,8,0),1,1) -> 1428.82 | H150: 1419.120927 | I150: 1432.97 | J150: 1398.83 | K150: 0.7568834212 | L150: 0.3194333493 | M150: 1422.037872 | N150: 1404.261992 | O150: 1433.79 | P150: 1351.01 | Q150: 0.8799226866 | R150: 0.0737224583 | S150: 1411.399391 | Z150: 1422.037872 | AB150: 1411.399391 | AP150: 27366400
A151: 119 | B151: =OFFSET(InputPriceData!B$15,CalculationsAndCharts!$A151+$A$11,0,1,1) -> 2017-07-13 | C151: =OFFSET(InputPriceData!G$15,CalculationsAndCharts!$A151+$A$11,IF($C$7,8,0),1,1) -> 30676700 | D151: =OFFSET(InputPriceData!C$15,CalculationsAndCharts!$A151+$A$11,IF($C$7,8,0),1,1) -> 1424.53 | E151: =OFFSET(InputPriceData!D$15,CalculationsAndCharts!$A151+$A$11,IF($C$7,8,0),1,1) -> 1425.74 | F151: =OFFSET(InputPriceData!E$15,CalculationsAndCharts!$A151+$A$11,IF($C$7,8,0),1,1) -> 1416.27 | G151: =OFFSET(InputPriceData!F$15,CalculationsAndCharts!$A151+$A$11,IF($C$7,8,0),1,1) -> 1425.66 | H151: 1416.965578 | I151: 1431.34 | J151: 1398.83 | K151: 0.6505690557 | L151: 0.3001034647 | M151: 1418.854587 | N151: 1403.259624 | O151: 1433.79 | P151: 1351.01 | Q151: 0.8035757429 | R151: 0.07072846051 | S151: 1410.012884 | Z151: 1418.854587 | AB151: 1410.012884 | AP151: 30676700
A152: 120 | B152: =OFFSET(InputPriceData!B$15,CalculationsAndCharts!$A152+$A$11,0,1,1) -> 2017-07-12 | C152: =OFFSET(InputPriceData!G$15,CalculationsAndCharts!$A152+$A$11,IF($C$7,8,0),1,1) -> 31716200 | D152: =OFFSET(InputPriceData!C$15,CalculationsAndCharts!$A152+$A$11,IF($C$7,8,0),1,1) -> 1414.34 | E152: =OFFSET(InputPriceData!D$15,CalculationsAndCharts!$A152+$A$11,IF($C$7,8,0),1,1) -> 1431.34 | F152: =OFFSET(InputPriceData!E$15,CalculationsAndCharts!$A152+$A$11,IF($C$7,8,0),1,1) -> 1414.34 | G152: =OFFSET(InputPriceData!F$15,CalculationsAndCharts!$A152+$A$11,IF($C$7,8,0),1,1) -> 1424.32 | H152: 1415.033484 | I152: 1431.34 | J152: 1398.83 | K152: 0.5681328822 | L152: 0.2851150695 | M152: 1415.936545 | N152: 1402.345323 | O152: 1433.79 | P152: 1351.01 | Q152: 0.7712007731 | R152: 0.06945885385 | S152: 1408.821956 | T152: Up | Z152: 1415.936545 | AB152: 1408.821956 | AP152: 31716200
A153: 121 | B153: =OFFSET(InputPriceData!B$15,CalculationsAndCharts!$A153+$A$11,0,1,1) -> 2017-07-11 | C153: =OFFSET(InputPriceData!G$15,CalculationsAndCharts!$A153+$A$11,IF($C$7,8,0),1,1) -> 31067500 | D153: =OFFSET(InputPriceData!C$15,CalculationsAndCharts!$A153+$A$11,IF($C$7,8,0),1,1) -> 1408.61 | E153: =OFFSET(InputPriceData!D$15,CalculationsAndCharts!$A153+$A$11,IF($C$7,8,0),1,1) -> 1413.47 | F153: =OFFSET(InputPriceData!E$15,CalculationsAndCharts!$A153+$A$11,IF($C$7,8,0),1,1) -> 1402.63 | G153: =OFFSET(InputPriceData!F$15,CalculationsAndCharts!$A153+$A$11,IF($C$7,8,0),1,1) -> 1413.05 | H153: 1412.969814 | I153: 1429.37 | J153: 1398.83 | K153: 0.06876227898 | L153: 0.1943204144 | M153: 1412.593 | N153: 1401.448398 | O153: 1433.79 | P153: 1351.01 | Q153: 0.4989127809 | R153: 0.05878089337 | S153: 1407.665127 | Z153: 1412.593 | AB153: 1407.665127 | AP153: 31067500
A154: 122 | B154: =OFFSET(InputPriceData!B$15,CalculationsAndCharts!$A154+$A$11,0,1,1) -> 2017-07-10 | C154: =OFFSET(InputPriceData!G$15,CalculationsAndCharts!$A154+$A$11,IF($C$7,8,0),1,1) -> 29991300 | D154: =OFFSET(InputPriceData!C$15,CalculationsAndCharts!$A154+$A$11,IF($C$7,8,0),1,1) -> 1415.28 | E154: =OFFSET(InputPriceData!D$15,CalculationsAndCharts!$A154+$A$11,IF($C$7,8,0),1,1) -> 1418.05 | F154: =OFFSET(InputPriceData!E$15,CalculationsAndCharts!$A154+$A$11,IF($C$7,8,0),1,1) -> 1405.75 | G154: =OFFSET(InputPriceData!F$15,CalculationsAndCharts!$A154+$A$11,IF($C$7,8,0),1,1) -> 1408.47 | H154: 1412.951994 | I154: 1429.37 | J154: 1398.83 | K154: 0.3686967911 | L154: 0.248853962 | M154: 1412.482777 | N154: 1400.974863 | O154: 1433.79 | P154: 1351.01 | Q154: 0.3882580333 | R154: 0.0544414915 | S154: 1407.328832 | Z154: 1412.482777 | AB154: 1407.328832 | AQ154: 29991300
A155: 123 | B155: =OFFSET(InputPriceData!B$15,CalculationsAndCharts!$A155+$A$11,0,1,1) -> 2017-07-07 | C155: =OFFSET(InputPriceData!G$15,CalculationsAndCharts!$A155+$A$11,IF($C$7,8,0),1,1) -> 29013300 | D155: =OFFSET(InputPriceData!C$15,CalculationsAndCharts!$A155+$A$11,IF($C$7,8,0),1,1) -> 1401.35 | E155: =OFFSET(InputPriceData!D$15,CalculationsAndCharts!$A155+$A$11,IF($C$7,8,0),1,1) -> 1416.68 | F155: =OFFSET(InputPriceData!E$15,CalculationsAndCharts!$A155+$A$11,IF($C$7,8,0),1,1) -> 1401.35 | G155: =OFFSET(InputPriceData!F$15,CalculationsAndCharts!$A155+$A$11,IF($C$7,8,0),1,1) -> 1415.84 | H155: 1413.947993 | I155: 1429.37 | J155: 1398.83 | K155: 0.1139489194 | L155: 0.2025361672 | M155: 1413.812206 | N155: 1400.668939 | O155: 1433.79 | P155: 1351.01 | Q155: 0.5663203672 | R155: 0.06142432813 | S155: 1407.263128 | Z155: 1413.812206 | AB155: 1407.263128 | AP155: 29013300
A156: 124 | B156: =OFFSET(InputPriceData!B$15,CalculationsAndCharts!$A156+$A$11,0,1,1) -> 2017-07-06 | C156: =OFFSET(InputPriceData!G$15,CalculationsAndCharts!$A156+$A$11,IF($C$7,8,0),1,1) -> 33645200 | D156: =OFFSET(InputPriceData!C$15,CalculationsAndCharts!$A156+$A$11,IF($C$7,8,0),1,1) -> 1418.86 | E156: =OFFSET(InputPriceData!D$15,CalculationsAndCharts!$A156+$A$11,IF($C$7,8,0),1,1) -> 1418.86 | F156: =OFFSET(InputPriceData!E$15,CalculationsAndCharts!$A156+$A$11,IF($C$7,8,0),1,1) -> 1398.83 | G156: =OFFSET(InputPriceData!F$15,CalculationsAndCharts!$A156+$A$11,IF($C$7,8,0),1,1) -> 1400.81 | H156: 1413.527547 | I156: 1429.37 | J156: 1396.87 | K156: 0.7575384615 | L156: 0.3195524476 | M156: 1413.297197 | N156: 1400.049712 | O156: 1433.79 | P156: 1351.01 | Q156: 0.2031891761 | R156: 0.04718388926 | S156: 1406.701821 | T156: Dn | Z156: 1413.297197 | AB156: 1406.701821 | AQ156: 33645200
A157: 125 | B157: =OFFSET(InputPriceData!B$15,CalculationsAndCharts!$A157+$A$11,0,1,1) -> 2017-07-05 | C157: =OFFSET(InputPriceData!G$15,CalculationsAndCharts!$A157+$A$11,IF($C$7,8,0),1,1) -> 33672200 | D157: =OFFSET(InputPriceData!C$15,CalculationsAndCharts!$A157+$A$11,IF($C$7,8,0),1,1) -> 1426.53 | E157: =OFFSET(InputPriceData!D$15,CalculationsAndCharts!$A157+$A$11,IF($C$7,8,0),1,1) -> 1426.53 | F157: =OFFSET(InputPriceData!E$15,CalculationsAndCharts!$A157+$A$11,IF($C$7,8,0),1,1) -> 1412.62 | G157: =OFFSET(InputPriceData!F$15,CalculationsAndCharts!$A157+$A$11,IF($C$7,8,0),1,1) -> 1420.15 | H157: 1416.353669 | I157: 1429.37 | J157: 1396.87 | K157: 0.4326153846 | L157: 0.2604755245 | M157: 1419.161446 | N157: 1400.01868 | O157: 1433.79 | P157: 1351.01 | Q157: 0.6704518 | R157: 0.06550791372 | S157: 1406.993587 | Z157: 1419.161446 | AB157: 1406.993587 | AQ157: 33672200
A158: 126 | B158: =OFFSET(InputPriceData!B$15,CalculationsAndCharts!$A158+$A$11,0,1,1) -> 2017-07-03 | C158: =OFFSET(InputPriceData!G$15,CalculationsAndCharts!$A158+$A$11,IF($C$7,8,0),1,1) -> 19021900 | D158: =OFFSET(InputPriceData!C$15,CalculationsAndCharts!$A158+$A$11,IF($C$7,8,0),1,1) -> 1416.47 | E158: =OFFSET(InputPriceData!D$15,CalculationsAndCharts!$A158+$A$11,IF($C$7,8,0),1,1) -> 1429.37 | F158: =OFFSET(InputPriceData!E$15,CalculationsAndCharts!$A158+$A$11,IF($C$7,8,0),1,1) -> 1416.47 | G158: =OFFSET(InputPriceData!F$15,CalculationsAndCharts!$A158+$A$11,IF($C$7,8,0),1,1) -> 1426.68 | H158: 1415.51004 | I158: 1429.37 | J158: 1396.87 | K158: 0.8344615385 | L158: 0.3335384615 | M158: 1418.813258 | N158: 1399.196993 | O158: 1433.79 | P158: 1351.01 | Q158: 0.8282193767 | R158: 0.07169487752 | S158: 1406.071322 | Z158: 1418.813258 | AB158: 1406.071322 | AP158: 19021900
A159: 127 | B159: =OFFSET(InputPriceData!B$15,CalculationsAndCharts!$A159+$A$11,0,1,1) -> 2017-06-30 | C159: =OFFSET(InputPriceData!G$15,CalculationsAndCharts!$A159+$A$11,IF($C$7,8,0),1,1) -> 33615900 | D159: =OFFSET(InputPriceData!C$15,CalculationsAndCharts!$A159+$A$11,IF($C$7,8,0),1,1) -> 1416.73 | E159: =OFFSET(InputPriceData!D$15,CalculationsAndCharts!$A159+$A$11,IF($C$7,8,0),1,1) -> 1420.99 | F159: =OFFSET(InputPriceData!E$15,CalculationsAndCharts!$A159+$A$11,IF($C$7,8,0),1,1) -> 1413.29 | G159: =OFFSET(InputPriceData!F$15,CalculationsAndCharts!$A159+$A$11,IF($C$7,8,0),1,1) -> 1415.36 | H159: 1413.027826 | I159: 1428.03 | J159: 1396.87 | K159: 0.1867779204 | L159: 0.2157778037 | M159: 1414.876255 | N159: 1398.075238 | O159: 1433.79 | P159: 1351.01 | Q159: 0.5547233631 | R159: 0.06096954365 | S159: 1404.479672 | Z159: 1414.876255 | AB159: 1404.479672 | AQ159: 33615900
A160: 128 | B160: =OFFSET(InputPriceData!B$15,CalculationsAndCharts!$A160+$A$11,0,1,1) -> 2017-06-29 | C160: =OFFSET(InputPriceData!G$15,CalculationsAndCharts!$A160+$A$11,IF($C$7,8,0),1,1) -> 39002800 | D160: =OFFSET(InputPriceData!C$15,CalculationsAndCharts!$A160+$A$11,IF($C$7,8,0),1,1) -> 1425.49 | E160: =OFFSET(InputPriceData!D$15,CalculationsAndCharts!$A160+$A$11,IF($C$7,8,0),1,1) -> 1428.03 | F160: =OFFSET(InputPriceData!E$15,CalculationsAndCharts!$A160+$A$11,IF($C$7,8,0),1,1) -> 1403.02 | G160: =OFFSET(InputPriceData!F$15,CalculationsAndCharts!$A160+$A$11,IF($C$7,8,0),1,1) -> 1416.2 | H160: 1412.509565 | I160: 1428.03 | J160: 1396.87 | K160: 0.2406931964 | L160: 0.2255805812 | M160: 1414.743153 | N160: 1397.369738 | O160: 1433.79 | P160: 1351.01 | Q160: 0.5750181203 | R160: 0.06176541648 | S160: 1403.773233 | Z160: 1414.743153 | AB160: 1403.773233 | AQ160: 39002800
A161: 129 | B161: =OFFSET(InputPriceData!B$15,CalculationsAndCharts!$A161+$A$11,0,1,1) -> 2017-06-28 | C161: =OFFSET(InputPriceData!G$15,CalculationsAndCharts!$A161+$A$11,IF($C$7,8,0),1,1) -> 35008000 | D161: =OFFSET(InputPriceData!C$15,CalculationsAndCharts!$A161+$A$11,IF($C$7,8,0),1,1) -> 1404.46 | E161: =OFFSET(InputPriceData!D$15,CalculationsAndCharts!$A161+$A$11,IF($C$7,8,0),1,1) -> 1426.33 | F161: =OFFSET(InputPriceData!E$15,CalculationsAndCharts!$A161+$A$11,IF($C$7,8,0),1,1) -> 1404.46 | G161: =OFFSET(InputPriceData!F$15,CalculationsAndCharts!$A161+$A$11,IF($C$7,8,0),1,1) -> 1425.27 | H161: 1411.689469 | I161: 1426.33 | J161: 1396.87 | K161: 0.9280380177 | L161: 0.3505523668 | M161: 1414.318788 | N161: 1396.601155 | O161: 1433.79 | P161: 1351.01 | Q161: 0.7941531771 | R161: 0.07035894812 | S161: 1402.955159 | T161: Up | Z161: 1414.318788 | AB161: 1402.955159 | AP161: 35008000
A162: 130 | B162: =OFFSET(InputPriceData!B$15,CalculationsAndCharts!$A162+$A$11,0,1,1) -> 2017-06-27 | C162: =OFFSET(InputPriceData!G$15,CalculationsAndCharts!$A162+$A$11,IF($C$7,8,0),1,1) -> 35639100 | D162: =OFFSET(InputPriceData!C$15,CalculationsAndCharts!$A162+$A$11,IF($C$7,8,0),1,1) -> 1416.35 | E162: =OFFSET(InputPriceData!D$15,CalculationsAndCharts!$A162+$A$11,IF($C$7,8,0),1,1) -> 1420.61 | F162: =OFFSET(InputPriceData!E$15,CalculationsAndCharts!$A162+$A$11,IF($C$7,8,0),1,1) -> 1403.38 | G162: =OFFSET(InputPriceData!F$15,CalculationsAndCharts!$A162+$A$11,IF($C$7,8,0),1,1) -> 1403.52 | H162: =G162*$C$18+$D$18*H163 -> 1408.671573 | I162: =MAX(OFFSET(E162,0,0,$A$19,1)) -> 1426.13 | J162: =MIN(OFFSET(F162,0,0,$A$19,1)) -> 1396.87 | K162: =ABS((G162-J162)-(I162-G162))/(I162-J162) -> 0.5454545455 | L162: =$C$18*(1+K162) -> 0.2809917355 | M162: =M163+L162*(G162-M163) -> 1408.407652 | N162: =$G162*$C$21+$D$21*N163 -> 1395.430999 | O162: =MAX(OFFSET($E162,0,0,$A$22,1)) -> 1433.79 | P162: =MIN(OFFSET($F162,0,0,$A$22,1)) -> 1351.01 | Q162: =ABS(($G162-P162)-(O162-$G162))/(O162-P162) -> 0.2686639285 | R162: =$C$21*(1+Q162) -> 0.04975152661 | S162: =S163+R162*($G162-S163) -> 1401.266283 | T162: =IF(AND($H163>$M163,$H162<$M162),"Up",IF(AND($H163<$M163,$H162>$M162),"Dn","")) -> Dn | U162: =IF(AND($H163<$N163,$H162>$N162),"Up",IF(AND($H163>$N163,$H162<$N162),"Dn","")) ->  | V162: =IF(AND($M163<$S163,$M162>$S162),"Up",IF(AND($M163>$S163,$M162<$S162),"Dn","")) ->  | W162: =IF(AND($N163>$S163,$N162<$S162),"Up",IF(AND($N163<$S163,$N162>$S162),"Dn","")) ->  | Y162: =IF($S$4,H162,NA()) ->  | Z162: =IF($S$5,M162,NA()) -> 1408.407652 | AA162: =IF($S$6,N162,NA()) ->  | AB162: =IF($S$7,S162,NA()) -> 1401.266283 | AC162: =IF(AND($S$10,$T162="Up"),$AZ$34,NA()) ->  | AD162: =IF(AND($S$10,$T162="Dn"),$AZ$34,NA()) ->  | AE162: =IF(AND($S$11,$U162="Up"),$H162,NA()) ->  | AF162: =IF(AND($S$11,$U162="Dn"),$H162,NA()) ->  | AG162: =IF(AND($S$12,$V162="Up"),M162,NA()) ->  | AH162: =IF(AND($S$12,$V162="Dn"),M162,NA()) ->  | AI162: =IF(AND($S$13,$W162="Up"),$AZ$34,NA()) ->  | AJ162: =IF(AND($S$13,$W162="Dn"),$AZ$34,NA()) ->  | AQ162: 35639100
A163: 131 | B163: =OFFSET(InputPriceData!B$15,CalculationsAndCharts!$A163+$A$11,0,1,1) -> 2017-06-26 | C163: =OFFSET(InputPriceData!G$15,CalculationsAndCharts!$A163+$A$11,IF($C$7,8,0),1,1) -> 32389700 | D163: =OFFSET(InputPriceData!C$15,CalculationsAndCharts!$A163+$A$11,IF($C$7,8,0),1,1) -> 1415.12 | E163: =OFFSET(InputPriceData!D$15,CalculationsAndCharts!$A163+$A$11,IF($C$7,8,0),1,1) -> 1420.77 | F163: =OFFSET(InputPriceData!E$15,CalculationsAndCharts!$A163+$A$11,IF($C$7,8,0),1,1) -> 1409.15 | G163: =OFFSET(InputPriceData!F$15,CalculationsAndCharts!$A163+$A$11,IF($C$7,8,0),1,1) -> 1416.64 | H163: 1409.816367 | I163: 1427.55 | J163: 1396.87 | K163: 0.2887874837 | L163: 0.234324997 | M163: 1410.317769 | N163: 1395.100835 | O163: 1433.79 | P163: 1345.36 | Q163: 0.6121225828 | R163: 0.06322049344 | S163: 1401.148287 | Z163: 1410.317769 | AB163: 1401.148287 | AP163: 32389700
A164: 132 | B164: =OFFSET(InputPriceData!B$15,CalculationsAndCharts!$A164+$A$11,0,1,1) -> 2017-06-23 | C164: =OFFSET(InputPriceData!G$15,CalculationsAndCharts!$A164+$A$11,IF($C$7,8,0),1,1) -> 52783300 | D164: =OFFSET(InputPriceData!C$15,CalculationsAndCharts!$A164+$A$11,IF($C$7,8,0),1,1) -> 1404.78 | E164: =OFFSET(InputPriceData!D$15,CalculationsAndCharts!$A164+$A$11,IF($C$7,8,0),1,1) -> 1415.77 | F164: =OFFSET(InputPriceData!E$15,CalculationsAndCharts!$A164+$A$11,IF($C$7,8,0),1,1) -> 1402.77 | G164: =OFFSET(InputPriceData!F$15,CalculationsAndCharts!$A164+$A$11,IF($C$7,8,0),1,1) -> 1414.78 | H164: 1408.300004 | I164: 1427.55 | J164: 1396.87 | K164: 0.167535854 | L164: 0.2122792462 | M164: 1408.382931 | N164: 1394.221686 | O164: 1433.79 | P164: 1345.24 | Q164: 0.5706380576 | R164: 0.06159364932 | S164: 1400.102797 | T164: Up | Z164: 1408.382931 | AB164: 1400.102797 | AP164: 52783300
A165: 133 | B165: =OFFSET(InputPriceData!B$15,CalculationsAndCharts!$A165+$A$11,0,1,1) -> 2017-06-22 | C165: =OFFSET(InputPriceData!G$15,CalculationsAndCharts!$A165+$A$11,IF($C$7,8,0),1,1) -> 34682100 | D165: =OFFSET(InputPriceData!C$15,CalculationsAndCharts!$A165+$A$11,IF($C$7,8,0),1,1) -> 1399.37 | E165: =OFFSET(InputPriceData!D$15,CalculationsAndCharts!$A165+$A$11,IF($C$7,8,0),1,1) -> 1408.34 | F165: =OFFSET(InputPriceData!E$15,CalculationsAndCharts!$A165+$A$11,IF($C$7,8,0),1,1) -> 1396.87 | G165: =OFFSET(InputPriceData!F$15,CalculationsAndCharts!$A165+$A$11,IF($C$7,8,0),1,1) -> 1404.54 | H165: 1406.860005 | I165: 1433.79 | J165: 1396.87 | K165: 0.5845070423 | L165: 0.2880921895 | M165: 1406.659015 | N165: 1393.382571 | O165: 1433.79 | P165: 1345.24 | Q165: 0.3393562959 | R165: 0.05252377631 | S165: 1399.139437 | T165: Dn | Z165: 1406.659015 | AB165: 1399.139437 | AP165: 34682100
A166: 134 | B166: =OFFSET(InputPriceData!B$15,CalculationsAndCharts!$A166+$A$11,0,1,1) -> 2017-06-21 | C166: =OFFSET(InputPriceData!G$15,CalculationsAndCharts!$A166+$A$11,IF($C$7,8,0),1,1) -> 35948200 | D166: =OFFSET(InputPriceData!C$15,CalculationsAndCharts!$A166+$A$11,IF($C$7,8,0),1,1) -> 1403.33 | E166: =OFFSET(InputPriceData!D$15,CalculationsAndCharts!$A166+$A$11,IF($C$7,8,0),1,1) -> 1411.88 | F166: =OFFSET(InputPriceData!E$15,CalculationsAndCharts!$A166+$A$11,IF($C$7,8,0),1,1) -> 1398.46 | G166: =OFFSET(InputPriceData!F$15,CalculationsAndCharts!$A166+$A$11,IF($C$7,8,0),1,1) -> 1399.25 | H166: 1407.375562 | I166: 1433.79 | J166: 1394.69 | K166: 0.7667519182 | L166: 0.3212276215 | M166: 1407.51653 | N166: 1392.927165 | O166: 1433.79 | P166: 1345.24 | Q166: 0.2198757764 | R166: 0.04783826574 | S166: 1398.840055 | Z166: 1407.51653 | AB166: 1398.840055 | AQ166: 35948200
A167: 135 | B167: =OFFSET(InputPriceData!B$15,CalculationsAndCharts!$A167+$A$11,0,1,1) -> 2017-06-20 | C167: =OFFSET(InputPriceData!G$15,CalculationsAndCharts!$A167+$A$11,IF($C$7,8,0),1,1) -> 34165100 | D167: =OFFSET(InputPriceData!C$15,CalculationsAndCharts!$A167+$A$11,IF($C$7,8,0),1,1) -> 1417.76 | E167: =OFFSET(InputPriceData!D$15,CalculationsAndCharts!$A167+$A$11,IF($C$7,8,0),1,1) -> 1417.76 | F167: =OFFSET(InputPriceData!E$15,CalculationsAndCharts!$A167+$A$11,IF($C$7,8,0),1,1) -> 1402.79 | G167: =OFFSET(InputPriceData!F$15,CalculationsAndCharts!$A167+$A$11,IF($C$7,8,0),1,1) -> 1402.97 | H167: 1409.181242 | I167: 1433.79 | J167: 1392.2 | K167: 0.4820870402 | L167: 0.2694703709 | M167: 1411.428648 | N167: 1392.669091 | O167: 1433.79 | P167: 1345.24 | Q167: 0.3038961039 | R167: 0.05113318054 | S167: 1398.819458 | Z167: 1411.428648 | AB167: 1398.819458 | AQ167: 34165100
A168: 136 | B168: =OFFSET(InputPriceData!B$15,CalculationsAndCharts!$A168+$A$11,0,1,1) -> 2017-06-19 | C168: =OFFSET(InputPriceData!G$15,CalculationsAndCharts!$A168+$A$11,IF($C$7,8,0),1,1) -> 32647000 | D168: =OFFSET(InputPriceData!C$15,CalculationsAndCharts!$A168+$A$11,IF($C$7,8,0),1,1) -> 1407.07 | E168: =OFFSET(InputPriceData!D$15,CalculationsAndCharts!$A168+$A$11,IF($C$7,8,0),1,1) -> 1420.19 | F168: =OFFSET(InputPriceData!E$15,CalculationsAndCharts!$A168+$A$11,IF($C$7,8,0),1,1) -> 1407.07 | G168: =OFFSET(InputPriceData!F$15,CalculationsAndCharts!$A168+$A$11,IF($C$7,8,0),1,1) -> 1418.08 | H168: 1410.561518 | I168: 1433.79 | J168: 1386.7 | K168: 0.3327670418 | L168: 0.2423212803 | M168: 1414.548788 | N168: 1392.248645 | O168: 1433.79 | P168: 1345.24 | Q168: 0.6451722191 | R168: 0.06451655761 | S168: 1398.595791 | Z168: 1414.548788 | AB168: 1398.595791 | AP168: 32647000
A169: 137 | B169: =OFFSET(InputPriceData!B$15,CalculationsAndCharts!$A169+$A$11,0,1,1) -> 2017-06-16 | C169: =OFFSET(InputPriceData!G$15,CalculationsAndCharts!$A169+$A$11,IF($C$7,8,0),1,1) -> 52847200 | D169: =OFFSET(InputPriceData!C$15,CalculationsAndCharts!$A169+$A$11,IF($C$7,8,0),1,1) -> 1407.22 | E169: =OFFSET(InputPriceData!D$15,CalculationsAndCharts!$A169+$A$11,IF($C$7,8,0),1,1) -> 1407.22 | F169: =OFFSET(InputPriceData!E$15,CalculationsAndCharts!$A169+$A$11,IF($C$7,8,0),1,1) -> 1399.26 | G169: =OFFSET(InputPriceData!F$15,CalculationsAndCharts!$A169+$A$11,IF($C$7,8,0),1,1) -> 1406.73 | H169: 1408.890745 | I169: 1433.79 | J169: 1386.7 | K169: 0.1492885963 | L169: 0.208961563 | M169: 1413.419434 | N169: 1391.194304 | O169: 1433.79 | P169: 1345.24 | Q169: 0.3888198758 | R169: 0.05446352454 | S169: 1397.252043 | Z169: 1413.419434 | AB169: 1397.252043 | AQ169: 52847200
A170: 138 | B170: =OFFSET(InputPriceData!B$15,CalculationsAndCharts!$A170+$A$11,0,1,1) -> 2017-06-15 | C170: =OFFSET(InputPriceData!G$15,CalculationsAndCharts!$A170+$A$11,IF($C$7,8,0),1,1) -> 33530500 | D170: =OFFSET(InputPriceData!C$15,CalculationsAndCharts!$A170+$A$11,IF($C$7,8,0),1,1) -> 1415.47 | E170: =OFFSET(InputPriceData!D$15,CalculationsAndCharts!$A170+$A$11,IF($C$7,8,0),1,1) -> 1415.47 | F170: =OFFSET(InputPriceData!E$15,CalculationsAndCharts!$A170+$A$11,IF($C$7,8,0),1,1) -> 1402.52 | G170: =OFFSET(InputPriceData!F$15,CalculationsAndCharts!$A170+$A$11,IF($C$7,8,0),1,1) -> 1410.08 | H170: 1409.37091 | I170: 1433.79 | J170: 1386.7 | K170: 0.007007857295 | L170: 0.1830923377 | M170: 1415.186522 | N170: 1390.560194 | O170: 1433.79 | P170: 1345.24 | Q170: 0.4644833427 | R170: 0.05743071932 | S170: 1396.706107 | Z170: 1415.186522 | AB170: 1396.706107 | AQ170: 33530500
A171: 139 | B171: =OFFSET(InputPriceData!B$15,CalculationsAndCharts!$A171+$A$11,0,1,1) -> 2017-06-14 | C171: =OFFSET(InputPriceData!G$15,CalculationsAndCharts!$A171+$A$11,IF($C$7,8,0),1,1) -> 35555900 | D171: =OFFSET(InputPriceData!C$15,CalculationsAndCharts!$A171+$A$11,IF($C$7,8,0),1,1) -> 1426.03 | E171: =OFFSET(InputPriceData!D$15,CalculationsAndCharts!$A171+$A$11,IF($C$7,8,0),1,1) -> 1426.13 | F171: =OFFSET(InputPriceData!E$15,CalculationsAndCharts!$A171+$A$11,IF($C$7,8,0),1,1) -> 1411.4 | G171: =OFFSET(InputPriceData!F$15,CalculationsAndCharts!$A171+$A$11,IF($C$7,8,0),1,1) -> 1417.57 | H171: 1409.213335 | I171: 1433.79 | J171: 1370.33 | K171: 0.48881185 | L171: 0.2706930636 | M171: 1416.331039 | N171: 1389.763468 | O171: 1433.79 | P171: 1345.24 | Q171: 0.6336533032 | R171: 0.06406483542 | S171: 1395.891236 | Z171: 1416.331039 | AB171: 1395.891236 | AQ171: 35555900
A172: 140 | B172: =OFFSET(InputPriceData!B$15,CalculationsAndCharts!$A172+$A$11,0,1,1) -> 2017-06-13 | C172: =OFFSET(InputPriceData!G$15,CalculationsAndCharts!$A172+$A$11,IF($C$7,8,0),1,1) -> 32755000 | D172: =OFFSET(InputPriceData!C$15,CalculationsAndCharts!$A172+$A$11,IF($C$7,8,0),1,1) -> 1420.06 | E172: =OFFSET(InputPriceData!D$15,CalculationsAndCharts!$A172+$A$11,IF($C$7,8,0),1,1) -> 1427.55 | F172: =OFFSET(InputPriceData!E$15,CalculationsAndCharts!$A172+$A$11,IF($C$7,8,0),1,1) -> 1420.06 | G172: =OFFSET(InputPriceData!F$15,CalculationsAndCharts!$A172+$A$11,IF($C$7,8,0),1,1) -> 1425.99 | H172: 1407.356298 | I172: 1433.79 | J172: 1354.85 | K172: 0.8023815556 | L172: 0.3277057374 | M172: 1415.871181 | N172: 1388.628507 | O172: 1433.79 | P172: 1345.24 | Q172: 0.8238283456 | R172: 0.07152268022 | S172: 1394.407322 | Z172: 1415.871181 | AB172: 1394.407322 | AP172: 32755000
A173: 141 | B173: =OFFSET(InputPriceData!B$15,CalculationsAndCharts!$A173+$A$11,0,1,1) -> 2017-06-12 | C173: =OFFSET(InputPriceData!G$15,CalculationsAndCharts!$A173+$A$11,IF($C$7,8,0),1,1) -> 40277500 | D173: =OFFSET(InputPriceData!C$15,CalculationsAndCharts!$A173+$A$11,IF($C$7,8,0),1,1) -> 1421.1 | E173: =OFFSET(InputPriceData!D$15,CalculationsAndCharts!$A173+$A$11,IF($C$7,8,0),1,1) -> 1426.1 | F173: =OFFSET(InputPriceData!E$15,CalculationsAndCharts!$A173+$A$11,IF($C$7,8,0),1,1) -> 1415.59 | G173: =OFFSET(InputPriceData!F$15,CalculationsAndCharts!$A173+$A$11,IF($C$7,8,0),1,1) -> 1419.21 | H173: 1403.215475 | I173: 1433.79 | J173: 1354.85 | K173: 0.6306055232 | L173: 0.2964737315 | M173: 1410.938824 | N173: 1387.103548 | O173: 1433.79 | P173: 1345.24 | Q173: 0.6706945229 | R173: 0.06551743227 | S173: 1391.974438 | Z173: 1410.938824 | AB173: 1391.974438 | AQ173: 40277500
A174: 142 | B174: =OFFSET(InputPriceData!B$15,CalculationsAndCharts!$A174+$A$11,0,1,1) -> 2017-06-09 | C174: =OFFSET(InputPriceData!G$15,CalculationsAndCharts!$A174+$A$11,IF($C$7,8,0),1,1) -> 40273400 | D174: =OFFSET(InputPriceData!C$15,CalculationsAndCharts!$A174+$A$11,IF($C$7,8,0),1,1) -> 1416.15 | E174: =OFFSET(InputPriceData!D$15,CalculationsAndCharts!$A174+$A$11,IF($C$7,8,0),1,1) -> 1433.79 | F174: =OFFSET(InputPriceData!E$15,CalculationsAndCharts!$A174+$A$11,IF($C$7,8,0),1,1) -> 1413.61 | G174: =OFFSET(InputPriceData!F$15,CalculationsAndCharts!$A174+$A$11,IF($C$7,8,0),1,1) -> 1421.71 | H174: 1399.661136 | I174: 1433.79 | J174: 1354.85 | K174: 0.6939447682 | L174: 0.3079899579 | M174: 1407.453259 | N174: 1385.793081 | O174: 1433.79 | P174: 1345.24 | Q174: 0.7271597967 | R174: 0.06773175673 | S174: 1390.064928 | Z174: 1407.453259 | AB174: 1390.064928 | AP174: 40273400
A175: 143 | B175: =OFFSET(InputPriceData!B$15,CalculationsAndCharts!$A175+$A$11,0,1,1) -> 2017-06-08 | C175: =OFFSET(InputPriceData!G$15,CalculationsAndCharts!$A175+$A$11,IF($C$7,8,0),1,1) -> 37288600 | D175: =OFFSET(InputPriceData!C$15,CalculationsAndCharts!$A175+$A$11,IF($C$7,8,0),1,1) -> 1396.78 | E175: =OFFSET(InputPriceData!D$15,CalculationsAndCharts!$A175+$A$11,IF($C$7,8,0),1,1) -> 1419.32 | F175: =OFFSET(InputPriceData!E$15,CalculationsAndCharts!$A175+$A$11,IF($C$7,8,0),1,1) -> 1394.69 | G175: =OFFSET(InputPriceData!F$15,CalculationsAndCharts!$A175+$A$11,IF($C$7,8,0),1,1) -> 1415.61 | H175: 1394.761389 | I175: 1419.32 | J175: 1354.85 | K175: 0.884907709 | L175: 0.3427104925 | M175: 1401.108072 | N175: 1384.327084 | O175: 1425.7 | P175: 1345.24 | Q175: 0.7491921452 | R175: 0.0685957704 | S175: 1387.76583 | Z175: 1401.108072 | AB175: 1387.76583 | AP175: 37288600
A176: 144 | B176: =OFFSET(InputPriceData!B$15,CalculationsAndCharts!$A176+$A$11,0,1,1) -> 2017-06-07 | C176: =OFFSET(InputPriceData!G$15,CalculationsAndCharts!$A176+$A$11,IF($C$7,8,0),1,1) -> 35723000 | D176: =OFFSET(InputPriceData!C$15,CalculationsAndCharts!$A176+$A$11,IF($C$7,8,0),1,1) -> 1395.53 | E176: =OFFSET(InputPriceData!D$15,CalculationsAndCharts!$A176+$A$11,IF($C$7,8,0),1,1) -> 1400.41 | F176: =OFFSET(InputPriceData!E$15,CalculationsAndCharts!$A176+$A$11,IF($C$7,8,0),1,1) -> 1392.2 | G176: =OFFSET(InputPriceData!F$15,CalculationsAndCharts!$A176+$A$11,IF($C$7,8,0),1,1) -> 1396.67 | H176: 1390.128364 | I176: 1414.96 | J176: 1354.85 | K176: 0.3914490101 | L176: 0.2529907291 | M176: 1393.546772 | N176: 1383.05023 | O176: 1425.7 | P176: 1345.24 | Q176: 0.2783992046 | R176: 0.05013330214 | S176: 1385.715171 | Z176: 1393.546772 | AB176: 1385.715171 | AP176: 35723000
A177: 145 | B177: =OFFSET(InputPriceData!B$15,CalculationsAndCharts!$A177+$A$11,0,1,1) -> 2017-06-06 | C177: =OFFSET(InputPriceData!G$15,CalculationsAndCharts!$A177+$A$11,IF($C$7,8,0),1,1) -> 33578400 | D177: =OFFSET(InputPriceData!C$15,CalculationsAndCharts!$A177+$A$11,IF($C$7,8,0),1,1) -> 1395.05 | E177: =OFFSET(InputPriceData!D$15,CalculationsAndCharts!$A177+$A$11,IF($C$7,8,0),1,1) -> 1401.79 | F177: =OFFSET(InputPriceData!E$15,CalculationsAndCharts!$A177+$A$11,IF($C$7,8,0),1,1) -> 1386.7 | G177: =OFFSET(InputPriceData!F$15,CalculationsAndCharts!$A177+$A$11,IF($C$7,8,0),1,1) -> 1394.9 | H177: 1388.674667 | I177: 1414.96 | J177: 1354.85 | K177: 0.3325569789 | L177: 0.2422830871 | M177: 1392.489024 | N177: 1382.494321 | O177: 1425.7 | P177: 1335.04 | Q177: 0.3205382749 | R177: 0.0517858147 | S177: 1385.136983 | Z177: 1392.489024 | AB177: 1385.136983 | AQ177: 33578400
A178: 146 | B178: =OFFSET(InputPriceData!B$15,CalculationsAndCharts!$A178+$A$11,0,1,1) -> 2017-06-05 | C178: =OFFSET(InputPriceData!G$15,CalculationsAndCharts!$A178+$A$11,IF($C$7,8,0),1,1) -> 29126000 | D178: =OFFSET(InputPriceData!C$15,CalculationsAndCharts!$A178+$A$11,IF($C$7,8,0),1,1) -> 1405.14 | E178: =OFFSET(InputPriceData!D$15,CalculationsAndCharts!$A178+$A$11,IF($C$7,8,0),1,1) -> 1405.14 | F178: =OFFSET(InputPriceData!E$15,CalculationsAndCharts!$A178+$A$11,IF($C$7,8,0),1,1) -> 1396.44 | G178: =OFFSET(InputPriceData!F$15,CalculationsAndCharts!$A178+$A$11,IF($C$7,8,0),1,1) -> 1396.45 | H178: 1387.29126 | I178: 1414.96 | J178: 1354.85 | K178: 0.3841290967 | L178: 0.2516598358 | M178: 1391.718104 | N178: 1381.987967 | O178: 1425.7 | P178: 1335.04 | Q178: 0.3547319656 | R178: 0.05312674375 | S178: 1384.603785 | Z178: 1391.718104 | AB178: 1384.603785 | AQ178: 29126000
A179: 147 | B179: =OFFSET(InputPriceData!B$15,CalculationsAndCharts!$A179+$A$11,0,1,1) -> 2017-06-02 | C179: =OFFSET(InputPriceData!G$15,CalculationsAndCharts!$A179+$A$11,IF($C$7,8,0),1,1) -> 34616800 | D179: =OFFSET(InputPriceData!C$15,CalculationsAndCharts!$A179+$A$11,IF($C$7,8,0),1,1) -> 1396.08 | E179: =OFFSET(InputPriceData!D$15,CalculationsAndCharts!$A179+$A$11,IF($C$7,8,0),1,1) -> 1414.96 | F179: =OFFSET(InputPriceData!E$15,CalculationsAndCharts!$A179+$A$11,IF($C$7,8,0),1,1) -> 1396.04 | G179: =OFFSET(InputPriceData!F$15,CalculationsAndCharts!$A179+$A$11,IF($C$7,8,0),1,1) -> 1405.39 | H179: 1385.255984 | I179: 1414.96 | J179: 1354.85 | K179: 0.6815837631 | L179: 0.3057425024 | M179: 1390.126812 | N179: 1381.39768 | O179: 1425.7 | P179: 1335.04 | Q179: 0.5519523494 | R179: 0.06086087645 | S179: 1383.939123 | Z179: 1390.126812 | AB179: 1383.939123 | AP179: 34616800
A180: 148 | B180: =OFFSET(InputPriceData!B$15,CalculationsAndCharts!$A180+$A$11,0,1,1) -> 2017-06-01 | C180: =OFFSET(InputPriceData!G$15,CalculationsAndCharts!$A180+$A$11,IF($C$7,8,0),1,1) -> 38571400 | D180: =OFFSET(InputPriceData!C$15,CalculationsAndCharts!$A180+$A$11,IF($C$7,8,0),1,1) -> 1370.33 | E180: =OFFSET(InputPriceData!D$15,CalculationsAndCharts!$A180+$A$11,IF($C$7,8,0),1,1) -> 1396.2 | F180: =OFFSET(InputPriceData!E$15,CalculationsAndCharts!$A180+$A$11,IF($C$7,8,0),1,1) -> 1370.33 | G180: =OFFSET(InputPriceData!F$15,CalculationsAndCharts!$A180+$A$11,IF($C$7,8,0),1,1) -> 1396.06 | H180: 1380.781758 | I180: 1396.2 | J180: 1351.01 | K180: 0.9938039389 | L180: 0.3625098071 | M180: 1383.40509 | N180: 1380.418402 | O180: 1425.7 | P180: 1335.04 | Q180: 0.3461283918 | R180: 0.0527893487 | S180: 1382.548999 | T180: Up | U180: Up | V180: Up | Z180: 1383.40509 | AB180: 1382.548999 | AG180: 1383.40509 | AP180: 38571400
A181: 149 | B181: =OFFSET(InputPriceData!B$15,CalculationsAndCharts!$A181+$A$11,0,1,1) -> 2017-05-31 | C181: =OFFSET(InputPriceData!G$15,CalculationsAndCharts!$A181+$A$11,IF($C$7,8,0),1,1) -> 45161100 | D181: =OFFSET(InputPriceData!C$15,CalculationsAndCharts!$A181+$A$11,IF($C$7,8,0),1,1) -> 1372.2 | E181: =OFFSET(InputPriceData!D$15,CalculationsAndCharts!$A181+$A$11,IF($C$7,8,0),1,1) -> 1374.43 | F181: =OFFSET(InputPriceData!E$15,CalculationsAndCharts!$A181+$A$11,IF($C$7,8,0),1,1) -> 1354.85 | G181: =OFFSET(InputPriceData!F$15,CalculationsAndCharts!$A181+$A$11,IF($C$7,8,0),1,1) -> 1370.21 | H181: 1377.386593 | I181: 1391.42 | J181: 1351.01 | K181: 0.04974016333 | L181: 0.1908618479 | M181: 1376.208856 | N181: 1379.779969 | O181: 1425.7 | P181: 1335.04 | Q181: 0.2241341275 | R181: 0.0480052599 | S181: 1381.796013 | Z181: 1376.208856 | AB181: 1381.796013 | AQ181: 45161100
A182: 150 | B182: =OFFSET(InputPriceData!B$15,CalculationsAndCharts!$A182+$A$11,0,1,1) -> 2017-05-30 | C182: =OFFSET(InputPriceData!G$15,CalculationsAndCharts!$A182+$A$11,IF($C$7,8,0),1,1) -> 32031600 | D182: =OFFSET(InputPriceData!C$15,CalculationsAndCharts!$A182+$A$11,IF($C$7,8,0),1,1) -> 1381.17 | E182: =OFFSET(InputPriceData!D$15,CalculationsAndCharts!$A182+$A$11,IF($C$7,8,0),1,1) -> 1381.17 | F182: =OFFSET(InputPriceData!E$15,CalculationsAndCharts!$A182+$A$11,IF($C$7,8,0),1,1) -> 1370.96 | G182: =OFFSET(InputPriceData!F$15,CalculationsAndCharts!$A182+$A$11,IF($C$7,8,0),1,1) -> 1371.19 | H182: 1378.981392 | I182: 1396.36 | J182: 1351.01 | K182: 0.1100330761 | L182: 0.2018241956 | M182: 1377.623884 | N182: 1380.17058 | O182: 1425.7 | P182: 1335.04 | Q182: 0.2025148908 | R182: 0.0471574467 | S182: 1382.380249 | U182: Dn | Z182: 1377.623884 | AB182: 1382.380249 | AQ182: 32031600
A183: 151 | B183: =OFFSET(InputPriceData!B$15,CalculationsAndCharts!$A183+$A$11,0,1,1) -> 2017-05-26 | C183: =OFFSET(InputPriceData!G$15,CalculationsAndCharts!$A183+$A$11,IF($C$7,8,0),1,1) -> 28050400 | D183: =OFFSET(InputPriceData!C$15,CalculationsAndCharts!$A183+$A$11,IF($C$7,8,0),1,1) -> 1383.14 | E183: =OFFSET(InputPriceData!D$15,CalculationsAndCharts!$A183+$A$11,IF($C$7,8,0),1,1) -> 1383.68 | F183: =OFFSET(InputPriceData!E$15,CalculationsAndCharts!$A183+$A$11,IF($C$7,8,0),1,1) -> 1376.15 | G183: =OFFSET(InputPriceData!F$15,CalculationsAndCharts!$A183+$A$11,IF($C$7,8,0),1,1) -> 1382.24 | H183: 1380.712812 | I183: 1398.99 | J183: 1351.01 | K183: 0.3017924135 | L183: 0.2366895297 | M183: 1379.250735 | N183: 1380.537134 | O183: 1425.7 | P183: 1335.04 | Q183: 0.04125303331 | R183: 0.04083345229 | S183: 1382.934069 | U183: Up | Z183: 1379.250735 | AB183: 1382.934069 | AQ183: 28050400
A184: 152 | B184: =OFFSET(InputPriceData!B$15,CalculationsAndCharts!$A184+$A$11,0,1,1) -> 2017-05-25 | C184: =OFFSET(InputPriceData!G$15,CalculationsAndCharts!$A184+$A$11,IF($C$7,8,0),1,1) -> 35353900 | D184: =OFFSET(InputPriceData!C$15,CalculationsAndCharts!$A184+$A$11,IF($C$7,8,0),1,1) -> 1384.81 | E184: =OFFSET(InputPriceData!D$15,CalculationsAndCharts!$A184+$A$11,IF($C$7,8,0),1,1) -> 1391.42 | F184: =OFFSET(InputPriceData!E$15,CalculationsAndCharts!$A184+$A$11,IF($C$7,8,0),1,1) -> 1380.33 | G184: =OFFSET(InputPriceData!F$15,CalculationsAndCharts!$A184+$A$11,IF($C$7,8,0),1,1) -> 1383.39 | H184: 1380.373437 | I184: 1398.99 | J184: 1351.01 | K184: 0.3497290538 | L184: 0.2454052825 | M184: 1378.323815 | N184: 1380.46763 | O184: 1425.7 | P184: 1335.04 | Q184: 0.06662254578 | R184: 0.04182833513 | S184: 1382.963617 | Z184: 1378.323815 | AB184: 1382.963617 | AQ184: 35353900
A185: 153 | B185: =OFFSET(InputPriceData!B$15,CalculationsAndCharts!$A185+$A$11,0,1,1) -> 2017-05-24 | C185: =OFFSET(InputPriceData!G$15,CalculationsAndCharts!$A185+$A$11,IF($C$7,8,0),1,1) -> 33899000 | D185: =OFFSET(InputPriceData!C$15,CalculationsAndCharts!$A185+$A$11,IF($C$7,8,0),1,1) -> 1381.16 | E185: =OFFSET(InputPriceData!D$15,CalculationsAndCharts!$A185+$A$11,IF($C$7,8,0),1,1) -> 1386.07 | F185: =OFFSET(InputPriceData!E$15,CalculationsAndCharts!$A185+$A$11,IF($C$7,8,0),1,1) -> 1376.55 | G185: =OFFSET(InputPriceData!F$15,CalculationsAndCharts!$A185+$A$11,IF($C$7,8,0),1,1) -> 1382.51 | H185: 1379.70309 | I185: 1399.2 | J185: 1351.01 | K185: 0.3073251712 | L185: 0.2376954857 | M185: 1376.676217 | N185: 1380.348349 | O185: 1425.7 | P185: 1335.04 | Q185: 0.04720935363 | R185: 0.04106703348 | S185: 1382.945003 | Z185: 1376.676217 | AB185: 1382.945003 | AP185: 33899000
A186: 154 | B186: =OFFSET(InputPriceData!B$15,CalculationsAndCharts!$A186+$A$11,0,1,1) -> 2017-05-23 | C186: =OFFSET(InputPriceData!G$15,CalculationsAndCharts!$A186+$A$11,IF($C$7,8,0),1,1) -> 32135700 | D186: =OFFSET(InputPriceData!C$15,CalculationsAndCharts!$A186+$A$11,IF($C$7,8,0),1,1) -> 1378.24 | E186: =OFFSET(InputPriceData!D$15,CalculationsAndCharts!$A186+$A$11,IF($C$7,8,0),1,1) -> 1383.08 | F186: =OFFSET(InputPriceData!E$15,CalculationsAndCharts!$A186+$A$11,IF($C$7,8,0),1,1) -> 1372.05 | G186: =OFFSET(InputPriceData!F$15,CalculationsAndCharts!$A186+$A$11,IF($C$7,8,0),1,1) -> 1380.98 | H186: 1379.079332 | I186: 1400.81 | J186: 1351.01 | K186: 0.2036144578 | L186: 0.2188389923 | M186: 1374.857175 | N186: 1380.260119 | O186: 1425.7 | P186: 1335.04 | Q186: 0.01345687183 | R186: 0.03974340674 | S186: 1382.963633 | Z186: 1374.857175 | AB186: 1382.963633 | AP186: 32135700
A187: 155 | B187: =OFFSET(InputPriceData!B$15,CalculationsAndCharts!$A187+$A$11,0,1,1) -> 2017-05-22 | C187: =OFFSET(InputPriceData!G$15,CalculationsAndCharts!$A187+$A$11,IF($C$7,8,0),1,1) -> 31728300 | D187: =OFFSET(InputPriceData!C$15,CalculationsAndCharts!$A187+$A$11,IF($C$7,8,0),1,1) -> 1367.88 | E187: =OFFSET(InputPriceData!D$15,CalculationsAndCharts!$A187+$A$11,IF($C$7,8,0),1,1) -> 1378.3 | F187: =OFFSET(InputPriceData!E$15,CalculationsAndCharts!$A187+$A$11,IF($C$7,8,0),1,1) -> 1367.88 | G187: =OFFSET(InputPriceData!F$15,CalculationsAndCharts!$A187+$A$11,IF($C$7,8,0),1,1) -> 1377.14 | H187: 1378.656961 | I187: 1400.81 | J187: 1351.01 | K187: 0.04939759036 | L187: 0.1907995619 | M187: 1373.141891 | N187: 1380.230736 | O187: 1425.7 | P187: 1335.04 | Q187: 0.07125523936 | R187: 0.04201000939 | S187: 1383.045732 | Z187: 1373.141891 | AB187: 1383.045732 | AP187: 31728300
A188: 156 | B188: =OFFSET(InputPriceData!B$15,CalculationsAndCharts!$A188+$A$11,0,1,1) -> 2017-05-19 | C188: =OFFSET(InputPriceData!G$15,CalculationsAndCharts!$A188+$A$11,IF($C$7,8,0),1,1) -> 38251600 | D188: =OFFSET(InputPriceData!C$15,CalculationsAndCharts!$A188+$A$11,IF($C$7,8,0),1,1) -> 1361.53 | E188: =OFFSET(InputPriceData!D$15,CalculationsAndCharts!$A188+$A$11,IF($C$7,8,0),1,1) -> 1374.42 | F188: =OFFSET(InputPriceData!E$15,CalculationsAndCharts!$A188+$A$11,IF($C$7,8,0),1,1) -> 1361.53 | G188: =OFFSET(InputPriceData!F$15,CalculationsAndCharts!$A188+$A$11,IF($C$7,8,0),1,1) -> 1367.33 | H188: 1378.994064 | I188: 1400.81 | J188: 1351.01 | K188: 0.3445783133 | L188: 0.2444687842 | M188: 1372.199186 | N188: 1380.356888 | O188: 1425.7 | P188: 1335.04 | Q188: 0.2876682109 | R188: 0.05049679258 | S188: 1383.304711 | U188: Dn | Z188: 1372.199186 | AB188: 1383.304711 | AP188: 38251600
A189: 157 | B189: =OFFSET(InputPriceData!B$15,CalculationsAndCharts!$A189+$A$11,0,1,1) -> 2017-05-18 | C189: =OFFSET(InputPriceData!G$15,CalculationsAndCharts!$A189+$A$11,IF($C$7,8,0),1,1) -> 43194200 | D189: =OFFSET(InputPriceData!C$15,CalculationsAndCharts!$A189+$A$11,IF($C$7,8,0),1,1) -> 1354.93 | E189: =OFFSET(InputPriceData!D$15,CalculationsAndCharts!$A189+$A$11,IF($C$7,8,0),1,1) -> 1365.01 | F189: =OFFSET(InputPriceData!E$15,CalculationsAndCharts!$A189+$A$11,IF($C$7,8,0),1,1) -> 1351.01 | G189: =OFFSET(InputPriceData!F$15,CalculationsAndCharts!$A189+$A$11,IF($C$7,8,0),1,1) -> 1361.08 | H189: 1381.586078 | I189: 1400.81 | J189: 1351.01 | K189: 0.5955823293 | L189: 0.2901058781 | M189: 1373.774719 | N189: 1380.888598 | O189: 1425.7 | P189: 1335.04 | Q189: 0.425545996 | R189: 0.05590376455 | S189: 1384.154284 | Z189: 1373.774719 | AB189: 1384.154284 | AP189: 43194200
A190: 158 | B190: =OFFSET(InputPriceData!B$15,CalculationsAndCharts!$A190+$A$11,0,1,1) -> 2017-05-17 | C190: =OFFSET(InputPriceData!G$15,CalculationsAndCharts!$A190+$A$11,IF($C$7,8,0),1,1) -> 41630000 | D190: =OFFSET(InputPriceData!C$15,CalculationsAndCharts!$A190+$A$11,IF($C$7,8,0),1,1) -> 1388.3 | E190: =OFFSET(InputPriceData!D$15,CalculationsAndCharts!$A190+$A$11,IF($C$7,8,0),1,1) -> 1388.3 | F190: =OFFSET(InputPriceData!E$15,CalculationsAndCharts!$A190+$A$11,IF($C$7,8,0),1,1) -> 1355.85 | G190: =OFFSET(InputPriceData!F$15,CalculationsAndCharts!$A190+$A$11,IF($C$7,8,0),1,1) -> 1355.89 | H190: 1386.142984 | I190: 1400.81 | J190: 1355.85 | K190: 0.9982206406 | L190: 0.3633128437 | M190: 1378.962552 | N190: 1381.697112 | O190: 1425.7 | P190: 1335.04 | Q190: 0.5400397088 | R190: 0.06039371407 | S190: 1385.520606 | V190: Dn | Z190: 1378.962552 | AB190: 1385.520606 | AH190: 1378.962552 | AQ190: 41630000
A191: 159 | B191: =OFFSET(InputPriceData!B$15,CalculationsAndCharts!$A191+$A$11,0,1,1) -> 2017-05-16 | C191: =OFFSET(InputPriceData!G$15,CalculationsAndCharts!$A191+$A$11,IF($C$7,8,0),1,1) -> 34207900 | D191: =OFFSET(InputPriceData!C$15,CalculationsAndCharts!$A191+$A$11,IF($C$7,8,0),1,1) -> 1394.57 | E191: =OFFSET(InputPriceData!D$15,CalculationsAndCharts!$A191+$A$11,IF($C$7,8,0),1,1) -> 1396.36 | F191: =OFFSET(InputPriceData!E$15,CalculationsAndCharts!$A191+$A$11,IF($C$7,8,0),1,1) -> 1384.82 | G191: =OFFSET(InputPriceData!F$15,CalculationsAndCharts!$A191+$A$11,IF($C$7,8,0),1,1) -> 1394.68 | H191: 1392.86587 | I191: 1400.81 | J191: 1379.15 | K191: 0.4339796861 | L191: 0.2607235793 | M191: 1392.128445 | N191: 1382.750464 | O191: 1425.7 | P191: 1335.04 | Q191: 0.3156849768 | R191: 0.05159548929 | S191: 1387.425129 | Z191: 1392.128445 | AB191: 1387.425129 | AP191: 34207900
A192: 160 | B192: =OFFSET(InputPriceData!B$15,CalculationsAndCharts!$A192+$A$11,0,1,1) -> 2017-05-15 | C192: =OFFSET(InputPriceData!G$15,CalculationsAndCharts!$A192+$A$11,IF($C$7,8,0),1,1) -> 34736000 | D192: =OFFSET(InputPriceData!C$15,CalculationsAndCharts!$A192+$A$11,IF($C$7,8,0),1,1) -> 1383.27 | E192: =OFFSET(InputPriceData!D$15,CalculationsAndCharts!$A192+$A$11,IF($C$7,8,0),1,1) -> 1398.99 | F192: =OFFSET(InputPriceData!E$15,CalculationsAndCharts!$A192+$A$11,IF($C$7,8,0),1,1) -> 1383.27 | G192: =OFFSET(InputPriceData!F$15,CalculationsAndCharts!$A192+$A$11,IF($C$7,8,0),1,1) -> 1393.92 | H192: 1392.46273 | I192: 1409.05 | J192: 1379.15 | K192: 0.01204013378 | L192: 0.1840072971 | M192: 1391.228578 | N192: 1382.263544 | O192: 1425.7 | P192: 1335.04 | Q192: 0.2989190382 | R192: 0.0509380015 | S192: 1387.030447 | Z192: 1391.228578 | AB192: 1387.030447 | AP192: 34736000
A193: 161 | B193: =OFFSET(InputPriceData!B$15,CalculationsAndCharts!$A193+$A$11,0,1,1) -> 2017-05-12 | C193: =OFFSET(InputPriceData!G$15,CalculationsAndCharts!$A193+$A$11,IF($C$7,8,0),1,1) -> 33056300 | D193: =OFFSET(InputPriceData!C$15,CalculationsAndCharts!$A193+$A$11,IF($C$7,8,0),1,1) -> 1389.39 | E193: =OFFSET(InputPriceData!D$15,CalculationsAndCharts!$A193+$A$11,IF($C$7,8,0),1,1) -> 1389.39 | F193: =OFFSET(InputPriceData!E$15,CalculationsAndCharts!$A193+$A$11,IF($C$7,8,0),1,1) -> 1380.02 | G193: =OFFSET(InputPriceData!F$15,CalculationsAndCharts!$A193+$A$11,IF($C$7,8,0),1,1) -> 1382.77 | H193: 1392.138892 | I193: 1411.04 | J193: 1379.15 | K193: 0.7729695829 | L193: 0.322358106 | M193: 1390.621659 | N193: 1381.78777 | O193: 1425.7 | P193: 1335.04 | Q193: 0.05294506949 | R193: 0.04129196351 | S193: 1386.660671 | T193: Dn | Z193: 1390.621659 | AB193: 1386.660671 | AQ193: 33056300
A194: 162 | B194: =OFFSET(InputPriceData!B$15,CalculationsAndCharts!$A194+$A$11,0,1,1) -> 2017-05-11 | C194: =OFFSET(InputPriceData!G$15,CalculationsAndCharts!$A194+$A$11,IF($C$7,8,0),1,1) -> 37274200 | D194: =OFFSET(InputPriceData!C$15,CalculationsAndCharts!$A194+$A$11,IF($C$7,8,0),1,1) -> 1399.2 | E194: =OFFSET(InputPriceData!D$15,CalculationsAndCharts!$A194+$A$11,IF($C$7,8,0),1,1) -> 1399.2 | F194: =OFFSET(InputPriceData!E$15,CalculationsAndCharts!$A194+$A$11,IF($C$7,8,0),1,1) -> 1379.15 | G194: =OFFSET(InputPriceData!F$15,CalculationsAndCharts!$A194+$A$11,IF($C$7,8,0),1,1) -> 1390.2 | H194: 1394.220868 | I194: 1419.21 | J194: 1379.15 | K194: 0.4483275087 | L194: 0.2633322743 | M194: 1394.356738 | N194: 1381.747679 | O194: 1425.7 | P194: 1335.04 | Q194: 0.2168541805 | R194: 0.04771977178 | S194: 1386.828244 | Z194: 1394.356738 | AB194: 1386.828244 | AQ194: 37274200
A195: 163 | B195: =OFFSET(InputPriceData!B$15,CalculationsAndCharts!$A195+$A$11,0,1,1) -> 2017-05-10 | C195: =OFFSET(InputPriceData!G$15,CalculationsAndCharts!$A195+$A$11,IF($C$7,8,0),1,1) -> 36435300 | D195: =OFFSET(InputPriceData!C$15,CalculationsAndCharts!$A195+$A$11,IF($C$7,8,0),1,1) -> 1392.03 | E195: =OFFSET(InputPriceData!D$15,CalculationsAndCharts!$A195+$A$11,IF($C$7,8,0),1,1) -> 1400.81 | F195: =OFFSET(InputPriceData!E$15,CalculationsAndCharts!$A195+$A$11,IF($C$7,8,0),1,1) -> 1390.44 | G195: =OFFSET(InputPriceData!F$15,CalculationsAndCharts!$A195+$A$11,IF($C$7,8,0),1,1) -> 1399.59 | H195: 1395.114394 | I195: 1423.52 | J195: 1380.49 | K195: 0.1122472693 | L195: 0.2022267762 | M195: 1395.842622 | N195: 1381.402686 | O195: 1425.7 | P195: 1335.04 | Q195: 0.4240017648 | R195: 0.05584320646 | S195: 1386.659282 | Z195: 1395.842622 | AB195: 1386.659282 | AP195: 36435300
A196: 164 | B196: =OFFSET(InputPriceData!B$15,CalculationsAndCharts!$A196+$A$11,0,1,1) -> 2017-05-09 | C196: =OFFSET(InputPriceData!G$15,CalculationsAndCharts!$A196+$A$11,IF($C$7,8,0),1,1) -> 36535900 | D196: =OFFSET(InputPriceData!C$15,CalculationsAndCharts!$A196+$A$11,IF($C$7,8,0),1,1) -> 1392.31 | E196: =OFFSET(InputPriceData!D$15,CalculationsAndCharts!$A196+$A$11,IF($C$7,8,0),1,1) -> 1395.48 | F196: =OFFSET(InputPriceData!E$15,CalculationsAndCharts!$A196+$A$11,IF($C$7,8,0),1,1) -> 1386.73 | G196: =OFFSET(InputPriceData!F$15,CalculationsAndCharts!$A196+$A$11,IF($C$7,8,0),1,1) -> 1391.86 | H196: 1394.119815 | I196: 1425.7 | J196: 1380.49 | K196: 0.497013935 | L196: 0.2721843518 | M196: 1394.892703 | N196: 1380.660347 | O196: 1425.7 | P196: 1335.04 | Q196: 0.2534745202 | R196: 0.04915586354 | S196: 1385.89448 | Z196: 1394.892703 | AB196: 1385.89448 | AQ196: 36535900
A197: 165 | B197: =OFFSET(InputPriceData!B$15,CalculationsAndCharts!$A197+$A$11,0,1,1) -> 2017-05-08 | C197: =OFFSET(InputPriceData!G$15,CalculationsAndCharts!$A197+$A$11,IF($C$7,8,0),1,1) -> 34294400 | D197: =OFFSET(InputPriceData!C$15,CalculationsAndCharts!$A197+$A$11,IF($C$7,8,0),1,1) -> 1396.4 | E197: =OFFSET(InputPriceData!D$15,CalculationsAndCharts!$A197+$A$11,IF($C$7,8,0),1,1) -> 1397.43 | F197: =OFFSET(InputPriceData!E$15,CalculationsAndCharts!$A197+$A$11,IF($C$7,8,0),1,1) -> 1386.42 | G197: =OFFSET(InputPriceData!F$15,CalculationsAndCharts!$A197+$A$11,IF($C$7,8,0),1,1) -> 1391.64 | H197: 1394.621996 | I197: 1425.7 | J197: 1380.49 | K197: 0.5067462951 | L197: 0.2739538718 | M197: 1396.026856 | N197: 1380.203218 | O197: 1425.7 | P197: 1335.04 | Q197: 0.2486212221 | R197: 0.04896553812 | S197: 1385.58608 | Z197: 1396.026856 | AB197: 1385.58608 | AQ197: 34294400
A198: 166 | B198: =OFFSET(InputPriceData!B$15,CalculationsAndCharts!$A198+$A$11,0,1,1) -> 2017-05-05 | C198: =OFFSET(InputPriceData!G$15,CalculationsAndCharts!$A198+$A$11,IF($C$7,8,0),1,1) -> 35401400 | D198: =OFFSET(InputPriceData!C$15,CalculationsAndCharts!$A198+$A$11,IF($C$7,8,0),1,1) -> 1389.21 | E198: =OFFSET(InputPriceData!D$15,CalculationsAndCharts!$A198+$A$11,IF($C$7,8,0),1,1) -> 1397.21 | F198: =OFFSET(InputPriceData!E$15,CalculationsAndCharts!$A198+$A$11,IF($C$7,8,0),1,1) -> 1385.2 | G198: =OFFSET(InputPriceData!F$15,CalculationsAndCharts!$A198+$A$11,IF($C$7,8,0),1,1) -> 1397 | H198: 1395.284662 | I198: 1425.7 | J198: 1380.49 | K198: 0.2696306127 | L198: 0.2308419296 | M198: 1397.682118 | N198: 1379.736411 | O198: 1425.7 | P198: 1335.04 | Q198: 0.3668652107 | R198: 0.05360255728 | S198: 1385.274384 | Z198: 1397.682118 | AB198: 1385.274384 | AP198: 35401400
A199: 167 | B199: =OFFSET(InputPriceData!B$15,CalculationsAndCharts!$A199+$A$11,0,1,1) -> 2017-05-04 | C199: =OFFSET(InputPriceData!G$15,CalculationsAndCharts!$A199+$A$11,IF($C$7,8,0),1,1) -> 43625400 | D199: =OFFSET(InputPriceData!C$15,CalculationsAndCharts!$A199+$A$11,IF($C$7,8,0),1,1) -> 1391.17 | E199: =OFFSET(InputPriceData!D$15,CalculationsAndCharts!$A199+$A$11,IF($C$7,8,0),1,1) -> 1394.16 | F199: =OFFSET(InputPriceData!E$15,CalculationsAndCharts!$A199+$A$11,IF($C$7,8,0),1,1) -> 1380.49 | G199: =OFFSET(InputPriceData!F$15,CalculationsAndCharts!$A199+$A$11,IF($C$7,8,0),1,1) -> 1388.85 | H199: 1394.903475 | I199: 1425.7 | J199: 1376.37 | K199: 0.4940198662 | L199: 0.2716399757 | M199: 1397.886837 | N199: 1379.031774 | O199: 1425.7 | P199: 1335.04 | Q199: 0.1870725789 | R199: 0.04655186584 | S199: 1384.610262 | Z199: 1397.886837 | AB199: 1384.610262 | AQ199: 43625400
A200: 168 | B200: =OFFSET(InputPriceData!B$15,CalculationsAndCharts!$A200+$A$11,0,1,1) -> 2017-05-03 | C200: =OFFSET(InputPriceData!G$15,CalculationsAndCharts!$A200+$A$11,IF($C$7,8,0),1,1) -> 38939900 | D200: =OFFSET(InputPriceData!C$15,CalculationsAndCharts!$A200+$A$11,IF($C$7,8,0),1,1) -> 1399.13 | E200: =OFFSET(InputPriceData!D$15,CalculationsAndCharts!$A200+$A$11,IF($C$7,8,0),1,1) -> 1399.13 | F200: =OFFSET(InputPriceData!E$15,CalculationsAndCharts!$A200+$A$11,IF($C$7,8,0),1,1) -> 1386.32 | G200: =OFFSET(InputPriceData!F$15,CalculationsAndCharts!$A200+$A$11,IF($C$7,8,0),1,1) -> 1390.92 | H200: 1396.248692 | I200: 1425.7 | J200: 1368.39 | K200: 0.2137497819 | L200: 0.2206817785 | M200: 1401.257102 | N200: 1378.631031 | O200: 1425.7 | P200: 1335.04 | Q200: 0.2327377013 | R200: 0.04834265495 | S200: 1384.403258 | Z200: 1401.257102 | AB200: 1384.403258 | AQ200: 38939900
A201: 169 | B201: =OFFSET(InputPriceData!B$15,CalculationsAndCharts!$A201+$A$11,0,1,1) -> 2017-05-02 | C201: =OFFSET(InputPriceData!G$15,CalculationsAndCharts!$A201+$A$11,IF($C$7,8,0),1,1) -> 38136800 | D201: =OFFSET(InputPriceData!C$15,CalculationsAndCharts!$A201+$A$11,IF($C$7,8,0),1,1) -> 1407.54 | E201: =OFFSET(InputPriceData!D$15,CalculationsAndCharts!$A201+$A$11,IF($C$7,8,0),1,1) -> 1409.05 | F201: =OFFSET(InputPriceData!E$15,CalculationsAndCharts!$A201+$A$11,IF($C$7,8,0),1,1) -> 1395.63 | G201: =OFFSET(InputPriceData!F$15,CalculationsAndCharts!$A201+$A$11,IF($C$7,8,0),1,1) -> 1399.36 | H201: 1397.432846 | I201: 1425.7 | J201: 1362.32 | K201: 0.1688229725 | L201: 0.2125132677 | M201: 1404.184289 | N201: 1378.12944 | O201: 1425.7 | P201: 1335.04 | Q201: 0.4189278623 | R201: 0.0556442299 | S201: 1384.072218 | Z201: 1404.184289 | AB201: 1384.072218 | AQ201: 38136800
A202: 170 | B202: =OFFSET(InputPriceData!B$15,CalculationsAndCharts!$A202+$A$11,0,1,1) -> 2017-05-01 | C202: =OFFSET(InputPriceData!G$15,CalculationsAndCharts!$A202+$A$11,IF($C$7,8,0),1,1) -> 31992400 | D202: =OFFSET(InputPriceData!C$15,CalculationsAndCharts!$A202+$A$11,IF($C$7,8,0),1,1) -> 1401.01 | E202: =OFFSET(InputPriceData!D$15,CalculationsAndCharts!$A202+$A$11,IF($C$7,8,0),1,1) -> 1411.04 | F202: =OFFSET(InputPriceData!E$15,CalculationsAndCharts!$A202+$A$11,IF($C$7,8,0),1,1) -> 1397.08 | G202: =OFFSET(InputPriceData!F$15,CalculationsAndCharts!$A202+$A$11,IF($C$7,8,0),1,1) -> 1407.36 | H202: 1397.00459 | I202: 1425.7 | J202: 1351.42 | K202: 0.5061927841 | L202: 0.2738532335 | M202: 1405.486184 | N202: 1377.262886 | O202: 1425.7 | P202: 1335.04 | Q202: 0.5954114273 | R202: 0.06256515401 | S202: 1383.171417 | Z202: 1405.486184 | AB202: 1383.171417 | AP202: 31992400
... 830 more rows

Sheet DistributionDensityProfiles
C24: Basic Indicator | E24: =IF(CalculationsAndCharts!$R$3=1,CalculationsAndCharts!$L$32,CalculationsAndCharts!$X$30) -> 0 | G24: % Containment | K24: Fischer Transform | M24: =IF(CalculationsAndCharts!$R$3=1,CalculationsAndCharts!#REF!,CalculationsAndCharts!$Z$31) -> 0 | O24: % Containment
H25: Nearest Bucket Value | P25: Nearest Bucket Value
G26: 0.9 | O26: 0.9
D27: Calculated Mean | E27: =AVERAGE(OFFSET(IF(CalculationsAndCharts!$R$3=1,CalculationsAndCharts!$L$33,CalculationsAndCharts!$X$33),0,0,CalculationsAndCharts!$A$8,1)) ->  | G27: NDX | L27: Calculated Mean | M27: =AVERAGE(OFFSET(IF(CalculationsAndCharts!$R$3=1,CalculationsAndCharts!#REF!,CalculationsAndCharts!$Z$33),0,0,CalculationsAndCharts!$A$8,1)) -> 1235.526942 | O27: NDX
D28: StdDev | E28: =_xlfn.STDEV.P(OFFSET(IF(CalculationsAndCharts!$R$3=1,CalculationsAndCharts!$L$33,CalculationsAndCharts!$X$33),0,0,CalculationsAndCharts!$A$8,1)) ->  | F28: Osold | G28: =IFERROR(MATCH((1-G26)/2,G40:G100,1),1) -> 1 | H28: =INDEX(C$40:C$100,G28) -> 0 | L28: StdDev | M28: =_xlfn.STDEV.P(OFFSET(IF(CalculationsAndCharts!$R$3=1,CalculationsAndCharts!#REF!,CalculationsAndCharts!$Z$33),0,0,CalculationsAndCharts!$A$8,1)) -> 132.0027116 | N28: OsoldF | O28: =IFERROR(MATCH((1-O26)/2,O40:O100,1),1) -> 1 | P28: =INDEX(K$40:K$100,O28) -> -1544.194157
B29: # Of Buckets Either Side Of Zero | D29: Max Value | E29: =MAX(OFFSET(IF(CalculationsAndCharts!$R$3=1,CalculationsAndCharts!$L$33,CalculationsAndCharts!$X$33),0,0,CalculationsAndCharts!$A$8,1)) -> 0 | F29: Mean | G29: =MATCH((E27),$C$40:$C$100,1) ->  | H29: =INDEX(C$40:C$100,G29) ->  | L29: Max Value | M29: =MAX(OFFSET(IF(CalculationsAndCharts!$R$3=1,CalculationsAndCharts!#REF!,CalculationsAndCharts!$Z$33),0,0,CalculationsAndCharts!$A$8,1)) -> 1544.194157 | N29: MeanF | O29: =MATCH((M27),$C$40:$C$100,1) -> 61 | P29: =INDEX(K$40:K$100,O29) -> 1544.194157
D30: Min Value | E30: =MIN(OFFSET(IF(CalculationsAndCharts!$R$3=1,CalculationsAndCharts!$L$33,CalculationsAndCharts!$X$33),0,0,CalculationsAndCharts!$A$8,1)) -> 0 | F30: Obot | G30: =MATCH(1-(1-G26)/2,G40:G100,1) ->  | L30: Min Value | M30: =MIN(OFFSET(IF(CalculationsAndCharts!$R$3=1,CalculationsAndCharts!#REF!,CalculationsAndCharts!$Z$33),0,0,CalculationsAndCharts!$A$8,1)) -> 307.8344518 | N30: ObotF | O30: =MATCH(1-(1-O26)/2,O40:O100,1) -> 
D31: Max delta from zero | E31: =MAX(ABS(E29),ABS(E30)) -> 0 | L31: Max delta from zero | M31: =MAX(ABS(M29),ABS(M30)) -> 1544.194157
E32: Calculated Bucket Step Size | F32: Max Bucket Count | M32: Calculated Bucket Step Size | N32: Max Bucket Count
B33: 30
F34: =MAX(E40:E100) ->  | N34: =MAX(M40:M100) -> 
E35: =E31/$B$33 -> 0 | M35: =M31/$B$33 -> 51.47313856
C36: Bucket Step Min Values | D36: Count X's Greater Than Bucket Min | E36: Bucket Counts (Deltas) | F36: Running Total | G36: Running % | K36: Bucket Step Min Values | L36: Count X's Greater Than Bucket Min | M36: Bucket Counts (Deltas) | N36: Running Total | O36: Running %
H38: Osold | I38: Mean | J38: Obot | P38: OsoldF | Q38: MeanF | R38: ObotF
A39: relrow
A40: 1 | B40: -30 | C40: =-E31 -> 0 | D40: =COUNTIF(OFFSET(IF(CalculationsAndCharts!$R$3=1,CalculationsAndCharts!$L$33,CalculationsAndCharts!$X$33),0,0,CalculationsAndCharts!$A$8,1),">="&C40) -> 0 | E40: =IF(OR(CalculationsAndCharts!$R$9=1,CalculationsAndCharts!$R$9=3),D40-D41,NA()) ->  | F40: =E40+F39 ->  | G40: =F40/$D$40 ->  | H40: =IF(G$28=$A40,F$34,NA()) ->  | I40: =IF(G$29=$A40,F$34,NA()) ->  | J40: =IF(G$30=$A40,F$34,NA()) ->  | K40: =-M31 -> -1544.194157 | L40: =COUNTIF(OFFSET(IF(CalculationsAndCharts!$R$3=1,CalculationsAndCharts!#REF!,CalculationsAndCharts!$Z$33),0,0,CalculationsAndCharts!$A$8,1),">="&K40) -> 1000 | M40: =IF(OR(CalculationsAndCharts!$R$9=2,CalculationsAndCharts!$R$9=3),L40-L41,NA()) ->  | N40: =M40+N39 ->  | O40: =N40/$L$40 ->  | P40: =IF(O$28=$A40,N$34,NA()) ->  | Q40: =IF(O$29=$A40,N$34,NA()) ->  | R40: =IF(O$30=$A40,N$34,NA()) -> 
A41: 2 | B41: -29 | C41: =C40+$E$35 -> 0 | D41: =COUNTIF(OFFSET(IF(CalculationsAndCharts!$R$3=1,CalculationsAndCharts!$L$33,CalculationsAndCharts!$X$33),0,0,CalculationsAndCharts!$A$8,1),">="&C41) -> 0 | E41: =IF(OR(CalculationsAndCharts!$R$9=1,CalculationsAndCharts!$R$9=3),D41-D42,NA()) ->  | H41: =IF(G$28=A41,F$34,NA()) ->  | I41: =IF(G$29=A41,F$34,NA()) ->  | J41: =IF(G$30=A41,F$34,NA()) ->  | K41: =K40+$M$35 -> -1492.721018 | L41: =COUNTIF(OFFSET(IF(CalculationsAndCharts!$R$3=1,CalculationsAndCharts!#REF!,CalculationsAndCharts!$Z$33),0,0,CalculationsAndCharts!$A$8,1),">="&K41) -> 1000 | M41: =IF(OR(CalculationsAndCharts!$R$9=2,CalculationsAndCharts!$R$9=3),L41-L42,NA()) ->  | O41: =N41/$L$40 ->  | P41: =IF(O$28=$A41,N$34,NA()) ->  | Q41: =IF(O$29=$A41,N$34,NA()) ->  | R41: =IF(O$30=$A41,N$34,NA()) -> 
A42: 3 | B42: -28 | C42: 0 | D42: =COUNTIF(OFFSET(IF(CalculationsAndCharts!$R$3=1,CalculationsAndCharts!$L$33,CalculationsAndCharts!$X$33),0,0,CalculationsAndCharts!$A$8,1),">="&C42) -> 0 | E42: =IF(OR(CalculationsAndCharts!$R$9=1,CalculationsAndCharts!$R$9=3),D42-D43,NA()) ->  | K42: -1441.24788 | L42: =COUNTIF(OFFSET(IF(CalculationsAndCharts!$R$3=1,CalculationsAndCharts!#REF!,CalculationsAndCharts!$Z$33),0,0,CalculationsAndCharts!$A$8,1),">="&K42) -> 1000 | M42: =IF(OR(CalculationsAndCharts!$R$9=2,CalculationsAndCharts!$R$9=3),L42-L43,NA()) -> 
A43: 4 | B43: -27 | C43: 0 | D43: =COUNTIF(OFFSET(IF(CalculationsAndCharts!$R$3=1,CalculationsAndCharts!$L$33,CalculationsAndCharts!$X$33),0,0,CalculationsAndCharts!$A$8,1),">="&C43) -> 0 | E43: =IF(OR(CalculationsAndCharts!$R$9=1,CalculationsAndCharts!$R$9=3),D43-D44,NA()) ->  | K43: -1389.774741 | L43: =COUNTIF(OFFSET(IF(CalculationsAndCharts!$R$3=1,CalculationsAndCharts!#REF!,CalculationsAndCharts!$Z$33),0,0,CalculationsAndCharts!$A$8,1),">="&K43) -> 1000 | M43: =IF(OR(CalculationsAndCharts!$R$9=2,CalculationsAndCharts!$R$9=3),L43-L44,NA()) -> 
A44: 5 | B44: -26 | C44: 0 | D44: =COUNTIF(OFFSET(IF(CalculationsAndCharts!$R$3=1,CalculationsAndCharts!$L$33,CalculationsAndCharts!$X$33),0,0,CalculationsAndCharts!$A$8,1),">="&C44) -> 0 | E44: =IF(OR(CalculationsAndCharts!$R$9=1,CalculationsAndCharts!$R$9=3),D44-D45,NA()) ->  | K44: -1338.301603 | L44: =COUNTIF(OFFSET(IF(CalculationsAndCharts!$R$3=1,CalculationsAndCharts!#REF!,CalculationsAndCharts!$Z$33),0,0,CalculationsAndCharts!$A$8,1),">="&K44) -> 1000 | M44: =IF(OR(CalculationsAndCharts!$R$9=2,CalculationsAndCharts!$R$9=3),L44-L45,NA()) -> 
A45: 6 | B45: -25 | C45: 0 | D45: =COUNTIF(OFFSET(IF(CalculationsAndCharts!$R$3=1,CalculationsAndCharts!$L$33,CalculationsAndCharts!$X$33),0,0,CalculationsAndCharts!$A$8,1),">="&C45) -> 0 | E45: =IF(OR(CalculationsAndCharts!$R$9=1,CalculationsAndCharts!$R$9=3),D45-D46,NA()) ->  | K45: -1286.828464 | L45: =COUNTIF(OFFSET(IF(CalculationsAndCharts!$R$3=1,CalculationsAndCharts!#REF!,CalculationsAndCharts!$Z$33),0,0,CalculationsAndCharts!$A$8,1),">="&K45) -> 1000 | M45: =IF(OR(CalculationsAndCharts!$R$9=2,CalculationsAndCharts!$R$9=3),L45-L46,NA()) -> 
A46: 7 | B46: -24 | C46: 0 | D46: =COUNTIF(OFFSET(IF(CalculationsAndCharts!$R$3=1,CalculationsAndCharts!$L$33,CalculationsAndCharts!$X$33),0,0,CalculationsAndCharts!$A$8,1),">="&C46) -> 0 | E46: =IF(OR(CalculationsAndCharts!$R$9=1,CalculationsAndCharts!$R$9=3),D46-D47,NA()) ->  | K46: -1235.355326 | L46: =COUNTIF(OFFSET(IF(CalculationsAndCharts!$R$3=1,CalculationsAndCharts!#REF!,CalculationsAndCharts!$Z$33),0,0,CalculationsAndCharts!$A$8,1),">="&K46) -> 1000 | M46: =IF(OR(CalculationsAndCharts!$R$9=2,CalculationsAndCharts!$R$9=3),L46-L47,NA()) -> 
A47: 8 | B47: -23 | C47: 0 | D47: =COUNTIF(OFFSET(IF(CalculationsAndCharts!$R$3=1,CalculationsAndCharts!$L$33,CalculationsAndCharts!$X$33),0,0,CalculationsAndCharts!$A$8,1),">="&C47) -> 0 | E47: =IF(OR(CalculationsAndCharts!$R$9=1,CalculationsAndCharts!$R$9=3),D47-D48,NA()) ->  | K47: -1183.882187 | L47: =COUNTIF(OFFSET(IF(CalculationsAndCharts!$R$3=1,CalculationsAndCharts!#REF!,CalculationsAndCharts!$Z$33),0,0,CalculationsAndCharts!$A$8,1),">="&K47) -> 1000 | M47: =IF(OR(CalculationsAndCharts!$R$9=2,CalculationsAndCharts!$R$9=3),L47-L48,NA()) -> 
A48: 9 | B48: -22 | C48: 0 | D48: =COUNTIF(OFFSET(IF(CalculationsAndCharts!$R$3=1,CalculationsAndCharts!$L$33,CalculationsAndCharts!$X$33),0,0,CalculationsAndCharts!$A$8,1),">="&C48) -> 0 | E48: =IF(OR(CalculationsAndCharts!$R$9=1,CalculationsAndCharts!$R$9=3),D48-D49,NA()) ->  | K48: -1132.409048 | L48: =COUNTIF(OFFSET(IF(CalculationsAndCharts!$R$3=1,CalculationsAndCharts!#REF!,CalculationsAndCharts!$Z$33),0,0,CalculationsAndCharts!$A$8,1),">="&K48) -> 1000 | M48: =IF(OR(CalculationsAndCharts!$R$9=2,CalculationsAndCharts!$R$9=3),L48-L49,NA()) -> 
A49: 10 | B49: -21 | C49: 0 | D49: =COUNTIF(OFFSET(IF(CalculationsAndCharts!$R$3=1,CalculationsAndCharts!$L$33,CalculationsAndCharts!$X$33),0,0,CalculationsAndCharts!$A$8,1),">="&C49) -> 0 | E49: =IF(OR(CalculationsAndCharts!$R$9=1,CalculationsAndCharts!$R$9=3),D49-D50,NA()) ->  | K49: -1080.93591 | L49: =COUNTIF(OFFSET(IF(CalculationsAndCharts!$R$3=1,CalculationsAndCharts!#REF!,CalculationsAndCharts!$Z$33),0,0,CalculationsAndCharts!$A$8,1),">="&K49) -> 1000 | M49: =IF(OR(CalculationsAndCharts!$R$9=2,CalculationsAndCharts!$R$9=3),L49-L50,NA()) -> 
A50: 11 | B50: -20 | C50: 0 | D50: =COUNTIF(OFFSET(IF(CalculationsAndCharts!$R$3=1,CalculationsAndCharts!$L$33,CalculationsAndCharts!$X$33),0,0,CalculationsAndCharts!$A$8,1),">="&C50) -> 0 | E50: =IF(OR(CalculationsAndCharts!$R$9=1,CalculationsAndCharts!$R$9=3),D50-D51,NA()) ->  | K50: -1029.462771 | L50: =COUNTIF(OFFSET(IF(CalculationsAndCharts!$R$3=1,CalculationsAndCharts!#REF!,CalculationsAndCharts!$Z$33),0,0,CalculationsAndCharts!$A$8,1),">="&K50) -> 1000 | M50: =IF(OR(CalculationsAndCharts!$R$9=2,CalculationsAndCharts!$R$9=3),L50-L51,NA()) -> 
A51: 12 | B51: -19 | C51: 0 | D51: =COUNTIF(OFFSET(IF(CalculationsAndCharts!$R$3=1,CalculationsAndCharts!$L$33,CalculationsAndCharts!$X$33),0,0,CalculationsAndCharts!$A$8,1),">="&C51) -> 0 | E51: =IF(OR(CalculationsAndCharts!$R$9=1,CalculationsAndCharts!$R$9=3),D51-D52,NA()) ->  | K51: -977.9896327 | L51: =COUNTIF(OFFSET(IF(CalculationsAndCharts!$R$3=1,CalculationsAndCharts!#REF!,CalculationsAndCharts!$Z$33),0,0,CalculationsAndCharts!$A$8,1),">="&K51) -> 1000 | M51: =IF(OR(CalculationsAndCharts!$R$9=2,CalculationsAndCharts!$R$9=3),L51-L52,NA()) -> 
A52: 13 | B52: -18 | C52: 0 | D52: =COUNTIF(OFFSET(IF(CalculationsAndCharts!$R$3=1,CalculationsAndCharts!$L$33,CalculationsAndCharts!$X$33),0,0,CalculationsAndCharts!$A$8,1),">="&C52) -> 0 | E52: =IF(OR(CalculationsAndCharts!$R$9=1,CalculationsAndCharts!$R$9=3),D52-D53,NA()) ->  | K52: -926.5164941 | L52: =COUNTIF(OFFSET(IF(CalculationsAndCharts!$R$3=1,CalculationsAndCharts!#REF!,CalculationsAndCharts!$Z$33),0,0,CalculationsAndCharts!$A$8,1),">="&K52) -> 1000 | M52: =IF(OR(CalculationsAndCharts!$R$9=2,CalculationsAndCharts!$R$9=3),L52-L53,NA()) -> 
A53: 14 | B53: -17 | C53: 0 | D53: =COUNTIF(OFFSET(IF(CalculationsAndCharts!$R$3=1,CalculationsAndCharts!$L$33,CalculationsAndCharts!$X$33),0,0,CalculationsAndCharts!$A$8,1),">="&C53) -> 0 | E53: =IF(OR(CalculationsAndCharts!$R$9=1,CalculationsAndCharts!$R$9=3),D53-D54,NA()) ->  | K53: -875.0433556 | L53: =COUNTIF(OFFSET(IF(CalculationsAndCharts!$R$3=1,CalculationsAndCharts!#REF!,CalculationsAndCharts!$Z$33),0,0,CalculationsAndCharts!$A$8,1),">="&K53) -> 1000 | M53: =IF(OR(CalculationsAndCharts!$R$9=2,CalculationsAndCharts!$R$9=3),L53-L54,NA()) -> 
A54: 15 | B54: -16 | C54: 0 | D54: =COUNTIF(OFFSET(IF(CalculationsAndCharts!$R$3=1,CalculationsAndCharts!$L$33,CalculationsAndCharts!$X$33),0,0,CalculationsAndCharts!$A$8,1),">="&C54) -> 0 | E54: =IF(OR(CalculationsAndCharts!$R$9=1,CalculationsAndCharts!$R$9=3),D54-D55,NA()) ->  | K54: -823.570217 | L54: =COUNTIF(OFFSET(IF(CalculationsAndCharts!$R$3=1,CalculationsAndCharts!#REF!,CalculationsAndCharts!$Z$33),0,0,CalculationsAndCharts!$A$8,1),">="&K54) -> 1000 | M54: =IF(OR(CalculationsAndCharts!$R$9=2,CalculationsAndCharts!$R$9=3),L54-L55,NA()) -> 
A55: 16 | B55: -15 | C55: 0 | D55: =COUNTIF(OFFSET(IF(CalculationsAndCharts!$R$3=1,CalculationsAndCharts!$L$33,CalculationsAndCharts!$X$33),0,0,CalculationsAndCharts!$A$8,1),">="&C55) -> 0 | E55: =IF(OR(CalculationsAndCharts!$R$9=1,CalculationsAndCharts!$R$9=3),D55-D56,NA()) ->  | K55: -772.0970785 | L55: =COUNTIF(OFFSET(IF(CalculationsAndCharts!$R$3=1,CalculationsAndCharts!#REF!,CalculationsAndCharts!$Z$33),0,0,CalculationsAndCharts!$A$8,1),">="&K55) -> 1000 | M55: =IF(OR(CalculationsAndCharts!$R$9=2,CalculationsAndCharts!$R$9=3),L55-L56,NA()) -> 
A56: 17 | B56: -14 | C56: 0 | D56: =COUNTIF(OFFSET(IF(CalculationsAndCharts!$R$3=1,CalculationsAndCharts!$L$33,CalculationsAndCharts!$X$33),0,0,CalculationsAndCharts!$A$8,1),">="&C56) -> 0 | E56: =IF(OR(CalculationsAndCharts!$R$9=1,CalculationsAndCharts!$R$9=3),D56-D57,NA()) ->  | K56: -720.6239399 | L56: =COUNTIF(OFFSET(IF(CalculationsAndCharts!$R$3=1,CalculationsAndCharts!#REF!,CalculationsAndCharts!$Z$33),0,0,CalculationsAndCharts!$A$8,1),">="&K56) -> 1000 | M56: =IF(OR(CalculationsAndCharts!$R$9=2,CalculationsAndCharts!$R$9=3),L56-L57,NA()) -> 
A57: 18 | B57: -13 | C57: 0 | D57: =COUNTIF(OFFSET(IF(CalculationsAndCharts!$R$3=1,CalculationsAndCharts!$L$33,CalculationsAndCharts!$X$33),0,0,CalculationsAndCharts!$A$8,1),">="&C57) -> 0 | E57: =IF(OR(CalculationsAndCharts!$R$9=1,CalculationsAndCharts!$R$9=3),D57-D58,NA()) ->  | K57: -669.1508013 | L57: =COUNTIF(OFFSET(IF(CalculationsAndCharts!$R$3=1,CalculationsAndCharts!#REF!,CalculationsAndCharts!$Z$33),0,0,CalculationsAndCharts!$A$8,1),">="&K57) -> 1000 | M57: =IF(OR(CalculationsAndCharts!$R$9=2,CalculationsAndCharts!$R$9=3),L57-L58,NA()) -> 
A58: 19 | B58: -12 | C58: 0 | D58: =COUNTIF(OFFSET(IF(CalculationsAndCharts!$R$3=1,CalculationsAndCharts!$L$33,CalculationsAndCharts!$X$33),0,0,CalculationsAndCharts!$A$8,1),">="&C58) -> 0 | E58: =IF(OR(CalculationsAndCharts!$R$9=1,CalculationsAndCharts!$R$9=3),D58-D59,NA()) ->  | K58: -617.6776628 | L58: =COUNTIF(OFFSET(IF(CalculationsAndCharts!$R$3=1,CalculationsAndCharts!#REF!,CalculationsAndCharts!$Z$33),0,0,CalculationsAndCharts!$A$8,1),">="&K58) -> 1000 | M58: =IF(OR(CalculationsAndCharts!$R$9=2,CalculationsAndCharts!$R$9=3),L58-L59,NA()) -> 
A59: 20 | B59: -11 | C59: 0 | D59: =COUNTIF(OFFSET(IF(CalculationsAndCharts!$R$3=1,CalculationsAndCharts!$L$33,CalculationsAndCharts!$X$33),0,0,CalculationsAndCharts!$A$8,1),">="&C59) -> 0 | E59: =IF(OR(CalculationsAndCharts!$R$9=1,CalculationsAndCharts!$R$9=3),D59-D60,NA()) ->  | K59: -566.2045242 | L59: =COUNTIF(OFFSET(IF(CalculationsAndCharts!$R$3=1,CalculationsAndCharts!#REF!,CalculationsAndCharts!$Z$33),0,0,CalculationsAndCharts!$A$8,1),">="&K59) -> 1000 | M59: =IF(OR(CalculationsAndCharts!$R$9=2,CalculationsAndCharts!$R$9=3),L59-L60,NA()) -> 
A60: 21 | B60: -10 | C60: 0 | D60: =COUNTIF(OFFSET(IF(CalculationsAndCharts!$R$3=1,CalculationsAndCharts!$L$33,CalculationsAndCharts!$X$33),0,0,CalculationsAndCharts!$A$8,1),">="&C60) -> 0 | E60: =IF(OR(CalculationsAndCharts!$R$9=1,CalculationsAndCharts!$R$9=3),D60-D61,NA()) ->  | K60: -514.7313856 | L60: =COUNTIF(OFFSET(IF(CalculationsAndCharts!$R$3=1,CalculationsAndCharts!#REF!,CalculationsAndCharts!$Z$33),0,0,CalculationsAndCharts!$A$8,1),">="&K60) -> 1000 | M60: =IF(OR(CalculationsAndCharts!$R$9=2,CalculationsAndCharts!$R$9=3),L60-L61,NA()) -> 
A61: 22 | B61: -9 | C61: 0 | D61: =COUNTIF(OFFSET(IF(CalculationsAndCharts!$R$3=1,CalculationsAndCharts!$L$33,CalculationsAndCharts!$X$33),0,0,CalculationsAndCharts!$A$8,1),">="&C61) -> 0 | E61: =IF(OR(CalculationsAndCharts!$R$9=1,CalculationsAndCharts!$R$9=3),D61-D62,NA()) ->  | K61: -463.2582471 | L61: =COUNTIF(OFFSET(IF(CalculationsAndCharts!$R$3=1,CalculationsAndCharts!#REF!,CalculationsAndCharts!$Z$33),0,0,CalculationsAndCharts!$A$8,1),">="&K61) -> 1000 | M61: =IF(OR(CalculationsAndCharts!$R$9=2,CalculationsAndCharts!$R$9=3),L61-L62,NA()) -> 
A62: 23 | B62: -8 | C62: 0 | D62: =COUNTIF(OFFSET(IF(CalculationsAndCharts!$R$3=1,CalculationsAndCharts!$L$33,CalculationsAndCharts!$X$33),0,0,CalculationsAndCharts!$A$8,1),">="&C62) -> 0 | E62: =IF(OR(CalculationsAndCharts!$R$9=1,CalculationsAndCharts!$R$9=3),D62-D63,NA()) ->  | K62: -411.7851085 | L62: =COUNTIF(OFFSET(IF(CalculationsAndCharts!$R$3=1,CalculationsAndCharts!#REF!,CalculationsAndCharts!$Z$33),0,0,CalculationsAndCharts!$A$8,1),">="&K62) -> 1000 | M62: =IF(OR(CalculationsAndCharts!$R$9=2,CalculationsAndCharts!$R$9=3),L62-L63,NA()) -> 
A63: 24 | B63: -7 | C63: 0 | D63: =COUNTIF(OFFSET(IF(CalculationsAndCharts!$R$3=1,CalculationsAndCharts!$L$33,CalculationsAndCharts!$X$33),0,0,CalculationsAndCharts!$A$8,1),">="&C63) -> 0 | E63: =IF(OR(CalculationsAndCharts!$R$9=1,CalculationsAndCharts!$R$9=3),D63-D64,NA()) ->  | K63: -360.3119699 | L63: =COUNTIF(OFFSET(IF(CalculationsAndCharts!$R$3=1,CalculationsAndCharts!#REF!,CalculationsAndCharts!$Z$33),0,0,CalculationsAndCharts!$A$8,1),">="&K63) -> 1000 | M63: =IF(OR(CalculationsAndCharts!$R$9=2,CalculationsAndCharts!$R$9=3),L63-L64,NA()) -> 
A64: 25 | B64: -6 | C64: 0 | D64: =COUNTIF(OFFSET(IF(CalculationsAndCharts!$R$3=1,CalculationsAndCharts!$L$33,CalculationsAndCharts!$X$33),0,0,CalculationsAndCharts!$A$8,1),">="&C64) -> 0 | E64: =IF(OR(CalculationsAndCharts!$R$9=1,CalculationsAndCharts!$R$9=3),D64-D65,NA()) ->  | K64: -308.8388314 | L64: =COUNTIF(OFFSET(IF(CalculationsAndCharts!$R$3=1,CalculationsAndCharts!#REF!,CalculationsAndCharts!$Z$33),0,0,CalculationsAndCharts!$A$8,1),">="&K64) -> 1000 | M64: =IF(OR(CalculationsAndCharts!$R$9=2,CalculationsAndCharts!$R$9=3),L64-L65,NA()) -> 
A65: 26 | B65: -5 | C65: 0 | D65: =COUNTIF(OFFSET(IF(CalculationsAndCharts!$R$3=1,CalculationsAndCharts!$L$33,CalculationsAndCharts!$X$33),0,0,CalculationsAndCharts!$A$8,1),">="&C65) -> 0 | E65: =IF(OR(CalculationsAndCharts!$R$9=1,CalculationsAndCharts!$R$9=3),D65-D66,NA()) ->  | K65: -257.3656928 | L65: =COUNTIF(OFFSET(IF(CalculationsAndCharts!$R$3=1,CalculationsAndCharts!#REF!,CalculationsAndCharts!$Z$33),0,0,CalculationsAndCharts!$A$8,1),">="&K65) -> 1000 | M65: =IF(OR(CalculationsAndCharts!$R$9=2,CalculationsAndCharts!$R$9=3),L65-L66,NA()) -> 
A66: 27 | B66: -4 | C66: 0 | D66: =COUNTIF(OFFSET(IF(CalculationsAndCharts!$R$3=1,CalculationsAndCharts!$L$33,CalculationsAndCharts!$X$33),0,0,CalculationsAndCharts!$A$8,1),">="&C66) -> 0 | E66: =IF(OR(CalculationsAndCharts!$R$9=1,CalculationsAndCharts!$R$9=3),D66-D67,NA()) ->  | K66: -205.8925543 | L66: =COUNTIF(OFFSET(IF(CalculationsAndCharts!$R$3=1,CalculationsAndCharts!#REF!,CalculationsAndCharts!$Z$33),0,0,CalculationsAndCharts!$A$8,1),">="&K66) -> 1000 | M66: =IF(OR(CalculationsAndCharts!$R$9=2,CalculationsAndCharts!$R$9=3),L66-L67,NA()) -> 
A67: 28 | B67: -3 | C67: 0 | D67: =COUNTIF(OFFSET(IF(CalculationsAndCharts!$R$3=1,CalculationsAndCharts!$L$33,CalculationsAndCharts!$X$33),0,0,CalculationsAndCharts!$A$8,1),">="&C67) -> 0 | E67: =IF(OR(CalculationsAndCharts!$R$9=1,CalculationsAndCharts!$R$9=3),D67-D68,NA()) ->  | K67: -154.4194157 | L67: =COUNTIF(OFFSET(IF(CalculationsAndCharts!$R$3=1,CalculationsAndCharts!#REF!,CalculationsAndCharts!$Z$33),0,0,CalculationsAndCharts!$A$8,1),">="&K67) -> 1000 | M67: =IF(OR(CalculationsAndCharts!$R$9=2,CalculationsAndCharts!$R$9=3),L67-L68,NA()) -> 
A68: 29 | B68: -2 | C68: 0 | D68: =COUNTIF(OFFSET(IF(CalculationsAndCharts!$R$3=1,CalculationsAndCharts!$L$33,CalculationsAndCharts!$X$33),0,0,CalculationsAndCharts!$A$8,1),">="&C68) -> 0 | E68: =IF(OR(CalculationsAndCharts!$R$9=1,CalculationsAndCharts!$R$9=3),D68-D69,NA()) ->  | K68: -102.9462771 | L68: =COUNTIF(OFFSET(IF(CalculationsAndCharts!$R$3=1,CalculationsAndCharts!#REF!,CalculationsAndCharts!$Z$33),0,0,CalculationsAndCharts!$A$8,1),">="&K68) -> 1000 | M68: =IF(OR(CalculationsAndCharts!$R$9=2,CalculationsAndCharts!$R$9=3),L68-L69,NA()) -> 
A69: 30 | B69: -1 | C69: 0 | D69: =COUNTIF(OFFSET(IF(CalculationsAndCharts!$R$3=1,CalculationsAndCharts!$L$33,CalculationsAndCharts!$X$33),0,0,CalculationsAndCharts!$A$8,1),">="&C69) -> 0 | E69: =IF(OR(CalculationsAndCharts!$R$9=1,CalculationsAndCharts!$R$9=3),D69-D70,NA()) ->  | K69: -51.47313856 | L69: =COUNTIF(OFFSET(IF(CalculationsAndCharts!$R$3=1,CalculationsAndCharts!#REF!,CalculationsAndCharts!$Z$33),0,0,CalculationsAndCharts!$A$8,1),">="&K69) -> 1000 | M69: =IF(OR(CalculationsAndCharts!$R$9=2,CalculationsAndCharts!$R$9=3),L69-L70,NA()) -> 
A70: 31 | B70: 0 | C70: 0 | D70: =COUNTIF(OFFSET(IF(CalculationsAndCharts!$R$3=1,CalculationsAndCharts!$L$33,CalculationsAndCharts!$X$33),0,0,CalculationsAndCharts!$A$8,1),">="&C70) -> 0 | E70: =IF(OR(CalculationsAndCharts!$R$9=1,CalculationsAndCharts!$R$9=3),D70-D71,NA()) ->  | K70: -1.037392394e-12 | L70: =COUNTIF(OFFSET(IF(CalculationsAndCharts!$R$3=1,CalculationsAndCharts!#REF!,CalculationsAndCharts!$Z$33),0,0,CalculationsAndCharts!$A$8,1),">="&K70) -> 1000 | M70: =IF(OR(CalculationsAndCharts!$R$9=2,CalculationsAndCharts!$R$9=3),L70-L71,NA()) -> 
A71: 32 | B71: 1 | C71: 0 | D71: =COUNTIF(OFFSET(IF(CalculationsAndCharts!$R$3=1,CalculationsAndCharts!$L$33,CalculationsAndCharts!$X$33),0,0,CalculationsAndCharts!$A$8,1),">="&C71) -> 0 | E71: =IF(OR(CalculationsAndCharts!$R$9=1,CalculationsAndCharts!$R$9=3),D71-D72,NA()) ->  | K71: 51.47313856 | L71: =COUNTIF(OFFSET(IF(CalculationsAndCharts!$R$3=1,CalculationsAndCharts!#REF!,CalculationsAndCharts!$Z$33),0,0,CalculationsAndCharts!$A$8,1),">="&K71) -> 1000 | M71: =IF(OR(CalculationsAndCharts!$R$9=2,CalculationsAndCharts!$R$9=3),L71-L72,NA()) -> 
A72: 33 | B72: 2 | C72: 0 | D72: =COUNTIF(OFFSET(IF(CalculationsAndCharts!$R$3=1,CalculationsAndCharts!$L$33,CalculationsAndCharts!$X$33),0,0,CalculationsAndCharts!$A$8,1),">="&C72) -> 0 | E72: =IF(OR(CalculationsAndCharts!$R$9=1,CalculationsAndCharts!$R$9=3),D72-D73,NA()) ->  | F72: =E72+F71 ->  | K72: 102.9462771 | L72: =COUNTIF(OFFSET(IF(CalculationsAndCharts!$R$3=1,CalculationsAndCharts!#REF!,CalculationsAndCharts!$Z$33),0,0,CalculationsAndCharts!$A$8,1),">="&K72) -> 1000 | M72: =IF(OR(CalculationsAndCharts!$R$9=2,CalculationsAndCharts!$R$9=3),L72-L73,NA()) ->  | N72: =M72+N71 -> 
A73: 34 | B73: 3 | C73: =C72+$E$35 -> 0 | D73: =COUNTIF(OFFSET(IF(CalculationsAndCharts!$R$3=1,CalculationsAndCharts!$L$33,CalculationsAndCharts!$X$33),0,0,CalculationsAndCharts!$A$8,1),">="&C73) -> 0 | E73: =IF(OR(CalculationsAndCharts!$R$9=1,CalculationsAndCharts!$R$9=3),D73-D74,NA()) ->  | K73: =K72+$M$35 -> 154.4194157 | L73: =COUNTIF(OFFSET(IF(CalculationsAndCharts!$R$3=1,CalculationsAndCharts!#REF!,CalculationsAndCharts!$Z$33),0,0,CalculationsAndCharts!$A$8,1),">="&K73) -> 1000 | M73: =IF(OR(CalculationsAndCharts!$R$9=2,CalculationsAndCharts!$R$9=3),L73-L74,NA()) -> 
A74: 35 | B74: 4 | C74: 0 | D74: =COUNTIF(OFFSET(IF(CalculationsAndCharts!$R$3=1,CalculationsAndCharts!$L$33,CalculationsAndCharts!$X$33),0,0,CalculationsAndCharts!$A$8,1),">="&C74) -> 0 | E74: =IF(OR(CalculationsAndCharts!$R$9=1,CalculationsAndCharts!$R$9=3),D74-D75,NA()) ->  | K74: 205.8925543 | L74: =COUNTIF(OFFSET(IF(CalculationsAndCharts!$R$3=1,CalculationsAndCharts!#REF!,CalculationsAndCharts!$Z$33),0,0,CalculationsAndCharts!$A$8,1),">="&K74) -> 1000 | M74: =IF(OR(CalculationsAndCharts!$R$9=2,CalculationsAndCharts!$R$9=3),L74-L75,NA()) -> 
A75: 36 | B75: 5 | C75: 0 | D75: =COUNTIF(OFFSET(IF(CalculationsAndCharts!$R$3=1,CalculationsAndCharts!$L$33,CalculationsAndCharts!$X$33),0,0,CalculationsAndCharts!$A$8,1),">="&C75) -> 0 | E75: =IF(OR(CalculationsAndCharts!$R$9=1,CalculationsAndCharts!$R$9=3),D75-D76,NA()) ->  | K75: 257.3656928 | L75: =COUNTIF(OFFSET(IF(CalculationsAndCharts!$R$3=1,CalculationsAndCharts!#REF!,CalculationsAndCharts!$Z$33),0,0,CalculationsAndCharts!$A$8,1),">="&K75) -> 1000 | M75: =IF(OR(CalculationsAndCharts!$R$9=2,CalculationsAndCharts!$R$9=3),L75-L76,NA()) -> 
A76: 37 | B76: 6 | C76: 0 | D76: =COUNTIF(OFFSET(IF(CalculationsAndCharts!$R$3=1,CalculationsAndCharts!$L$33,CalculationsAndCharts!$X$33),0,0,CalculationsAndCharts!$A$8,1),">="&C76) -> 0 | E76: =IF(OR(CalculationsAndCharts!$R$9=1,CalculationsAndCharts!$R$9=3),D76-D77,NA()) ->  | K76: 308.8388314 | L76: =COUNTIF(OFFSET(IF(CalculationsAndCharts!$R$3=1,CalculationsAndCharts!#REF!,CalculationsAndCharts!$Z$33),0,0,CalculationsAndCharts!$A$8,1),">="&K76) -> 999 | M76: =IF(OR(CalculationsAndCharts!$R$9=2,CalculationsAndCharts!$R$9=3),L76-L77,NA()) -> 
A77: 38 | B77: 7 | C77: 0 | D77: =COUNTIF(OFFSET(IF(CalculationsAndCharts!$R$3=1,CalculationsAndCharts!$L$33,CalculationsAndCharts!$X$33),0,0,CalculationsAndCharts!$A$8,1),">="&C77) -> 0 | E77: =IF(OR(CalculationsAndCharts!$R$9=1,CalculationsAndCharts!$R$9=3),D77-D78,NA()) ->  | K77: 360.3119699 | L77: =COUNTIF(OFFSET(IF(CalculationsAndCharts!$R$3=1,CalculationsAndCharts!#REF!,CalculationsAndCharts!$Z$33),0,0,CalculationsAndCharts!$A$8,1),">="&K77) -> 999 | M77: =IF(OR(CalculationsAndCharts!$R$9=2,CalculationsAndCharts!$R$9=3),L77-L78,NA()) -> 
A78: 39 | B78: 8 | C78: 0 | D78: =COUNTIF(OFFSET(IF(CalculationsAndCharts!$R$3=1,CalculationsAndCharts!$L$33,CalculationsAndCharts!$X$33),0,0,CalculationsAndCharts!$A$8,1),">="&C78) -> 0 | E78: =IF(OR(CalculationsAndCharts!$R$9=1,CalculationsAndCharts!$R$9=3),D78-D79,NA()) ->  | K78: 411.7851085 | L78: =COUNTIF(OFFSET(IF(CalculationsAndCharts!$R$3=1,CalculationsAndCharts!#REF!,CalculationsAndCharts!$Z$33),0,0,CalculationsAndCharts!$A$8,1),">="&K78) -> 999 | M78: =IF(OR(CalculationsAndCharts!$R$9=2,CalculationsAndCharts!$R$9=3),L78-L79,NA()) -> 
A79: 40 | B79: 9 | C79: 0 | D79: =COUNTIF(OFFSET(IF(CalculationsAndCharts!$R$3=1,CalculationsAndCharts!$L$33,CalculationsAndCharts!$X$33),0,0,CalculationsAndCharts!$A$8,1),">="&C79) -> 0 | E79: =IF(OR(CalculationsAndCharts!$R$9=1,CalculationsAndCharts!$R$9=3),D79-D80,NA()) ->  | K79: 463.2582471 | L79: =COUNTIF(OFFSET(IF(CalculationsAndCharts!$R$3=1,CalculationsAndCharts!#REF!,CalculationsAndCharts!$Z$33),0,0,CalculationsAndCharts!$A$8,1),">="&K79) -> 999 | M79: =IF(OR(CalculationsAndCharts!$R$9=2,CalculationsAndCharts!$R$9=3),L79-L80,NA()) -> 
A80: 41 | B80: 10 | C80: 0 | D80: =COUNTIF(OFFSET(IF(CalculationsAndCharts!$R$3=1,CalculationsAndCharts!$L$33,CalculationsAndCharts!$X$33),0,0,CalculationsAndCharts!$A$8,1),">="&C80) -> 0 | E80: =IF(OR(CalculationsAndCharts!$R$9=1,CalculationsAndCharts!$R$9=3),D80-D81,NA()) ->  | K80: 514.7313856 | L80: =COUNTIF(OFFSET(IF(CalculationsAndCharts!$R$3=1,CalculationsAndCharts!#REF!,CalculationsAndCharts!$Z$33),0,0,CalculationsAndCharts!$A$8,1),">="&K80) -> 999 | M80: =IF(OR(CalculationsAndCharts!$R$9=2,CalculationsAndCharts!$R$9=3),L80-L81,NA()) -> 
A81: 42 | B81: 11 | C81: 0 | D81: =COUNTIF(OFFSET(IF(CalculationsAndCharts!$R$3=1,CalculationsAndCharts!$L$33,CalculationsAndCharts!$X$33),0,0,CalculationsAndCharts!$A$8,1),">="&C81) -> 0 | E81: =IF(OR(CalculationsAndCharts!$R$9=1,CalculationsAndCharts!$R$9=3),D81-D82,NA()) ->  | K81: 566.2045242 | L81: =COUNTIF(OFFSET(IF(CalculationsAndCharts!$R$3=1,CalculationsAndCharts!#REF!,CalculationsAndCharts!$Z$33),0,0,CalculationsAndCharts!$A$8,1),">="&K81) -> 999 | M81: =IF(OR(CalculationsAndCharts!$R$9=2,CalculationsAndCharts!$R$9=3),L81-L82,NA()) -> 
A82: 43 | B82: 12 | C82: 0 | D82: =COUNTIF(OFFSET(IF(CalculationsAndCharts!$R$3=1,CalculationsAndCharts!$L$33,CalculationsAndCharts!$X$33),0,0,CalculationsAndCharts!$A$8,1),">="&C82) -> 0 | E82: =IF(OR(CalculationsAndCharts!$R$9=1,CalculationsAndCharts!$R$9=3),D82-D83,NA()) ->  | K82: 617.6776628 | L82: =COUNTIF(OFFSET(IF(CalculationsAndCharts!$R$3=1,CalculationsAndCharts!#REF!,CalculationsAndCharts!$Z$33),0,0,CalculationsAndCharts!$A$8,1),">="&K82) -> 998 | M82: =IF(OR(CalculationsAndCharts!$R$9=2,CalculationsAndCharts!$R$9=3),L82-L83,NA()) -> 
A83: 44 | B83: 13 | C83: 0 | D83: =COUNTIF(OFFSET(IF(CalculationsAndCharts!$R$3=1,CalculationsAndCharts!$L$33,CalculationsAndCharts!$X$33),0,0,CalculationsAndCharts!$A$8,1),">="&C83) -> 0 | E83: =IF(OR(CalculationsAndCharts!$R$9=1,CalculationsAndCharts!$R$9=3),D83-D84,NA()) ->  | K83: 669.1508013 | L83: =COUNTIF(OFFSET(IF(CalculationsAndCharts!$R$3=1,CalculationsAndCharts!#REF!,CalculationsAndCharts!$Z$33),0,0,CalculationsAndCharts!$A$8,1),">="&K83) -> 998 | M83: =IF(OR(CalculationsAndCharts!$R$9=2,CalculationsAndCharts!$R$9=3),L83-L84,NA()) -> 
A84: 45 | B84: 14 | C84: 0 | D84: =COUNTIF(OFFSET(IF(CalculationsAndCharts!$R$3=1,CalculationsAndCharts!$L$33,CalculationsAndCharts!$X$33),0,0,CalculationsAndCharts!$A$8,1),">="&C84) -> 0 | E84: =IF(OR(CalculationsAndCharts!$R$9=1,CalculationsAndCharts!$R$9=3),D84-D85,NA()) ->  | K84: 720.6239399 | L84: =COUNTIF(OFFSET(IF(CalculationsAndCharts!$R$3=1,CalculationsAndCharts!#REF!,CalculationsAndCharts!$Z$33),0,0,CalculationsAndCharts!$A$8,1),">="&K84) -> 998 | M84: =IF(OR(CalculationsAndCharts!$R$9=2,CalculationsAndCharts!$R$9=3),L84-L85,NA()) -> 
A85: 46 | B85: 15 | C85: 0 | D85: =COUNTIF(OFFSET(IF(CalculationsAndCharts!$R$3=1,CalculationsAndCharts!$L$33,CalculationsAndCharts!$X$33),0,0,CalculationsAndCharts!$A$8,1),">="&C85) -> 0 | E85: =IF(OR(CalculationsAndCharts!$R$9=1,CalculationsAndCharts!$R$9=3),D85-D86,NA()) ->  | K85: 772.0970785 | L85: =COUNTIF(OFFSET(IF(CalculationsAndCharts!$R$3=1,CalculationsAndCharts!#REF!,CalculationsAndCharts!$Z$33),0,0,CalculationsAndCharts!$A$8,1),">="&K85) -> 998 | M85: =IF(OR(CalculationsAndCharts!$R$9=2,CalculationsAndCharts!$R$9=3),L85-L86,NA()) -> 
A86: 47 | B86: 16 | C86: 0 | D86: =COUNTIF(OFFSET(IF(CalculationsAndCharts!$R$3=1,CalculationsAndCharts!$L$33,CalculationsAndCharts!$X$33),0,0,CalculationsAndCharts!$A$8,1),">="&C86) -> 0 | E86: =IF(OR(CalculationsAndCharts!$R$9=1,CalculationsAndCharts!$R$9=3),D86-D87,NA()) ->  | K86: 823.570217 | L86: =COUNTIF(OFFSET(IF(CalculationsAndCharts!$R$3=1,CalculationsAndCharts!#REF!,CalculationsAndCharts!$Z$33),0,0,CalculationsAndCharts!$A$8,1),">="&K86) -> 997 | M86: =IF(OR(CalculationsAndCharts!$R$9=2,CalculationsAndCharts!$R$9=3),L86-L87,NA()) -> 
A87: 48 | B87: 17 | C87: 0 | D87: =COUNTIF(OFFSET(IF(CalculationsAndCharts!$R$3=1,CalculationsAndCharts!$L$33,CalculationsAndCharts!$X$33),0,0,CalculationsAndCharts!$A$8,1),">="&C87) -> 0 | E87: =IF(OR(CalculationsAndCharts!$R$9=1,CalculationsAndCharts!$R$9=3),D87-D88,NA()) ->  | K87: 875.0433556 | L87: =COUNTIF(OFFSET(IF(CalculationsAndCharts!$R$3=1,CalculationsAndCharts!#REF!,CalculationsAndCharts!$Z$33),0,0,CalculationsAndCharts!$A$8,1),">="&K87) -> 997 | M87: =IF(OR(CalculationsAndCharts!$R$9=2,CalculationsAndCharts!$R$9=3),L87-L88,NA()) -> 
A88: 49 | B88: 18 | C88: 0 | D88: =COUNTIF(OFFSET(IF(CalculationsAndCharts!$R$3=1,CalculationsAndCharts!$L$33,CalculationsAndCharts!$X$33),0,0,CalculationsAndCharts!$A$8,1),">="&C88) -> 0 | E88: =IF(OR(CalculationsAndCharts!$R$9=1,CalculationsAndCharts!$R$9=3),D88-D89,NA()) ->  | K88: 926.5164941 | L88: =COUNTIF(OFFSET(IF(CalculationsAndCharts!$R$3=1,CalculationsAndCharts!#REF!,CalculationsAndCharts!$Z$33),0,0,CalculationsAndCharts!$A$8,1),">="&K88) -> 997 | M88: =IF(OR(CalculationsAndCharts!$R$9=2,CalculationsAndCharts!$R$9=3),L88-L89,NA()) -> 
A89: 50 | B89: 19 | C89: 0 | D89: =COUNTIF(OFFSET(IF(CalculationsAndCharts!$R$3=1,CalculationsAndCharts!$L$33,CalculationsAndCharts!$X$33),0,0,CalculationsAndCharts!$A$8,1),">="&C89) -> 0 | E89: =IF(OR(CalculationsAndCharts!$R$9=1,CalculationsAndCharts!$R$9=3),D89-D90,NA()) ->  | K89: 977.9896327 | L89: =COUNTIF(OFFSET(IF(CalculationsAndCharts!$R$3=1,CalculationsAndCharts!#REF!,CalculationsAndCharts!$Z$33),0,0,CalculationsAndCharts!$A$8,1),">="&K89) -> 992 | M89: =IF(OR(CalculationsAndCharts!$R$9=2,CalculationsAndCharts!$R$9=3),L89-L90,NA()) -> 
A90: 51 | B90: 20 | C90: 0 | D90: =COUNTIF(OFFSET(IF(CalculationsAndCharts!$R$3=1,CalculationsAndCharts!$L$33,CalculationsAndCharts!$X$33),0,0,CalculationsAndCharts!$A$8,1),">="&C90) -> 0 | E90: =IF(OR(CalculationsAndCharts!$R$9=1,CalculationsAndCharts!$R$9=3),D90-D91,NA()) ->  | K90: 1029.462771 | L90: =COUNTIF(OFFSET(IF(CalculationsAndCharts!$R$3=1,CalculationsAndCharts!#REF!,CalculationsAndCharts!$Z$33),0,0,CalculationsAndCharts!$A$8,1),">="&K90) -> 965 | M90: =IF(OR(CalculationsAndCharts!$R$9=2,CalculationsAndCharts!$R$9=3),L90-L91,NA()) -> 
A91: 52 | B91: 21 | C91: 0 | D91: =COUNTIF(OFFSET(IF(CalculationsAndCharts!$R$3=1,CalculationsAndCharts!$L$33,CalculationsAndCharts!$X$33),0,0,CalculationsAndCharts!$A$8,1),">="&C91) -> 0 | E91: =IF(OR(CalculationsAndCharts!$R$9=1,CalculationsAndCharts!$R$9=3),D91-D92,NA()) ->  | K91: 1080.93591 | L91: =COUNTIF(OFFSET(IF(CalculationsAndCharts!$R$3=1,CalculationsAndCharts!#REF!,CalculationsAndCharts!$Z$33),0,0,CalculationsAndCharts!$A$8,1),">="&K91) -> 940 | M91: =IF(OR(CalculationsAndCharts!$R$9=2,CalculationsAndCharts!$R$9=3),L91-L92,NA()) -> 
A92: 53 | B92: 22 | C92: 0 | D92: =COUNTIF(OFFSET(IF(CalculationsAndCharts!$R$3=1,CalculationsAndCharts!$L$33,CalculationsAndCharts!$X$33),0,0,CalculationsAndCharts!$A$8,1),">="&C92) -> 0 | E92: =IF(OR(CalculationsAndCharts!$R$9=1,CalculationsAndCharts!$R$9=3),D92-D93,NA()) ->  | K92: 1132.409048 | L92: =COUNTIF(OFFSET(IF(CalculationsAndCharts!$R$3=1,CalculationsAndCharts!#REF!,CalculationsAndCharts!$Z$33),0,0,CalculationsAndCharts!$A$8,1),">="&K92) -> 812 | M92: =IF(OR(CalculationsAndCharts!$R$9=2,CalculationsAndCharts!$R$9=3),L92-L93,NA()) -> 
A93: 54 | B93: 23 | C93: 0 | D93: =COUNTIF(OFFSET(IF(CalculationsAndCharts!$R$3=1,CalculationsAndCharts!$L$33,CalculationsAndCharts!$X$33),0,0,CalculationsAndCharts!$A$8,1),">="&C93) -> 0 | E93: =IF(OR(CalculationsAndCharts!$R$9=1,CalculationsAndCharts!$R$9=3),D93-D94,NA()) ->  | K93: 1183.882187 | L93: =COUNTIF(OFFSET(IF(CalculationsAndCharts!$R$3=1,CalculationsAndCharts!#REF!,CalculationsAndCharts!$Z$33),0,0,CalculationsAndCharts!$A$8,1),">="&K93) -> 560 | M93: =IF(OR(CalculationsAndCharts!$R$9=2,CalculationsAndCharts!$R$9=3),L93-L94,NA()) -> 
A94: 55 | B94: 24 | C94: 0 | D94: =COUNTIF(OFFSET(IF(CalculationsAndCharts!$R$3=1,CalculationsAndCharts!$L$33,CalculationsAndCharts!$X$33),0,0,CalculationsAndCharts!$A$8,1),">="&C94) -> 0 | E94: =IF(OR(CalculationsAndCharts!$R$9=1,CalculationsAndCharts!$R$9=3),D94-D95,NA()) ->  | K94: 1235.355326 | L94: =COUNTIF(OFFSET(IF(CalculationsAndCharts!$R$3=1,CalculationsAndCharts!#REF!,CalculationsAndCharts!$Z$33),0,0,CalculationsAndCharts!$A$8,1),">="&K94) -> 401 | M94: =IF(OR(CalculationsAndCharts!$R$9=2,CalculationsAndCharts!$R$9=3),L94-L95,NA()) -> 
A95: 56 | B95: 25 | C95: 0 | D95: =COUNTIF(OFFSET(IF(CalculationsAndCharts!$R$3=1,CalculationsAndCharts!$L$33,CalculationsAndCharts!$X$33),0,0,CalculationsAndCharts!$A$8,1),">="&C95) -> 0 | E95: =IF(OR(CalculationsAndCharts!$R$9=1,CalculationsAndCharts!$R$9=3),D95-D96,NA()) ->  | K95: 1286.828464 | L95: =COUNTIF(OFFSET(IF(CalculationsAndCharts!$R$3=1,CalculationsAndCharts!#REF!,CalculationsAndCharts!$Z$33),0,0,CalculationsAndCharts!$A$8,1),">="&K95) -> 282 | M95: =IF(OR(CalculationsAndCharts!$R$9=2,CalculationsAndCharts!$R$9=3),L95-L96,NA()) -> 
A96: 57 | B96: 26 | C96: 0 | D96: =COUNTIF(OFFSET(IF(CalculationsAndCharts!$R$3=1,CalculationsAndCharts!$L$33,CalculationsAndCharts!$X$33),0,0,CalculationsAndCharts!$A$8,1),">="&C96) -> 0 | E96: =IF(OR(CalculationsAndCharts!$R$9=1,CalculationsAndCharts!$R$9=3),D96-D97,NA()) ->  | K96: 1338.301603 | L96: =COUNTIF(OFFSET(IF(CalculationsAndCharts!$R$3=1,CalculationsAndCharts!#REF!,CalculationsAndCharts!$Z$33),0,0,CalculationsAndCharts!$A$8,1),">="&K96) -> 268 | M96: =IF(OR(CalculationsAndCharts!$R$9=2,CalculationsAndCharts!$R$9=3),L96-L97,NA()) -> 
A97: 58 | B97: 27 | C97: 0 | D97: =COUNTIF(OFFSET(IF(CalculationsAndCharts!$R$3=1,CalculationsAndCharts!$L$33,CalculationsAndCharts!$X$33),0,0,CalculationsAndCharts!$A$8,1),">="&C97) -> 0 | E97: =IF(OR(CalculationsAndCharts!$R$9=1,CalculationsAndCharts!$R$9=3),D97-D98,NA()) ->  | K97: 1389.774741 | L97: =COUNTIF(OFFSET(IF(CalculationsAndCharts!$R$3=1,CalculationsAndCharts!#REF!,CalculationsAndCharts!$Z$33),0,0,CalculationsAndCharts!$A$8,1),">="&K97) -> 162 | M97: =IF(OR(CalculationsAndCharts!$R$9=2,CalculationsAndCharts!$R$9=3),L97-L98,NA()) -> 
A98: 59 | B98: 28 | C98: 0 | D98: =COUNTIF(OFFSET(IF(CalculationsAndCharts!$R$3=1,CalculationsAndCharts!$L$33,CalculationsAndCharts!$X$33),0,0,CalculationsAndCharts!$A$8,1),">="&C98) -> 0 | E98: =IF(OR(CalculationsAndCharts!$R$9=1,CalculationsAndCharts!$R$9=3),D98-D99,NA()) ->  | K98: 1441.24788 | L98: =COUNTIF(OFFSET(IF(CalculationsAndCharts!$R$3=1,CalculationsAndCharts!#REF!,CalculationsAndCharts!$Z$33),0,0,CalculationsAndCharts!$A$8,1),">="&K98) -> 70 | M98: =IF(OR(CalculationsAndCharts!$R$9=2,CalculationsAndCharts!$R$9=3),L98-L99,NA()) -> 
A99: 60 | B99: 29 | C99: 0 | D99: =COUNTIF(OFFSET(IF(CalculationsAndCharts!$R$3=1,CalculationsAndCharts!$L$33,CalculationsAndCharts!$X$33),0,0,CalculationsAndCharts!$A$8,1),">="&C99) -> 0 | E99: =IF(OR(CalculationsAndCharts!$R$9=1,CalculationsAndCharts!$R$9=3),D99-D100,NA()) ->  | K99: 1492.721018 | L99: =COUNTIF(OFFSET(IF(CalculationsAndCharts!$R$3=1,CalculationsAndCharts!#REF!,CalculationsAndCharts!$Z$33),0,0,CalculationsAndCharts!$A$8,1),">="&K99) -> 52 | M99: =IF(OR(CalculationsAndCharts!$R$9=2,CalculationsAndCharts!$R$9=3),L99-L100,NA()) -> 
A100: 61 | B100: 30 | C100: 0 | D100: =COUNTIF(OFFSET(IF(CalculationsAndCharts!$R$3=1,CalculationsAndCharts!$L$33,CalculationsAndCharts!$X$33),0,0,CalculationsAndCharts!$A$8,1),">="&C100) -> 0 | E100: =IF(OR(CalculationsAndCharts!$R$9=1,CalculationsAndCharts!$R$9=3),D100-D101,NA()) ->  | G100: =F100/$D$40 ->  | K100: 1544.194157 | L100: =COUNTIF(OFFSET(IF(CalculationsAndCharts!$R$3=1,CalculationsAndCharts!#REF!,CalculationsAndCharts!$Z$33),0,0,CalculationsAndCharts!$A$8,1),">="&K100) -> 1 | M100: =IF(OR(CalculationsAndCharts!$R$9=2,CalculationsAndCharts!$R$9=3),L100-L101,NA()) -> 
B101: 31 | C101: 0 | D101: =COUNTIF(OFFSET(IF(CalculationsAndCharts!$R$3=1,CalculationsAndCharts!$L$33,CalculationsAndCharts!$X$33),0,0,CalculationsAndCharts!$A$8,1),">="&C101) -> 0 | E101: =IF(OR(CalculationsAndCharts!$R$9=1,CalculationsAndCharts!$R$9=3),D101-D102,NA()) ->  | K101: 1595.667295 | L101: =COUNTIF(OFFSET(IF(CalculationsAndCharts!$R$3=1,CalculationsAndCharts!#REF!,CalculationsAndCharts!$Z$33),0,0,CalculationsAndCharts!$A$8,1),">="&K101) -> 0 | M101: =IF(OR(CalculationsAndCharts!$R$9=2,CalculationsAndCharts!$R$9=3),L101-I102,NA()) -> 

Sheet Follow
A1: Stocks and Indexes I wish to follow
A3: To ease following a stock, enter a Yahoo Finance acceptable symbol in column "A" anywhere below cell "A9".
A4: Thereafter you may doubleclick the cell containing a symbol of interest to initiate data retrieval and charting for that symbol.
A7: Symbol
A8: To | B8: Description | C8: Last Trade as of most recent check
A9: Follow | C9: Date | D9: Time | E9: Open | F9: High | G9: Low | H9: Close | I9: Volume | J9: Change
A10: A | B10: Agilent Technolog (A) -NYSE (Daily) | C10: 2015-02-02 | D10: 16:03:00 | E10: 37.9 | F10: 38.76 | G10: 37.71 | H10: 38.69 | I10: 2508493 | J10: 0.92
A11: AA | B11: Alcoa Corporation (AA) -NYSE (Weekly) | C11: 2018-06-19 | D11: 16:04:00 | E11: 44.630001 | F11: 44.630001 | G11: 43.349998 | H11: 44.470001 | I11: 3190085 | J11: -1.309998
A12: AAL | B12: American Airlines Group Inc. (AAL) -NasdaqGS (Daily) | C12: 2017-12-07 | D12: 16:00:00 | E12: 49.529999 | F12: 50.920502 | G12: 49.299999 | H12: 50.880001 | I12: 3046954 | J12: 1.27
A13: ADM | B13: Archer-Daniels-Midland Company (ADM) -NYSE (Weekly) | C13: 2018-07-13 | D13: 16:00:00 | E13: 47.5 | F13: 47.84 | G13: 47.169998 | H13: 47.57 | I13: 2402809 | J13: 0
A14: AMC | B14: AMC Entertainment Holdings, Inc. (AMC) -NYSE (Weekly) | C14: 2018-07-13 | D14: 16:02:00 | E14: 17.049999 | F14: 17.15 | G14: 16.525 | H14: 17.049999 | I14: 1442776 | J14: 0
A15: BSX | B15: Boston Scientific Corporation C (BSX) -NYQ (Daily) | C15: 2015-03-13 | D15: 16:01:00 | E15: 16.84 | F15: 16.91 | G15: 16.44 | H15: 16.61 | I15: 7262460 | J15: -0.28
A16: CASY | B16: Casey's General Stores, Inc. (CASY) -NasdaqGS (Daily) | C16: 2018-07-13 | D16: 16:00:00 | E16: 108.260002 | F16: 109.959999 | G16: 108.260002 | H16: 109.169998 | I16: 300900 | J16: 0.239998
A17: CAT | B17: Caterpillar Inc. (CAT) -NYSE (Daily) | C17: 2018-04-16 | D17: 13:16:00 | E17: 151.740005 | F17: 153.401596 | G17: 150.279999 | H17: 153.050003 | I17: 1789751 | J17: 2.820007
A18: CSCO | B18: Cisco Systems, In (CSCO) -NasdaqNM (Daily) | C18: 2015-02-19 | D18: 16:00:00 | E18: 29.32 | F18: 29.39 | G18: 29.13 | H18: 29.31 | I18: 21469012 | J18: -0.18
A19: CVS | B19: CVS Health Corpor (CVS) -NYSE (Daily) | C19: 2015-02-02 | D19: 16:01:00 | E19: 98.34 | F19: 99.22 | G19: 97.06 | H19: 99.11 | I19: 4416094 | J19: 0.95
A20: DIS | B20: Walt Disney Compa (DIS) -NYSE (Daily) | C20: 2015-02-26 | D20: 16:00:00 | E20: 105.5 | F20: 105.71 | G20: 104.14 | H20: 104.56 | I20: 5044969 | J20: -1.01
A21: F | B21: Ford Motor Company (F) -NYSE (Daily) | C21: 2018-04-16 | D21: 13:20:00 | E21: 11.36 | F21: 11.4375 | G21: 11.27 | H21: 11.425 | I21: 13144677 | J21: 0.145
A22: FAS | B22: Direxion Daily Financial Bull 3X ETF (FAS) -NYSEArca (Daily) | C22: 2017-10-13 | D22: 16:00:00 | E22: 58.099998 | F22: 58.939999 | G22: 57.43 | H22: 58.450001 | I22: 1709300 | J22: 0.07
A23: FB | B23: Facebook, Inc. (FB) -NasdaqGS (Daily) | C23: 2018-07-13 | D23: 16:00:00 | E23: 207.809998 | F23: 208.429993 | G23: 206.449997 | H23: 207.320007 | I23: 11486800 | J23: 0.400009
A24: GSK | B24: GlaxoSmithKline P (GSK) -NYSE (Daily) | C24: 2015-02-02 | D24: 16:01:00 | E24: 44.11 | F24: 44.12 | G24: 43.71 | H24: 43.96 | I24: 3654466 | J24: -0.04
A25: GDX | B25: VanEck Vectors Gold Miners ETF (GDX) -PCX (Daily) | C25: 2017-02-10 | D25: 20:00:00 | E25: 24.67 | F25: 25.36 | G25: 24.6 | H25: 25.29 | I25: 65396107 | J25: 0.38
A26: HSY | B26: The Hershey Compa (HSY) -NYSE (Daily) | C26: 2015-02-19 | D26: 16:02:00 | E26: 106.97 | F26: 107.31 | G26: 105.42 | H26: 105.95 | I26: 1448321 | J26: -1
A27: HTLD | B27: Heartland Express, Inc. (HTLD) -NasdaqGS (Daily) | C27: 2018-04-16 | D27: 13:57:00 | E27: 18.17 | F27: 18.620001 | G27: 18.129999 | H27: 18.540001 | I27: 202134 | J27: 0.540001
A28: IBM | B28: International Business Machines Corporation (IBM) -NYSE (Weekly) | C28: 2018-07-13 | D28: 16:01:00 | E28: 146.449997 | F28: 146.979904 | G28: 145.800003 | H28: 145.899994 | I28: 3067638 | J28: 0
A29: INTC | B29: Intel Corporation (INTC) -NasdaqGS (Weekly) | C29: 2018-06-19 | D29: 16:00:00 | E29: 52.139999 | F29: 52.950001 | G29: 51.880001 | H29: 52.93 | I29: 24852220 | J29: -0.290001
A30: JAH | B30: Jarden Corporation Common Stock (JAH) -NYQ (Daily) | C30: 2016-01-08 | D30: 16:02:00 | E30: 53.82 | F30: 53.88 | G30: 52.65 | H30: 52.73 | I30: 4519480 | J30: -0.81
A31: JNJ | B31: Johnson & Johnson Common Stock (JNJ) -NYQ (Daily) | C31: 2016-01-08 | D31: 11:37:00 | E31: 99.88 | F31: 99.94 | G31: 98.87 | H31: 98.88 | I31: 2448879 | J31: -0.34
A32: KO | B32: The Coca-Cola Company (KO) -NYSE (Daily) | C32: 2018-04-16 | D32: 11:45:00 | E32: 44.650002 | F32: 44.790001 | G32: 44.400002 | H32: 44.605 | I32: 3134784 | J32: 0.095002
A33: LHO | B33: LaSalle Hotel Properties (LHO) -NYSE (Daily) | C33: 2018-07-13 | E33: 35.009998 | F33: 35.07 | G33: 34.82 | H33: 34.880001 | I33: 168400 | J33: -0.09
A34: LINE | B34: Linn Energy, LLC (LINE) -NasdaqNM (Daily) | C34: 2015-02-02 | D34: 16:00:00 | E34: 10.4 | F34: 10.78 | G34: 10.25 | H34: 10.77 | I34: 3766537 | J34: 0.51
A35: LO | B35: Lorillard, Inc Co (LO) -NYSE (Daily) | C35: 2015-02-02 | D35: 16:03:00 | E35: 65.71 | F35: 66.29 | G35: 65.43 | H35: 66.29 | I35: 1563618 | J35: 0.68
A36: MCD | B36: McDonald's Corporation (MCD) -NYSE (Daily) | C36: 2018-04-16 | D36: 14:57:00 | E36: 161.300003 | F36: 162.429993 | G36: 160.860001 | H36: 161.699997 | I36: 2261078 | J36: -0.029999
A37: MDT | B37: Medtronic plc. Or (MDT) -NYSE (Daily) | C37: 2015-02-19 | D37: 16:01:00 | E37: 78.59 | F37: 78.59 | G37: 77.85 | H37: 78.13 | I37: 6900528 | J37: -0.37
A38: MGM | B38: MGM Resorts Inter (MGM) -NYSE (Daily) | C38: 2015-02-02 | D38: 16:00:00 | E38: 19.44 | F38: 19.75 | G38: 19.12 | H38: 19.74 | I38: 7570281 | J38: 0.26
A39: MO | B39: Altria Group, Inc (MO) -NYSE (Daily) | C39: 2015-02-02 | D39: 16:01:00 | E39: 53.25 | F39: 53.84 | G39: 52.98 | H39: 53.8 | I39: 9183582 | J39: 0.7
A40: MSFT | B40: Microsoft Corporation (MSFT) -NasdaqGS (Daily) | C40: 2018-04-13 | D40: 16:00:00 | E40: 94.050003 | F40: 94.18 | G40: 92.440002 | H40: 93.080002 | I40: 23318600 | J40: -0.5
A41: NFLX | B41: Netflix, Inc. (NFLX) -NasdaqGS (Weekly) | C41: 2018-06-19 | D41: 14:59:00 | E41: 389.5 | F41: 404.390015 | G41: 388.5 | H41: 404.100006 | I41: 13053145 | J41: 13.700012
A42: NUGT | B42: Direxion Daily Gold Miners Inde (NUGT) -PCX (Daily) | C42: 2016-04-13 | D42: 14:18:00 | E42: 81.48 | F42: 84.97 | G42: 79.59 | H42: 80.5352 | I42: 4380827 | J42: -5.6148
A43: NVS | B43: Novartis AG (NVS) -NYSE (Daily) | C43: 2018-04-13 | D43: 16:02:00 | E43: 81.150002 | F43: 81.269997 | G43: 80.699997 | H43: 81.040001 | I43: 1037000 | J43: -0.400001
A44: NVDA | B44: NVIDIA Corporation (NVDA) -NasdaqGS (Daily) | C44: 2018-07-13 | D44: 16:00:00 | E44: 251.979996 | F44: 251.979996 | G44: 247.619995 | H44: 249.320007 | I44: 6174700 | J44: -1.909989
A45: PRU | B45: Prudential Financ (PRU) -NYSE (Daily) | C45: 2015-02-23 | D45: 12:22:00 | E45: 80.25 | F45: 80.4499 | G45: 79.8 | H45: 80.12 | I45: 1604052 | J45: -0.69
A46: PSEC | B46: Prospect Capital Corporation (PSEC) -NasdaqGS (Daily) | C46: 2018-04-13 | D46: 16:00:00 | E46: 6.48 | F46: 6.5 | G46: 6.42 | H46: 6.45 | I46: 1289100 | J46: -0.03
A47: RAI | B47: Reynolds American (RAI) -NYSE (Daily) | C47: 2015-02-02 | D47: 16:03:00 | E47: 68.12 | F47: 69.06 | G47: 67.4346 | H47: 69.05 | I47: 1822013 | J47: 1.1
A48: RPM | B48: RPM International Inc. (RPM) -NYSE (Daily) | C48: 2018-04-13 | D48: 16:02:00 | E48: 49.52 | F48: 49.52 | G48: 48.970001 | H48: 49.240002 | I48: 908200 | J48: 0.010002 | K48: Owns the Rust-Oleum brand
A49: RSP | B49: Guggenheim S&P 500 Equal Weight (RSP) -PCX (Daily) | C49: 2016-01-08 | D49: 11:33:00 | E49: 73.24 | F49: 73.47 | G49: 72.41 | H49: 72.41 | I49: 754279 | J49: -0.48
A50: SONC | B50: Sonic Corp. (SONC) -NasdaqGS (Daily) | C50: 2018-04-13 | D50: 16:00:00 | E50: 26.440001 | F50: 26.709999 | G50: 26.040001 | H50: 26.23 | I50: 701900 | J50: -0.03
A51: SPR | B51: Spirit Aerosystems Holdings, In (SPR) -NYQ (Daily) | C51: 2017-02-08 | D51: 16:02:00 | E51: 56.31 | F51: 56.53 | G51: 55.13 | H51: 56.41 | I51: 849196 | J51: 0.06
A52: SWKS | B52: Skyworks Solution (SWKS) -NasdaqNM (Daily) | C52: 2015-02-02 | D52: 16:00:00 | E52: 83.07 | F52: 83.73 | G52: 80.15 | H52: 82.02 | I52: 4119001 | J52: -1.03
A53: TOL | B53: Toll Brothers, Inc. (TOL) -NYSE (Daily) | C53: 2018-04-13 | D53: 16:03:00 | E53: 42.560001 | F53: 42.799999 | G53: 42.040001 | H53: 42.349998 | I53: 1490800 | J53: 0.09
A54: UNP | B54: Union Pacific Cor (UNP) -NYSE (Daily) | C54: 2015-02-02 | D54: 16:10:00 | E54: 118.13 | F54: 119.06 | G54: 116.7 | H54: 119.01 | I54: 3259594 | J54: 1.8
A55: VZ | B55: Verizon Communica (VZ) -NYSE (Daily) | C55: 2015-02-23 | D55: 12:22:00 | E55: 48.94 | F55: 49 | G55: 48.54 | H55: 48.825 | I55: 4204644 | J55: -0.145
A56: WBA | B56: (WBA) -NasdaqNM (Daily) | C56: 2015-02-02 | D56: 16:00:00 | E56: 73.06 | F56: 74.98 | G56: 73 | H56: 74.89 | I56: 4247395 | J56: 1.14
A57: WMT | B57: Walmart Inc. (WMT) -NYSE (Daily) | C57: 2018-07-13 | D57: 16:00:00 | E57: 86.519997 | F57: 87.989998 | G57: 86.5 | H57: 87.699997 | I57: 6388600 | J57: 1.18
A59: ^NDX | B59: NASDAQ-100 (^NDX) -NIM (Daily) | C59: 2015-08-10 | D59: 17:15:00 | E59: 4558.68 | F59: 4583.63 | G59: 4554.63 | H59: 4573.11 | I59: 0 | J59: 53.03
A60: ^FTSE | B60: FTSE 100 (^FTSE) -FTSE (Daily) | C60: 2018-02-14 | D60: 15:51:00 | E60: 7168.009766 | F60: 7243.149902 | G60: 7145.72998 | H60: 7222.319824 | I60: 0 | J60: 54.319824
A61: ^DJI | B61: Dow Jones Industrial Average (^DJI) -DJI (Daily) | C61: 2018-02-14 | D61: 13:58:00 | E61: 24535.82031 | F61: 24835.44922 | G61: 24490.35938 | H61: 24816.16016 | I61: 254641020 | J61: 175.710937
A62: SPY | B62: SPDR S&P 500 ETF (SPY) -NYSEArca (Daily) | C62: 2018-08-16 | D62: 16:00:00 | E62: 283.399994 | F62: 285.040009 | G62: 283.359985 | H62: 284.059998 | I62: 69859900 | J62: 2.279999
A63: ^GSPC | B63: S&P 500 (^GSPC) -SNP (Daily) | C63: 2018-07-13 | D63: 16:51:00 | E63: 2796.929932 | F63: 2804.530029 | G63: 2791.689941 | H63: 2801.310059 | I63: 2614000000 | J63: 3.02002
A64: IWM | B64: iShares Russell 2000 ETF (IWM) -NYSEArca (Daily) | C64: 2018-04-13 | D64: 16:00:00 | E64: 155.289993 | F64: 155.330002 | G64: 153.509995 | H64: 153.949997 | I64: 19710100 | J64: -0.809998
A65: QQQ | B65: PowerShares QQQ ETF (QQQ) -NasdaqGM (Daily) | C65: 2018-04-13 | D65: 16:00:00 | E65: 163.020004 | F65: 163.259995 | G65: 160.669998 | H65: 161.369995 | I65: 44450700 | J65: -0.840012
A66: ^RUT | B66: Russell 2000 (^RUT) -Chicago Options (Daily) | C66: 2019-02-14 | D66: 16:30:00 | E66: 1540.987793 | F66: 1551.385864 | G66: 1534.590088 | H66: 1545.105225 | I66: 0 | J66: 2.165284
A67: ^VIX | B67: VOLATILITY S&P 500 (^VIX) -WCB (Daily) | C67: 2015-12-04 | D67: 16:14:00 | E67: 17.43 | F67: 17.65 | G67: 14.69 | H67: 14.81 | I67: 0 | J67: -3.3
A68: ^NYA | B68: NYSE COMPOSITE (DJ) (^NYA) -NYSE (Daily) | C68: 2018-07-13 | D68: 16:15:00 | E68: 12744.79981 | F68: 12783.24023 | G68: 12727.75977 | H68: 12769.5 | I68: 2614000000 | J68: 8.040039
A70: ACAD | B70: ACADIA Pharmaceut (ACAD) -NasdaqNM (Daily) | C70: 2014-07-21 | D70: 16:00:00 | E70: 20.13 | F70: 20.55 | G70: 19.8101 | H70: 20.31 | I70: 691016
A71: CLDX | B71: Celldex Therapeut (CLDX) -NasdaqNM (Daily) | C71: 2015-02-02 | D71: 16:00:00 | E71: 21.47 | F71: 21.69 | G71: 20.11 | H71: 21.02 | I71: 1570418 | J71: -0.4
A72: ICPT | B72: Intercept Pharmac (ICPT) -NasdaqNM (Daily) | C72: 2014-07-21 | D72: 16:00:00 | E72: 215.97 | F72: 218.43 | G72: 213.05 | H72: 218.14 | I72: 191276
A73: INO | B73: Inovio Pharmaceut (INO) -AMEX (Daily) | C73: 2014-07-21 | D73: 16:00:00 | E73: 10.3 | F73: 11.08 | G73: 10.1 | H73: 11.01 | I73: 1800796
A74: JCP | B74: J. C. Penney Company, Inc. (JCP) -NYSE (Daily) | C74: 2017-12-07 | D74: 16:01:00 | E74: 3.34 | F74: 3.4 | G74: 3.25 | H74: 3.27 | I74: 14485464 | J74: -0.07
A75: LCI | B75: Lannett Co Inc Co (LCI) -NYSE (Daily) | C75: 2014-07-21 | D75: 16:02:00 | E75: 38.09 | F75: 38.803 | G75: 36.5101 | H75: 37.76 | I75: 611367
A76: NPSP | B76: NPS Pharmaceutica (NPSP) -NasdaqNM (Daily) | C76: 2014-07-21 | D76: 15:59:00 | E76: 28.75 | F76: 29.43 | G76: 28.31 | H76: 29.29 | I76: 1126758
A77: PBYI | B77: Puma Biotechnolog (PBYI) -NYSE (Daily) | C77: 2014-07-21 | D77: 16:02:00 | E77: 58.27 | F77: 59.46 | G77: 57.39 | H77: 58.98 | I77: 348030
